Workbook

Sheet Global_Var
B2: Constants | G2: Cost
B3: EUD | C3: Modulus of Sparcap | D3: [Pa] | E3: 39800000000 | G3: foam | H3: 225 | I3: $/ft^3 | J3: =H3*35.31 -> 7944.75 | K3: $/M3
B4: ρs | C4: Density of sparcap | D4: [kg/m3] | E4: 1920
B5: ϵUD(max) | C5: Max allow design strain Sparcap | D5: [-] | E5: 0.0029 | G5: Glass | H5: 3.5 | I5: $/kg | J5: =H6*H5 -> 2355.5 | K5: $/M3
B6: σs(allow) | C6: Allowable stress in Sparcap | D6: [Pa] | E6: =E5*E3 -> 115420000 | H6: =E8 -> 673
B7: EC | C7: Modulus of Core | D7: [Pa] | E7: 3790000
B8: ρc | C8: Density of core | D8: [kg/m3] | E8: 673
B9: ρw | C9: Density of Seawater | D9: [kg/m3] | E9: 1029
B10: L | C10: Section Length | D10: [m] | E10: 0.7416666667
C11: Beam width in terms of chord | D11: [-] | E11: =3/5 -> 0.6
C12: Beam height in terms of thickness | D12: [-] | E12: 0.85
C13: Chord Ratio Blade A/Blade B | D13: [-] | E13: =2/3 -> 0.6666666667
C14: Moment Ratio Blade A/Blade B | D14: [-] | E14: =2/3 -> 0.6666666667

Sheet Blade_Definition
B2: Loop | C2: 1
B3: # | C3: r/R | D3: Relm (m) | E3: Twist (deg) | F3: Chord (m) | G3: Relative Thickness (t/c %) | H3: Absolute Thickness (m) | I3: Thr/Len (N/m) | J3: Trq/Len (N) | K3: R [m] | L3: Element Fx [N] | M3: Element Fy [N] | N3: My | O3: Mx | P3: T/C
F4: 2.3 | G4: 1 | H4: 2.3 | K4: 0 | N4: =L14*(K14-K4)+L13*(K13-K4)+L12*(K12-K4)+L11*(K11-K4)+L10*(K10-K4)+L9*(K9-K4)+L8*(K8-K4)+L7*(K7-K4)+L6*(K6-K4)+L5*(K5-K4) -> 15501225.1 | O4: =M14*(K14-K4)+M13*(K13-K4)+M12*(K12-K4)+M11*(K11-K4)+M10*(K10-K4)+M9*(K9-K4)+M8*(K8-K4)+M7*(K7-K4)+M6*(K6-K4)+M5*(K5-K4) -> 1679610.412 | P4: =G4*100 -> 100
B5: 1 | C5: 0.05 | D5: 1.1375 | E5: 23.5532 | F5: 2.3 | G5: 1 | H5: 2.3 | I5: 1092.018 | J5: -496.752 | K5: =D5 -> 1.1375 | L5: =I5*($D$6-$D$5) -> 2484.34095 | M5: =J5*($D$6-$D$5)/D5 -> -993.504 | N5: =L14*(K14-K5)+L13*(K13-K5)+L12*(K12-K5)+L11*(K11-K5)+L10*(K10-K5)+L9*(K9-K5)+L8*(K8-K5)+L7*(K7-K5)+L6*(K6-K5) -> 14315791.05 | O5: =M14*(K14-K5)+M13*(K13-K5)+M12*(K12-K5)+M11*(K11-K5)+M10*(K10-K5)+M9*(K9-K5)+M8*(K8-K5)+M7*(K7-K5)+M6*(K6-K5) -> 1529780.258 | P5: =G5*100 -> 100
B6: 2 | C6: 0.15 | D6: 3.4125 | E6: 23.5532 | F6: 2.857262375 | G6: 0.629 | H6: 1.797218034 | I6: 6401.837 | J6: 7632.208 | K6: =D6 -> 3.4125 | L6: =I6*($D$6-$D$5) -> 14564.17917 | M6: =J6*($D$6-$D$5)/D6 -> 5088.138667 | N6: =L14*(K14-K6)+L13*(K13-K6)+L12*(K12-K6)+L11*(K11-K6)+L10*(K10-K6)+L9*(K9-K6)+L8*(K8-K6)+L7*(K7-K6) -> 11950574.84 | O6: =M14*(K14-K6)+M13*(K13-K6)+M12*(K12-K6)+M11*(K11-K6)+M10*(K10-K6)+M9*(K9-K6)+M8*(K8-K6)+M7*(K7-K6) -> 1227859.728 | P6: 62.9
B7: 3 | C7: 0.25 | D7: 5.6875 | E7: 15.078 | F7: 3.41452475 | G7: 0.24 | H7: 0.81948594 | I7: 26675.461 | J7: 43752.191 | K7: 5.6875 | L7: 60686.67377 | M7: 17500.8764 | N7: =L14*(K14-K7)+L13*(K13-K7)+L12*(K12-K7)+L11*(K11-K7)+L10*(K10-K7)+L9*(K9-K7)+L8*(K8-K7) -> 9618492.134 | O7: =M14*(K14-K7)+M13*(K13-K7)+M12*(K12-K7)+M11*(K11-K7)+M10*(K10-K7)+M9*(K9-K7)+M8*(K8-K7) -> 937514.7136 | P7: 24
B8: 4 | C8: 0.35 | D8: 7.9625 | E8: 10.5575 | F8: 2.696876 | G8: 0.2325 | H8: 0.62702367 | I8: 37911.578 | J8: 61017.027 | K8: 7.9625 | L8: 86248.83995 | M8: 17433.43629 | N8: =L14*(K14-K8)+L13*(K13-K8)+L12*(K12-K8)+L11*(K11-K8)+L10*(K10-K8)+L9*(K9-K8) -> 7424471.612 | O8: =M14*(K14-K8)+M13*(K13-K8)+M12*(K12-K8)+M11*(K11-K8)+M10*(K10-K8)+M9*(K9-K8) -> 686984.193 | P8: 23.25
B9: 5 | C9: 0.45 | D9: 10.2375 | E9: 7.8334 | F9: 2.2305465 | G9: 0.225 | H9: 0.5018729625 | I9: 45290.785 | J9: 79002.844 | K9: 10.2375 | L9: 103036.5359 | M9: 17556.18756 | N9: =L14*(K14-K9)+L13*(K13-K9)+L12*(K12-K9)+L11*(K11-K9)+L10*(K10-K9) -> 5426667.2 | O9: =M14*(K14-K9)+M13*(K13-K9)+M12*(K12-K9)+M11*(K11-K9)+M10*(K10-K9) -> 476114.74 | P9: 22.5
B10: 6 | C10: 0.55 | D10: 12.5125 | E10: 6.0319 | F10: 1.911364 | G10: 0.2175 | H10: 0.41572167 | I10: 56001.352 | J10: 94896.617 | K10: 12.5125 | L10: 127403.0758 | M10: 17253.93036 | N10: =L14*(K14-K10)+L13*(K13-K10)+L12*(K12-K10)+L11*(K11-K10) -> 3663270.908 | O10: =M14*(K14-K10)+M13*(K13-K10)+M12*(K12-K10)+M11*(K11-K10) -> 305185.6136 | P10: 21.75
B11: 7 | C11: 0.65 | D11: 14.7875 | E11: 4.7581 | F11: 1.6765385 | G11: 0.21 | H11: 0.352073085 | I11: 66897.773 | J11: 109223.82 | K11: 14.7875 | L11: 152192.4336 | M11: 16803.66462 | N11: =L14*(K14-K11)+L13*(K13-K11)+L12*(K12-K11) -> 2189716.612 | O11: =M14*(K14-K11)+M13*(K13-K11)+M12*(K12-K11) -> 173509.1788 | P11: 21
B12: 8 | C12: 0.75 | D12: 17.0625 | E12: 3.812 | F12: 1.42098775 | G12: 0.1933333333 | H12: 0.2747242983 | I12: 75190.234 | J12: 120695.539 | K12: 17.0625 | L12: 171057.7823 | M12: =J12*($D$6-$D$5)/D12 -> 16092.73853 | N12: =L14*(K14-K12)+L13*(K13-K12) -> 1062400.104 | O12: =M14*(K14-K12)+M13*(K13-K12) -> 80061.08106 | P12: 19.33333333
B13: 9 | C13: 0.85 | D13: 19.3375 | E13: 3.0825 | F13: 1.151423 | G13: 0.1766666667 | H13: 0.2034180633 | I13: 79974.883 | J13: 125587.609 | K13: 19.3375 | L13: 181942.8588 | M13: 14775.01282 | N13: =L14*(K14-K13) -> 324240.05 | O13: =M14*(K14-K13) -> 23223.96344 | P13: 17.66666667
B14: 10 | C14: 0.95 | D14: 21.6125 | E14: 2.5032 | F14: 0.72110675 | G14: 0.16 | H14: 0.11537708 | I14: 62647.516 | J14: 96979.188 | K14: 21.6125 | L14: 142523.0989 | M14: 10208.33558 | N14: 0 | O14: 0 | P14: 16
B16: *Operation at 1.8m/s, 6.0444 rpm, 8 TSR

Sheet Spar_Thickness_Calculator
V3: Input/Output | AA3: Intermediate Calculations | AF3: Constants
O4: Blade A | R4: Blade B | V4: 1 | Y4: Blade A | Z4: Blade B | AA4: b | AB4: Spar Cap Width | AC4: [m] | AD4: =Spar_Thickness_Calculator!Y5*Spar_Thickness_Calculator!AI12 -> 1.38 | AE4: =Spar_Thickness_Calculator!Z5*Spar_Thickness_Calculator!AI12 -> 0.92 | AF4: EUD | AG4: Modulus of Sparcap | AH4: [Pa] | AI4: =Global_Var!$E$3 -> 39800000000
I5: A Total Spar Thickness | J5: Element | K5: Z | L5: Chord | M5: Moment My | N5: T/C | O5: Wet Weight | P5: Spar Thickness | Q5: Height of Core | R5: Wet Weight | S5: Spar Thickness | T5: Height of Core | V5: C | W5: Chord | X5: [m] | Y5: =L7 -> 2.3 | Z5: =Y5*Spar_Thickness_Calculator!AI14 -> 1.533333333 | AA5: t | AB5: Airfoil thickness | AC5: [m] | AD5: =Spar_Thickness_Calculator!Y6*Spar_Thickness_Calculator!Y5/100 -> 2.3 | AE5: =Spar_Thickness_Calculator!Z6*Spar_Thickness_Calculator!Z5/100 -> 1.533333333 | AF5: ρs | AG5: Density of sparcap | AH5: [kg/m3] | AI5: =Global_Var!$E$4 -> 1920
I6: [m] | J6: [-] | K6: [m] | L6: [m] | M6: [N-m] | N6: (%) | O6: [kg] | P6: [m] | Q6: [m] | R6: [kg] | S6: [m] | T6: [m] | V6: AF% | W6: % thickness of foil | X6: [%] | Y6: =N7 -> 100 | Z6: =Y6 -> 100 | AA6: ho | AB6: Section height outer | AC6: [m] | AD6: =AD5*Spar_Thickness_Calculator!AI13 -> 1.955 | AE6: =AE5*Spar_Thickness_Calculator!AI13 -> 1.303333333 | AF6: ϵUD(max) | AG6: Max allow design strain Sparcap | AH6: [-] | AI6: =Global_Var!$E$5 -> 0.0029
I7: =P7*2 -> 0.1050202361 | J7: 1 | K7: =Blade_Definition!K4 -> 0 | L7: =Blade_Definition!F4 -> 2.3 | M7: =Blade_Definition!N4 -> 15501225.1 | N7: =Blade_Definition!G4*100 -> 100 | O7: =Y11 -> -1156.59546 | P7: =C_A1 -> 0.05251011807 | Q7: =AD7 -> 1.849979764 | R7: =Z11 -> -514.1272175 | S7: =C_B1 -> 0.08533494341 | T7: =AE7 -> 1.132663447 | V7: M | W7: Moment | X7: [n-m] | Y7: =M7 -> 15501225.1 | Z7: =Y7*Spar_Thickness_Calculator!AI15 -> 10334150.06 | AA7: hc | AB7: height of core | AC7: [m] | AD7: =Spar_Thickness_Calculator!AD6-2*Spar_Thickness_Calculator!Y8 -> 1.849979764 | AE7: =Spar_Thickness_Calculator!AE6-2*Spar_Thickness_Calculator!Z8 -> 1.132663447 | AF7: σs(allow) | AG7: Allowable stress in Sparcap | AH7: [Pa] | AI7: =Global_Var!$E$6 -> 115420000
I8: =P8*2 -> 0.09658378741 | J8: 2 | K8: =Blade_Definition!K5 -> 1.1375 | L8: =Blade_Definition!F5 -> 2.3 | M8: =Blade_Definition!N5 -> 14315791.05 | N8: =Blade_Definition!G5*100 -> 100 | O8: =Y26 -> -1178.130415 | P8: =C_A2 -> 0.04829189371 | Q8: =AD22 -> 1.858416213 | R8: =Z26 -> -552.2800384 | S8: =C_B2 -> 0.07786164435 | T8: =AE22 -> 1.147610045 | V8: t | W8: Spar Cap Thickness | X8: [m] | Y8: 0.05251011807 | Z8: 0.08533494341 | AA8: c | AB8: distance from neutral axis | AC8: [m] | AD8: =Spar_Thickness_Calculator!AD6/2 -> 0.9775 | AE8: =Spar_Thickness_Calculator!AE6/2 -> 0.6516666667 | AF8: EC | AG8: Modulus of Core | AH8: [Pa] | AI8: =Global_Var!$E$7 -> 3790000
I9: 0.08349504456 | J9: 3 | K9: =Blade_Definition!K6 -> 3.4125 | L9: =Blade_Definition!F6 -> 2.857262375 | M9: =Blade_Definition!N6 -> 11950574.84 | N9: =Blade_Definition!G6*100 -> 62.9 | O9: =Y41 -> -1118.191551 | P9: =C_A3 -> 0.04174752228 | Q9: =AD37 -> 1.444140284 | R9: =Z41 -> -491.0190834 | S9: =C_B3 -> 0.0679508699 | T9: =AE37 -> 0.8825218127 | V9: σs(max) | W9: Max Stress in Sparcap | X9: [Pa] | Y9: =(Y7*(Spar_Thickness_Calculator!AD6/2)*Spar_Thickness_Calculator!AI4)/(Spar_Thickness_Calculator!AI4*Spar_Thickness_Calculator!AD9+Spar_Thickness_Calculator!AI8*Spar_Thickness_Calculator!AD10) -> 115453267 | Z9: =(Z7*(Spar_Thickness_Calculator!AE6/2)*Spar_Thickness_Calculator!AI4)/(Spar_Thickness_Calculator!AI4*Spar_Thickness_Calculator!AE9+Spar_Thickness_Calculator!AI8*Spar_Thickness_Calculator!AE10) -> 115433830.8 | AA9: Is | AB9: Moment of inertia Spar | AC9: [m4] | AD9: =(Spar_Thickness_Calculator!AD4/12)*(Spar_Thickness_Calculator!AD6^3-Spar_Thickness_Calculator!AD7^3) -> 0.1311737894 | AE9: =(Spar_Thickness_Calculator!AE4/12)*(Spar_Thickness_Calculator!AE6^3-Spar_Thickness_Calculator!AE7^3) -> 0.05832949028 | AF9: ρc | AG9: Density of core | AH9: [kg/m3] | AI9: =Global_Var!$E$8 -> 673
I10: 0.1447718555 | J10: 4 | K10: =Blade_Definition!K7 -> 5.6875 | L10: =Blade_Definition!F7 -> 3.41452475 | M10: =Blade_Definition!N7 -> 9618492.134 | N10: =Blade_Definition!G7*100 -> 24 | O10: =Y56 -> -204.9632951 | P10: =C_A4 -> 0.07238592773 | Q10: =AD52 -> 0.5517911935 | R10: =Z56 -> 2152.970249 | S10: =C_B4 -> 0.3503534809 | T10: =AE52 -> -0.2363315958 | V10: Ww | W10: Wet Weight | X10: [kg] | Y10: =Spar_Thickness_Calculator!AD14+Spar_Thickness_Calculator!AD13-Spar_Thickness_Calculator!AD16 -> -578.29773 | Z10: =Spar_Thickness_Calculator!AE14+Spar_Thickness_Calculator!AE13-Spar_Thickness_Calculator!AE16 -> -171.3757392 | AA10: Ic | AB10: Moment of inertia Core | AC10: [m4] | AD10: =(Spar_Thickness_Calculator!AD4/12)*Spar_Thickness_Calculator!AD7^3 -> 0.7281129812 | AE10: =(Spar_Thickness_Calculator!AE4/12)*Spar_Thickness_Calculator!AE7^3 -> 0.1114061681 | AF10: ρw | AG10: Density of Seawater | AH10: [kg/m3] | AI10: =Global_Var!$E$9 -> 1029
I11: 0.2430355672 | J11: 5 | K11: =Blade_Definition!K8 -> 7.9625 | L11: =Blade_Definition!F8 -> 2.696876 | M11: =Blade_Definition!N8 -> 7424471.612 | N11: =Blade_Definition!G8*100 -> 23.25 | O11: =Y71 -> 272.0120668 | P11: =C_A5 -> 0.1215177836 | Q11: =AD67 -> 0.2899345523 | R11: =Z71 -> 1782.383548 | S11: =C_B5 -> 0.3484696982 | T11: =AE67 -> -0.3416259833 | V11: Ww(rotor) | W11: Wet Weight segment of rotor | X11: [kg] | Y11: =Y10*2 -> -1156.59546 | Z11: =Z10*3 -> -514.1272175 | AA11: Vs | AB11: Volume of Spar | AC11: [m3] | AD11: =Spar_Thickness_Calculator!AD4*Spar_Thickness_Calculator!Y8*Spar_Thickness_Calculator!AI11*2 -> 0.1074882117 | AE11: =Spar_Thickness_Calculator!AE4*Spar_Thickness_Calculator!Z8*Spar_Thickness_Calculator!AI11*2 -> 0.1164537528 | AF11: L | AG11: Section Length | AH11: [m] | AI11: =Global_Var!$E$10 -> 0.7416666667
I12: 0.657377677 | J12: 6 | K12: =Blade_Definition!K9 -> 10.2375 | L12: =Blade_Definition!F9 -> 2.2305465 | M12: =Blade_Definition!N9 -> 5426667.2 | N12: =Blade_Definition!G9*100 -> 22.5 | O12: =Y86 -> 1325.872645 | P12: =C_A6 -> 0.3286888385 | Q12: =AD82 -> -0.2307856589 | R12: =Z86 -> 1327.182267 | S12: =C_B6 -> 0.3086557368 | T12: =AE82 -> -0.3329167949 | AA12: Vc | AB12: Volume of Core | AC12: [m3] | AD12: =Spar_Thickness_Calculator!AD7*Spar_Thickness_Calculator!AD4*Spar_Thickness_Calculator!AI11 -> 1.893454288 | AE12: =Spar_Thickness_Calculator!AE7*Spar_Thickness_Calculator!AE4*Spar_Thickness_Calculator!AI11 -> 0.772854025 | AG12: Beam width in terms of chord | AH12: [-] | AI12: =Global_Var!$E$11 -> 0.6
I13: 0.5975389666 | J13: 7 | K13: =Blade_Definition!K10 -> 12.5125 | L13: =Blade_Definition!F10 -> 1.911364 | M13: =Blade_Definition!N10 -> 3663270.908 | N13: =Blade_Definition!G10*100 -> 21.75 | O13: =Y101 -> 1053.557227 | P13: =C_A7 -> 0.2987694833 | Q13: =AD97 -> -0.2441755471 | R13: =Z101 -> 985.8738491 | S13: =C_B7 -> 0.2660027876 | T13: =AE97 -> -0.2964299623 | W13: Spar Strain Limit (Goal Seek to 1) | Y13: =(Y9/$AI$7) -> 1.000288226 | Z13: =(Z9/$AI$7) -> 1.00011983 | AA13: Ms | AB13: Mass of Spar | AC13: [kg] | AD13: =Spar_Thickness_Calculator!AI5*AD11 -> 206.3773664 | AE13: =Spar_Thickness_Calculator!AI5*AE11 -> 223.5912053 | AG13: Beam height in terms of thickness | AH13: [-] | AI13: 0.85
I14: 0.4911570349 | J14: 8 | K14: =Blade_Definition!K11 -> 14.7875 | L14: =Blade_Definition!F11 -> 1.6765385 | M14: =Blade_Definition!N11 -> 2189716.612 | N14: =Blade_Definition!G11*100 -> 21 | O14: =Y116 -> 754.9161169 | P14: =C_A8 -> 0.2455785175 | Q14: =AD112 -> -0.1918949127 | R14: =Z116 -> 720.1559793 | S14: =C_B8 -> 0.2219986235 | T14: =AE112 -> -0.2444891654 | AA14: Mc | AB14: Mass of Core | AC14: [kg] | AD14: =AD12*Spar_Thickness_Calculator!AI9 -> 1274.294736 | AE14: =AE12*Spar_Thickness_Calculator!AI9 -> 520.1307588 | AG14: Chord Ratio Blade A/Blade B | AH14: [-] | AI14: =Global_Var!$E$13 -> 0.6666666667
I15: 0.3672860609 | J15: 9 | K15: =Blade_Definition!K12 -> 17.0625 | L15: =Blade_Definition!F12 -> 1.42098775 | M15: =Blade_Definition!N12 -> 1062400.104 | N15: =Blade_Definition!G12*100 -> 19.33333333 | O15: =Y131 -> 474.0954957 | P15: =C_A9 -> 0.1836430304 | Q15: =AD127 -> -0.1337704073 | R15: =Z131 -> 466.7379911 | S15: =C_B9 -> 0.1701994822 | T15: =AE127 -> -0.1847218621 | AA15: Vd | AB15: Displaced Volume | AC15: [m3] | AD15: =Spar_Thickness_Calculator!AD6*Spar_Thickness_Calculator!AD4*Spar_Thickness_Calculator!AI11 -> 2.0009425 | AE15: =Spar_Thickness_Calculator!AE6*Spar_Thickness_Calculator!AE4*Spar_Thickness_Calculator!AI11 -> 0.8893077778 | AG15: Moment Ratio Blade A/Blade B | AH15: [-] | AI15: =Global_Var!$E$14 -> 0.6666666667
I16: 0.07456634793 | J16: 10 | K16: =Blade_Definition!K13 -> 19.3375 | L16: =Blade_Definition!F13 -> 1.151423 | M16: =Blade_Definition!N13 -> 324240.05 | N16: =Blade_Definition!G13*100 -> 17.66666667 | O16: =Y146 -> 32.20833832 | P16: =C_A10 -> 0.03728317397 | Q16: =AD142 -> 0.0983390059 | R16: =Z146 -> 244.0040952 | S16: =C_B10 -> 0.1119259137 | T16: =AE142 -> -0.1085815915 | AA16: Mw | AB16: Mass of disp. Seawater | AC16: [kg] | AD16: =Spar_Thickness_Calculator!AI10*Spar_Thickness_Calculator!AD15 -> 2058.969832 | AE16: =Spar_Thickness_Calculator!AI10*Spar_Thickness_Calculator!AE15 -> 915.0977033
J17: 11 | K17: =Blade_Definition!K14 -> 21.6125 | L17: =Blade_Definition!F14 -> 0.72110675 | M17: =Blade_Definition!N14 -> 0 | N17: =Blade_Definition!G14*100 -> 16 | O17: =Y161 -> -5.577795635e+73 | P17: =C_A11 -> -3.484789757e+70 | Q17: =AD157 -> 6.969579513e+70 | R17: =Z161 -> -3.190948528e+74 | S17: =C_B11 -> -1.993580524e+71 | T17: =AE157 -> 3.987161047e+71
O18: =Y176 -> 0 | P18: =C_A12 -> 0.05034296976 | Q18: =AD172 -> -0.1006859395 | R18: =Z176 -> 0 | S18: =C_B12 -> 0.287499489 | T18: =AE172 -> -0.5749989779 | V18: Input/Output | AA18: Intermediate Calculations | AF18: Constants
O19: =Y191 -> 0 | P19: =C_A13 -> 0.04938467599 | Q19: =AD187 -> -0.09876935198 | R19: =Z191 -> 0 | S19: =C_B13 -> 0.2807631283 | T19: =AE187 -> -0.5615262565 | V19: 2 | Y19: Blade A | Z19: Blade B | AA19: b | AB19: Spar Cap Width | AC19: [m] | AD19: =Spar_Thickness_Calculator!Y20*Spar_Thickness_Calculator!AI27 -> 1.38 | AE19: =Spar_Thickness_Calculator!Z20*Spar_Thickness_Calculator!AI27 -> 0.92 | AF19: EUD | AG19: Modulus of Sparcap | AH19: [Pa] | AI19: =Global_Var!$E$3 -> 39800000000
O20: =Y206 -> 0 | P20: =C_A14 -> 0.04797946515 | Q20: =AD202 -> -0.09595893029 | R20: =Z206 -> 0 | S20: =C_B14 -> 0.2720572865 | T20: =AE202 -> -0.5441145729 | V20: C | W20: Chord | X20: [m] | Y20: =L8 -> 2.3 | Z20: =Y20*Spar_Thickness_Calculator!AI29 -> 1.533333333 | AA20: t | AB20: Airfoil thickness | AC20: [m] | AD20: =Spar_Thickness_Calculator!Y21*Spar_Thickness_Calculator!Y20/100 -> 2.3 | AE20: =Spar_Thickness_Calculator!Z21*Spar_Thickness_Calculator!Z20/100 -> 1.533333333 | AF20: ρs | AG20: Density of sparcap | AH20: [kg/m3] | AI20: =Global_Var!$E$4 -> 1920
O21: =Y221 -> 0 | P21: =C_A15 -> 0.04605846245 | Q21: =AD217 -> -0.0921169249 | R21: =Z221 -> 0 | S21: =C_B15 -> 0.2615738172 | T21: =AE217 -> -0.5231476345 | V21: AF% | W21: % thickness of foil | X21: [%] | Y21: =N8 -> 100 | Z21: =Y21 -> 100 | AA21: ho | AB21: Section height outer | AC21: [m] | AD21: =AD20*Spar_Thickness_Calculator!AI28 -> 1.955 | AE21: =AE20*Spar_Thickness_Calculator!AI28 -> 1.303333333 | AF21: ϵUD(max) | AG21: Max allow design strain Sparcap | AH21: [-] | AI21: =Global_Var!$E$5 -> 0.0029
O22: =Y236 -> 0 | P22: =C_A16 -> 0.04423425173 | Q22: =AD232 -> -0.08846850346 | R22: =Z236 -> 0 | S22: =C_B16 -> 0.2508164134 | T22: =AE232 -> -0.5016328268 | V22: M | W22: Moment | X22: [n-m] | Y22: =M8 -> 14315791.05 | Z22: =Y22*Spar_Thickness_Calculator!AI30 -> 9543860.702 | AA22: hc | AB22: height of core | AC22: [m] | AD22: =Spar_Thickness_Calculator!AD21-2*Spar_Thickness_Calculator!Y23 -> 1.858416213 | AE22: =Spar_Thickness_Calculator!AE21-2*Spar_Thickness_Calculator!Z23 -> 1.147610045 | AF22: σs(allow) | AG22: Allowable stress in Sparcap | AH22: [Pa] | AI22: =Global_Var!$E$6 -> 115420000
O23: =Y251 -> 0 | P23: =C_A17 -> 0.04145820395 | Q23: =AD247 -> -0.08291640789 | R23: =Z251 -> 0 | S23: =C_B17 -> 0.236485616 | T23: =AE247 -> -0.4729712319 | V23: t | W23: Spar Cap Thickness | X23: [m] | Y23: 0.04829189371 | Z23: 0.07786164435 | AA23: c | AB23: distance from neutral axis | AC23: [m] | AD23: =Spar_Thickness_Calculator!AD21/2 -> 0.9775 | AE23: =Spar_Thickness_Calculator!AE21/2 -> 0.6516666667 | AF23: EC | AG23: Modulus of Core | AH23: [Pa] | AI23: =Global_Var!$E$7 -> 3790000
O24: =Y266 -> 0 | P24: =C_A18 -> 0.03829865683 | Q24: =AD262 -> -0.07659731367 | R24: =Z266 -> 0 | S24: =C_B18 -> 0.2186359422 | T24: =AE262 -> -0.4372718844 | V24: σs(max) | W24: Max Stress in Sparcap | X24: [Pa] | Y24: =(Y22*(Spar_Thickness_Calculator!AD21/2)*Spar_Thickness_Calculator!AI19)/(Spar_Thickness_Calculator!AI19*Spar_Thickness_Calculator!AD24+Spar_Thickness_Calculator!AI23*Spar_Thickness_Calculator!AD25) -> 115423875.6 | Z24: =(Z22*(Spar_Thickness_Calculator!AE21/2)*Spar_Thickness_Calculator!AI19)/(Spar_Thickness_Calculator!AI19*Spar_Thickness_Calculator!AE24+Spar_Thickness_Calculator!AI23*Spar_Thickness_Calculator!AE25) -> 115448599.4 | AA24: Is | AB24: Moment of inertia Spar | AC24: [m4] | AD24: =(Spar_Thickness_Calculator!AD19/12)*(Spar_Thickness_Calculator!AD21^3-Spar_Thickness_Calculator!AD22^3) -> 0.1211670699 | AE24: =(Spar_Thickness_Calculator!AE19/12)*(Spar_Thickness_Calculator!AE21^3-Spar_Thickness_Calculator!AE22^3) -> 0.05386069666 | AF24: ρc | AG24: Density of core | AH24: [kg/m3] | AI24: =Global_Var!$E$8 -> 673
O25: =Y281 -> 0 | P25: =C_A19 -> 0.03472835045 | Q25: =AD277 -> -0.0694567009 | R25: =Z281 -> 0 | S25: =C_B19 -> 0.1921793983 | T25: =AE277 -> -0.3843587967 | V25: Ww | W25: Wet Weight | X25: [kg] | Y25: =Spar_Thickness_Calculator!AD29+Spar_Thickness_Calculator!AD28-Spar_Thickness_Calculator!AD31 -> -589.0652075 | Z25: =Spar_Thickness_Calculator!AE29+Spar_Thickness_Calculator!AE28-Spar_Thickness_Calculator!AE31 -> -184.0933461 | AA25: Ic | AB25: Moment of inertia Core | AC25: [m4] | AD25: =(Spar_Thickness_Calculator!AD19/12)*Spar_Thickness_Calculator!AD22^3 -> 0.7381197007 | AE25: =(Spar_Thickness_Calculator!AE19/12)*Spar_Thickness_Calculator!AE22^3 -> 0.1158749617 | AF25: ρw | AG25: Density of Seawater | AH25: [kg/m3] | AI25: =Global_Var!$E$9 -> 1029
O26: =Y296 -> 0 | P26: =C_A20 -> 0.03085315141 | Q26: =AD292 -> -0.06170630282 | R26: =Z296 -> 0 | S26: =C_B20 -> 0.09702926307 | T26: =AE292 -> -0.1940585261 | V26: Ww(rotor) | W26: Wet Weight segment of rotor (+ floats) | X26: [kg] | Y26: =Y25*2 -> -1178.130415 | Z26: =Z25*3 -> -552.2800384 | AA26: Vs | AB26: Volume of Spar | AC26: [m3] | AD26: =Spar_Thickness_Calculator!AD19*Spar_Thickness_Calculator!Y23*Spar_Thickness_Calculator!AI26*2 -> 0.09885350642 | AE26: =Spar_Thickness_Calculator!AE19*Spar_Thickness_Calculator!Z23*Spar_Thickness_Calculator!AI26*2 -> 0.1062551907 | AF26: L | AG26: Section Length | AH26: [m] | AI26: =Global_Var!$E$10 -> 0.7416666667
O27: =Y311 -> 0 | P27: =C_A21 -> 0.02722358114 | Q27: =AD307 -> -0.05444716227 | R27: =Z311 -> 0 | S27: =C_B21 -> 0.07633643351 | T27: =AE307 -> -0.152672867 | AA27: Vc | AB27: Volume of Core | AC27: [m3] | AD27: =Spar_Thickness_Calculator!AD22*Spar_Thickness_Calculator!AD19*Spar_Thickness_Calculator!AI26 -> 1.902088994 | AE27: =Spar_Thickness_Calculator!AE22*Spar_Thickness_Calculator!AE19*Spar_Thickness_Calculator!AI26 -> 0.7830525871 | AG27: Beam width in terms of chord | AH27: [-] | AI27: =Global_Var!$E$11 -> 0.6
O28: =Y326 -> 0 | P28: =C_A22 -> 0.0235641184 | Q28: =AD322 -> -0.0471282368 | R28: =Z326 -> 0 | S28: =C_B22 -> 0.06141767948 | T28: =AE322 -> -0.122835359 | W28: Spar Strain Limit (Goal Seek to 1) | Y28: =(Y24/$AI$7) -> 1.000033578 | Z28: =(Z24/$AI$7) -> 1.000247786 | AA28: Ms | AB28: Mass of Spar | AC28: [kg] | AD28: =Spar_Thickness_Calculator!AI20*AD26 -> 189.7987323 | AE28: =Spar_Thickness_Calculator!AI20*AE26 -> 204.0099661 | AG28: Beam height in terms of thickness | AH28: [-] | AI28: 0.85
O29: =Y341 -> 0 | P29: =C_A23 -> 0.0198283488 | Q29: =AD337 -> -0.03965669759 | R29: =Z341 -> 0 | S29: =C_B23 -> 0.04904894756 | T29: =AE337 -> -0.09809789511 | AA29: Mc | AB29: Mass of Core | AC29: [kg] | AD29: =AD27*Spar_Thickness_Calculator!AI24 -> 1280.105893 | AE29: =AE27*Spar_Thickness_Calculator!AI24 -> 526.9943911 | AG29: Chord Ratio Blade A/Blade B | AH29: [-] | AI29: =Global_Var!$E$13 -> 0.6666666667
O30: =Y356 -> 0 | P30: =C_A24 -> 0.01572867694 | Q30: =AD352 -> -0.03145735388 | R30: =Z356 -> 0 | S30: =C_B24 -> 0.03730407404 | T30: =AE352 -> -0.07460814809 | AA30: Vd | AB30: Displaced Volume | AC30: [m3] | AD30: =Spar_Thickness_Calculator!AD21*Spar_Thickness_Calculator!AD19*Spar_Thickness_Calculator!AI26 -> 2.0009425 | AE30: =Spar_Thickness_Calculator!AE21*Spar_Thickness_Calculator!AE19*Spar_Thickness_Calculator!AI26 -> 0.8893077778 | AG30: Moment Ratio Blade A/Blade B | AH30: [-] | AI30: =Global_Var!$E$14 -> 0.6666666667
O31: =Y371 -> 0 | P31: =C_A25 -> 0.01172562288 | Q31: =AD367 -> -0.02345124575 | R31: =Z371 -> 0 | S31: =C_B25 -> 0.02753359682 | T31: =AE367 -> -0.05506719365 | AA31: Mw | AB31: Mass of disp. Seawater | AC31: [kg] | AD31: =Spar_Thickness_Calculator!AI25*Spar_Thickness_Calculator!AD30 -> 2058.969832 | AE31: =Spar_Thickness_Calculator!AI25*Spar_Thickness_Calculator!AE30 -> 915.0977033
O32: =Y386 -> 0 | P32: =C_A26 -> 0.007880961187 | Q32: =AD382 -> -0.01576192237 | R32: =Z386 -> 0 | S32: =C_B26 -> 0.01902742232 | T32: =AE382 -> -0.03805484465
O33: =Y401 -> 0 | P33: =C_A27 -> 0.004191143401 | Q33: =AD397 -> -0.008382286801 | R33: =Z401 -> 0 | S33: =C_B27 -> 0.01172739648 | T33: =AE397 -> -0.02345479296 | V33: Input/Output | AA33: Intermediate Calculations | AF33: Constants
O34: =Y416 -> 0 | P34: =C_A28 -> 0.001066978348 | Q34: =AD412 -> -0.002133956696 | R34: =Z416 -> 0 | S34: =C_B28 -> 0.005992007328 | T34: =AE412 -> -0.01198401466 | V34: 3 | Y34: Blade A | Z34: Blade B | AA34: b | AB34: Spar Cap Width | AC34: [m] | AD34: =Spar_Thickness_Calculator!Y35*Spar_Thickness_Calculator!AI42 -> 1.714357425 | AE34: =Spar_Thickness_Calculator!Z35*Spar_Thickness_Calculator!AI42 -> 1.14290495 | AF34: EUD | AG34: Modulus of Sparcap | AH34: [Pa] | AI34: =Global_Var!$E$3 -> 39800000000
O35: =Y431 -> 0 | P35: =C_A29 -> -0.001472850964 | Q35: =AD427 -> 0.002945701928 | R35: =Z431 -> 0 | S35: =C_B29 -> 0.001600141133 | T35: =AE427 -> -0.003200282267 | V35: C | W35: Chord | X35: [m] | Y35: =L9 -> 2.857262375 | Z35: =Y35*Spar_Thickness_Calculator!AI44 -> 1.904841583 | AA35: t | AB35: Airfoil thickness | AC35: [m] | AD35: =Spar_Thickness_Calculator!Y36*Spar_Thickness_Calculator!Y35/100 -> 1.797218034 | AE35: =Spar_Thickness_Calculator!Z36*Spar_Thickness_Calculator!Z35/100 -> 1.198145356 | AF35: ρs | AG35: Density of sparcap | AH35: [kg/m3] | AI35: =Global_Var!$E$4 -> 1920
O36: =Y446 -> 0 | P36: =C_A30 -> -0.003157231886 | Q36: =AD442 -> 0.006314463771 | R36: =Z446 -> 0 | S36: =C_B30 -> -0.001258008941 | T36: =AE442 -> 0.002516017883 | V36: AF% | W36: % thickness of foil | X36: [%] | Y36: =N9 -> 62.9 | Z36: =Y36 -> 62.9 | AA36: ho | AB36: Section height outer | AC36: [m] | AD36: =AD35*Spar_Thickness_Calculator!AI43 -> 1.527635329 | AE36: =AE35*Spar_Thickness_Calculator!AI43 -> 1.018423553 | AF36: ϵUD(max) | AG36: Max allow design strain Sparcap | AH36: [-] | AI36: =Global_Var!$E$5 -> 0.0029
O37: =Y461 -> 0 | P37: =C_A31 -> 5880034876 | Q37: =AD457 -> -1.176006975e+10 | R37: =Z461 -> 0 | S37: =C_B31 -> 1.39086906e+10 | T37: =AE457 -> -2.78173812e+10 | V37: M | W37: Moment | X37: [n-m] | Y37: =M9 -> 11950574.84 | Z37: =Y37*Spar_Thickness_Calculator!AI45 -> 7967049.893 | AA37: hc | AB37: height of core | AC37: [m] | AD37: =Spar_Thickness_Calculator!AD36-2*Spar_Thickness_Calculator!Y38 -> 1.444140284 | AE37: =Spar_Thickness_Calculator!AE36-2*Spar_Thickness_Calculator!Z38 -> 0.8825218127 | AF37: σs(allow) | AG37: Allowable stress in Sparcap | AH37: [Pa] | AI37: =Global_Var!$E$6 -> 115420000
V38: t | W38: Spar Cap Thickness | X38: [m] | Y38: 0.04174752228 | Z38: 0.0679508699 | AA38: c | AB38: distance from neutral axis | AC38: [m] | AD38: =Spar_Thickness_Calculator!AD36/2 -> 0.7638176644 | AE38: =Spar_Thickness_Calculator!AE36/2 -> 0.5092117763 | AF38: EC | AG38: Modulus of Core | AH38: [Pa] | AI38: =Global_Var!$E$7 -> 3790000
V39: σs(max) | W39: Max Stress in Sparcap | X39: [Pa] | Y39: =(Y37*(Spar_Thickness_Calculator!AD36/2)*Spar_Thickness_Calculator!AI34)/(Spar_Thickness_Calculator!AI34*Spar_Thickness_Calculator!AD39+Spar_Thickness_Calculator!AI38*Spar_Thickness_Calculator!AD40) -> 115442309.7 | Z39: =(Z37*(Spar_Thickness_Calculator!AE36/2)*Spar_Thickness_Calculator!AI34)/(Spar_Thickness_Calculator!AI34*Spar_Thickness_Calculator!AE39+Spar_Thickness_Calculator!AI38*Spar_Thickness_Calculator!AE40) -> 115431741.2 | AA39: Is | AB39: Moment of inertia Spar | AC39: [m4] | AD39: =(Spar_Thickness_Calculator!AD34/12)*(Spar_Thickness_Calculator!AD36^3-Spar_Thickness_Calculator!AD37^3) -> 0.07902934457 | AE39: =(Spar_Thickness_Calculator!AE34/12)*(Spar_Thickness_Calculator!AE36^3-Spar_Thickness_Calculator!AE37^3) -> 0.03513934723 | AF39: ρc | AG39: Density of core | AH39: [kg/m3] | AI39: =Global_Var!$E$8 -> 673
V40: Ww | W40: Wet Weight | X40: [kg] | Y40: =Spar_Thickness_Calculator!AD44+Spar_Thickness_Calculator!AD43-Spar_Thickness_Calculator!AD46 -> -559.0957757 | Z40: =Spar_Thickness_Calculator!AE44+Spar_Thickness_Calculator!AE43-Spar_Thickness_Calculator!AE46 -> -163.6730278 | AA40: Ic | AB40: Moment of inertia Core | AC40: [m4] | AD40: =(Spar_Thickness_Calculator!AD34/12)*Spar_Thickness_Calculator!AD37^3 -> 0.4302771418 | AE40: =(Spar_Thickness_Calculator!AE34/12)*Spar_Thickness_Calculator!AE37^3 -> 0.06546440316 | AF40: ρw | AG40: Density of Seawater | AH40: [kg/m3] | AI40: =Global_Var!$E$9 -> 1029
V41: Ww(rotor) | W41: Wet Weight segment of rotor (+ floats) | X41: [kg] | Y41: =Y40*2 -> -1118.191551 | Z41: =Z40*3 -> -491.0190834 | AA41: Vs | AB41: Volume of Spar | AC41: [m3] | AD41: =Spar_Thickness_Calculator!AD34*Spar_Thickness_Calculator!Y38*Spar_Thickness_Calculator!AI41*2 -> 0.1061624259 | AE41: =Spar_Thickness_Calculator!AE34*Spar_Thickness_Calculator!Z38*Spar_Thickness_Calculator!AI41*2 -> 0.1151977219 | AF41: L | AG41: Section Length | AH41: [m] | AI41: =Global_Var!$E$10 -> 0.7416666667
AA42: Vc | AB42: Volume of Core | AC42: [m3] | AD42: =Spar_Thickness_Calculator!AD37*Spar_Thickness_Calculator!AD34*Spar_Thickness_Calculator!AI41 -> 1.836198026 | AE42: =Spar_Thickness_Calculator!AE37*Spar_Thickness_Calculator!AE34*Spar_Thickness_Calculator!AI41 -> 0.74807359 | AG42: Beam width in terms of chord | AH42: [-] | AI42: =Global_Var!$E$11 -> 0.6
W43: Spar Strain Limit (Goal Seek to 1) | Y43: =(Y39/$AI$7) -> 1.000193292 | Z43: =(Z39/$AI$7) -> 1.000101726 | AA43: Ms | AB43: Mass of Spar | AC43: [kg] | AD43: =Spar_Thickness_Calculator!AI35*AD41 -> 203.8318578 | AE43: =Spar_Thickness_Calculator!AI35*AE41 -> 221.1796261 | AG43: Beam height in terms of thickness | AH43: [-] | AI43: 0.85
AA44: Mc | AB44: Mass of Core | AC44: [kg] | AD44: =AD42*Spar_Thickness_Calculator!AI39 -> 1235.761271 | AE44: =AE42*Spar_Thickness_Calculator!AI39 -> 503.453526 | AG44: Chord Ratio Blade A/Blade B | AH44: [-] | AI44: =Global_Var!$E$13 -> 0.6666666667
AA45: Vd | AB45: Displaced Volume | AC45: [m3] | AD45: =Spar_Thickness_Calculator!AD36*Spar_Thickness_Calculator!AD34*Spar_Thickness_Calculator!AI41 -> 1.942360452 | AE45: =Spar_Thickness_Calculator!AE36*Spar_Thickness_Calculator!AE34*Spar_Thickness_Calculator!AI41 -> 0.8632713119 | AG45: Moment Ratio Blade A/Blade B | AH45: [-] | AI45: =Global_Var!$E$14 -> 0.6666666667
AA46: Mw | AB46: Mass of disp. Seawater | AC46: [kg] | AD46: =Spar_Thickness_Calculator!AI40*Spar_Thickness_Calculator!AD45 -> 1998.688905 | AE46: =Spar_Thickness_Calculator!AI40*Spar_Thickness_Calculator!AE45 -> 888.3061799
V48: Input/Output | AA48: Intermediate Calculations | AF48: Constants
V49: 4 | Y49: Blade A | Z49: Blade B | AA49: b | AB49: Spar Cap Width | AC49: [m] | AD49: =Spar_Thickness_Calculator!Y50*Spar_Thickness_Calculator!AI57 -> 2.04871485 | AE49: =Spar_Thickness_Calculator!Z50*Spar_Thickness_Calculator!AI57 -> 1.3658099 | AF49: EUD | AG49: Modulus of Sparcap | AH49: [Pa] | AI49: =Global_Var!$E$3 -> 39800000000
V50: C | W50: Chord | X50: [m] | Y50: =L10 -> 3.41452475 | Z50: =Y50*Spar_Thickness_Calculator!AI59 -> 2.276349833 | AA50: t | AB50: Airfoil thickness | AC50: [m] | AD50: =Spar_Thickness_Calculator!Y51*Spar_Thickness_Calculator!Y50/100 -> 0.81948594 | AE50: =Spar_Thickness_Calculator!Z51*Spar_Thickness_Calculator!Z50/100 -> 0.54632396 | AF50: ρs | AG50: Density of sparcap | AH50: [kg/m3] | AI50: =Global_Var!$E$4 -> 1920
V51: AF% | W51: % thickness of foil | X51: [%] | Y51: =N10 -> 24 | Z51: =Y51 -> 24 | AA51: ho | AB51: Section height outer | AC51: [m] | AD51: =AD50*Spar_Thickness_Calculator!AI58 -> 0.696563049 | AE51: =AE50*Spar_Thickness_Calculator!AI58 -> 0.464375366 | AF51: ϵUD(max) | AG51: Max allow design strain Sparcap | AH51: [-] | AI51: =Global_Var!$E$5 -> 0.0029
V52: M | W52: Moment | X52: [n-m] | Y52: =M10 -> 9618492.134 | Z52: =Y52*Spar_Thickness_Calculator!AI60 -> 6412328.089 | AA52: hc | AB52: height of core | AC52: [m] | AD52: =Spar_Thickness_Calculator!AD51-2*Spar_Thickness_Calculator!Y53 -> 0.5517911935 | AE52: =Spar_Thickness_Calculator!AE51-2*Spar_Thickness_Calculator!Z53 -> -0.2363315958 | AF52: σs(allow) | AG52: Allowable stress in Sparcap | AH52: [Pa] | AI52: =Global_Var!$E$6 -> 115420000
V53: t | W53: Spar Cap Thickness | X53: [m] | Y53: 0.07238592773 | Z53: 0.3503534809 | AA53: c | AB53: distance from neutral axis | AC53: [m] | AD53: =Spar_Thickness_Calculator!AD51/2 -> 0.3482815245 | AE53: =Spar_Thickness_Calculator!AE51/2 -> 0.232187683 | AF53: EC | AG53: Modulus of Core | AH53: [Pa] | AI53: =Global_Var!$E$7 -> 3790000
V54: σs(max) | W54: Max Stress in Sparcap | X54: [Pa] | Y54: =(Y52*(Spar_Thickness_Calculator!AD51/2)*Spar_Thickness_Calculator!AI49)/(Spar_Thickness_Calculator!AI49*Spar_Thickness_Calculator!AD54+Spar_Thickness_Calculator!AI53*Spar_Thickness_Calculator!AD55) -> 115433694.2 | Z54: =(Z52*(Spar_Thickness_Calculator!AE51/2)*Spar_Thickness_Calculator!AI49)/(Spar_Thickness_Calculator!AI49*Spar_Thickness_Calculator!AE54+Spar_Thickness_Calculator!AI53*Spar_Thickness_Calculator!AE55) -> 115416677.4 | AA54: Is | AB54: Moment of inertia Spar | AC54: [m4] | AD54: =(Spar_Thickness_Calculator!AD49/12)*(Spar_Thickness_Calculator!AD51^3-Spar_Thickness_Calculator!AD52^3) -> 0.02901776499 | AE54: =(Spar_Thickness_Calculator!AE49/12)*(Spar_Thickness_Calculator!AE51^3-Spar_Thickness_Calculator!AE52^3) -> 0.01290004311 | AF54: ρc | AG54: Density of core | AH54: [kg/m3] | AI54: =Global_Var!$E$8 -> 673
V55: Ww | W55: Wet Weight | X55: [kg] | Y55: =Spar_Thickness_Calculator!AD59+Spar_Thickness_Calculator!AD58-Spar_Thickness_Calculator!AD61 -> -102.4816475 | Z55: =Spar_Thickness_Calculator!AE59+Spar_Thickness_Calculator!AE58-Spar_Thickness_Calculator!AE61 -> 717.6567496 | AA55: Ic | AB55: Moment of inertia Core | AC55: [m4] | AD55: =(Spar_Thickness_Calculator!AD49/12)*Spar_Thickness_Calculator!AD52^3 -> 0.02868299943 | AE55: =(Spar_Thickness_Calculator!AE49/12)*Spar_Thickness_Calculator!AE52^3 -> -0.001502361248 | AF55: ρw | AG55: Density of Seawater | AH55: [kg/m3] | AI55: =Global_Var!$E$9 -> 1029
V56: Ww(rotor) | W56: Wet Weight segment of rotor (+ floats) | X56: [kg] | Y56: =Y55*2 -> -204.9632951 | Z56: =Z55*3 -> 2152.970249 | AA56: Vs | AB56: Volume of Spar | AC56: [m3] | AD56: =Spar_Thickness_Calculator!AD49*Spar_Thickness_Calculator!Y53*Spar_Thickness_Calculator!AI56*2 -> 0.2199755522 | AE56: =Spar_Thickness_Calculator!AE49*Spar_Thickness_Calculator!Z53*Spar_Thickness_Calculator!AI56*2 -> 0.7097991082 | AF56: L | AG56: Section Length | AH56: [m] | AI56: =Global_Var!$E$10 -> 0.7416666667
AA57: Vc | AB57: Volume of Core | AC57: [m3] | AD57: =Spar_Thickness_Calculator!AD52*Spar_Thickness_Calculator!AD49*Spar_Thickness_Calculator!AI56 -> 0.8384265858 | AE57: =Spar_Thickness_Calculator!AE52*Spar_Thickness_Calculator!AE49*Spar_Thickness_Calculator!AI56 -> -0.239398158 | AG57: Beam width in terms of chord | AH57: [-] | AI57: =Global_Var!$E$11 -> 0.6
W58: Spar Strain Limit (Goal Seek to 1) | Y58: =(Y54/$AI$7) -> 1.000118647 | Z58: =(Z54/$AI$7) -> 0.9999712129 | AA58: Ms | AB58: Mass of Spar | AC58: [kg] | AD58: =Spar_Thickness_Calculator!AI50*AD56 -> 422.3530602 | AE58: =Spar_Thickness_Calculator!AI50*AE56 -> 1362.814288 | AG58: Beam height in terms of thickness | AH58: [-] | AI58: 0.85
AA59: Mc | AB59: Mass of Core | AC59: [kg] | AD59: =AD57*Spar_Thickness_Calculator!AI54 -> 564.2610922 | AE59: =AE57*Spar_Thickness_Calculator!AI54 -> -161.1149603 | AG59: Chord Ratio Blade A/Blade B | AH59: [-] | AI59: =Global_Var!$E$13 -> 0.6666666667
AA60: Vd | AB60: Displaced Volume | AC60: [m3] | AD60: =Spar_Thickness_Calculator!AD51*Spar_Thickness_Calculator!AD49*Spar_Thickness_Calculator!AI56 -> 1.058402138 | AE60: =Spar_Thickness_Calculator!AE51*Spar_Thickness_Calculator!AE49*Spar_Thickness_Calculator!AI56 -> 0.4704009502 | AG60: Moment Ratio Blade A/Blade B | AH60: [-] | AI60: =Global_Var!$E$14 -> 0.6666666667
AA61: Mw | AB61: Mass of disp. Seawater | AC61: [kg] | AD61: =Spar_Thickness_Calculator!AI55*Spar_Thickness_Calculator!AD60 -> 1089.0958 | AE61: =Spar_Thickness_Calculator!AI55*Spar_Thickness_Calculator!AE60 -> 484.0425778
V63: Input/Output | AA63: Intermediate Calculations | AF63: Constants
V64: 5 | Y64: Blade A | Z64: Blade B | AA64: b | AB64: Spar Cap Width | AC64: [m] | AD64: =Spar_Thickness_Calculator!Y65*Spar_Thickness_Calculator!AI72 -> 1.6181256 | AE64: =Spar_Thickness_Calculator!Z65*Spar_Thickness_Calculator!AI72 -> 1.0787504 | AF64: EUD | AG64: Modulus of Sparcap | AH64: [Pa] | AI64: =Global_Var!$E$3 -> 39800000000
V65: C | W65: Chord | X65: [m] | Y65: =L11 -> 2.696876 | Z65: =Y65*Spar_Thickness_Calculator!AI74 -> 1.797917333 | AA65: t | AB65: Airfoil thickness | AC65: [m] | AD65: =Spar_Thickness_Calculator!Y66*Spar_Thickness_Calculator!Y65/100 -> 0.62702367 | AE65: =Spar_Thickness_Calculator!Z66*Spar_Thickness_Calculator!Z65/100 -> 0.41801578 | AF65: ρs | AG65: Density of sparcap | AH65: [kg/m3] | AI65: =Global_Var!$E$4 -> 1920
V66: AF% | W66: % thickness of foil | X66: [%] | Y66: =N11 -> 23.25 | Z66: =Y66 -> 23.25 | AA66: ho | AB66: Section height outer | AC66: [m] | AD66: =AD65*Spar_Thickness_Calculator!AI73 -> 0.5329701195 | AE66: =AE65*Spar_Thickness_Calculator!AI73 -> 0.355313413 | AF66: ϵUD(max) | AG66: Max allow design strain Sparcap | AH66: [-] | AI66: =Global_Var!$E$5 -> 0.0029
V67: M | W67: Moment | X67: [n-m] | Y67: =M11 -> 7424471.612 | Z67: =Y67*Spar_Thickness_Calculator!AI75 -> 4949647.741 | AA67: hc | AB67: height of core | AC67: [m] | AD67: =Spar_Thickness_Calculator!AD66-2*Spar_Thickness_Calculator!Y68 -> 0.2899345523 | AE67: =Spar_Thickness_Calculator!AE66-2*Spar_Thickness_Calculator!Z68 -> -0.3416259833 | AF67: σs(allow) | AG67: Allowable stress in Sparcap | AH67: [Pa] | AI67: =Global_Var!$E$6 -> 115420000
V68: t | W68: Spar Cap Thickness | X68: [m] | Y68: 0.1215177836 | Z68: 0.3484696982 | AA68: c | AB68: distance from neutral axis | AC68: [m] | AD68: =Spar_Thickness_Calculator!AD66/2 -> 0.2664850598 | AE68: =Spar_Thickness_Calculator!AE66/2 -> 0.1776567065 | AF68: EC | AG68: Modulus of Core | AH68: [Pa] | AI68: =Global_Var!$E$7 -> 3790000
V69: σs(max) | W69: Max Stress in Sparcap | X69: [Pa] | Y69: =(Y67*(Spar_Thickness_Calculator!AD66/2)*Spar_Thickness_Calculator!AI64)/(Spar_Thickness_Calculator!AI64*Spar_Thickness_Calculator!AD69+Spar_Thickness_Calculator!AI68*Spar_Thickness_Calculator!AD70) -> 115510729.5 | Z69: =(Z67*(Spar_Thickness_Calculator!AE66/2)*Spar_Thickness_Calculator!AI64)/(Spar_Thickness_Calculator!AI64*Spar_Thickness_Calculator!AE69+Spar_Thickness_Calculator!AI68*Spar_Thickness_Calculator!AE70) -> 115453830.6 | AA69: Is | AB69: Moment of inertia Spar | AC69: [m4] | AD69: =(Spar_Thickness_Calculator!AD64/12)*(Spar_Thickness_Calculator!AD66^3-Spar_Thickness_Calculator!AD67^3) -> 0.01712805918 | AE69: =(Spar_Thickness_Calculator!AE64/12)*(Spar_Thickness_Calculator!AE66^3-Spar_Thickness_Calculator!AE67^3) -> 0.007616702859 | AF69: ρc | AG69: Density of core | AH69: [kg/m3] | AI69: =Global_Var!$E$8 -> 673
V70: Ww | W70: Wet Weight | X70: [kg] | Y70: =Spar_Thickness_Calculator!AD74+Spar_Thickness_Calculator!AD73-Spar_Thickness_Calculator!AD76 -> 136.0060334 | Z70: =Spar_Thickness_Calculator!AE74+Spar_Thickness_Calculator!AE73-Spar_Thickness_Calculator!AE76 -> 594.1278494 | AA70: Ic | AB70: Moment of inertia Core | AC70: [m4] | AD70: =(Spar_Thickness_Calculator!AD64/12)*Spar_Thickness_Calculator!AD67^3 -> 0.003286479338 | AE70: =(Spar_Thickness_Calculator!AE64/12)*Spar_Thickness_Calculator!AE67^3 -> -0.003584201424 | AF70: ρw | AG70: Density of Seawater | AH70: [kg/m3] | AI70: =Global_Var!$E$9 -> 1029
V71: Ww(rotor) | W71: Wet Weight segment of rotor (+ floats) | X71: [kg] | Y71: =Y70*2 -> 272.0120668 | Z71: =Z70*3 -> 1782.383548 | AA71: Vs | AB71: Volume of Spar | AC71: [m3] | AD71: =Spar_Thickness_Calculator!AD64*Spar_Thickness_Calculator!Y68*Spar_Thickness_Calculator!AI71*2 -> 0.2916693708 | AE71: =Spar_Thickness_Calculator!AE64*Spar_Thickness_Calculator!Z68*Spar_Thickness_Calculator!AI71*2 -> 0.5576025423 | AF71: L | AG71: Section Length | AH71: [m] | AI71: =Global_Var!$E$10 -> 0.7416666667
AA72: Vc | AB72: Volume of Core | AC72: [m3] | AD72: =Spar_Thickness_Calculator!AD67*Spar_Thickness_Calculator!AD64*Spar_Thickness_Calculator!AI71 -> 0.3479533034 | AE72: =Spar_Thickness_Calculator!AE67*Spar_Thickness_Calculator!AE64*Spar_Thickness_Calculator!AI71 -> -0.2733257982 | AG72: Beam width in terms of chord | AH72: [-] | AI72: =Global_Var!$E$11 -> 0.6
W73: Spar Strain Limit (Goal Seek to 1) | Y73: =(Y69/$AI$7) -> 1.000786081 | Z73: =(Z69/$AI$7) -> 1.000293109 | AA73: Ms | AB73: Mass of Spar | AC73: [kg] | AD73: =Spar_Thickness_Calculator!AI65*AD71 -> 560.005192 | AE73: =Spar_Thickness_Calculator!AI65*AE71 -> 1070.596881 | AG73: Beam height in terms of thickness | AH73: [-] | AI73: 0.85
AA74: Mc | AB74: Mass of Core | AC74: [kg] | AD74: =AD72*Spar_Thickness_Calculator!AI69 -> 234.1725732 | AE74: =AE72*Spar_Thickness_Calculator!AI69 -> -183.9482622 | AG74: Chord Ratio Blade A/Blade B | AH74: [-] | AI74: =Global_Var!$E$13 -> 0.6666666667
AA75: Vd | AB75: Displaced Volume | AC75: [m3] | AD75: =Spar_Thickness_Calculator!AD66*Spar_Thickness_Calculator!AD64*Spar_Thickness_Calculator!AI71 -> 0.6396226742 | AE75: =Spar_Thickness_Calculator!AE66*Spar_Thickness_Calculator!AE64*Spar_Thickness_Calculator!AI71 -> 0.2842767441 | AG75: Moment Ratio Blade A/Blade B | AH75: [-] | AI75: =Global_Var!$E$14 -> 0.6666666667
AA76: Mw | AB76: Mass of disp. Seawater | AC76: [kg] | AD76: =Spar_Thickness_Calculator!AI70*Spar_Thickness_Calculator!AD75 -> 658.1717317 | AE76: =Spar_Thickness_Calculator!AI70*Spar_Thickness_Calculator!AE75 -> 292.5207697
V78: Input/Output | AA78: Intermediate Calculations | AF78: Constants
V79: 6 | Y79: Blade A | Z79: Blade B | AA79: b | AB79: Spar Cap Width | AC79: [m] | AD79: =Spar_Thickness_Calculator!Y80*Spar_Thickness_Calculator!AI87 -> 1.3383279 | AE79: =Spar_Thickness_Calculator!Z80*Spar_Thickness_Calculator!AI87 -> 0.8922186 | AF79: EUD | AG79: Modulus of Sparcap | AH79: [Pa] | AI79: =Global_Var!$E$3 -> 39800000000
V80: C | W80: Chord | X80: [m] | Y80: =L12 -> 2.2305465 | Z80: =Y80*Spar_Thickness_Calculator!AI89 -> 1.487031 | AA80: t | AB80: Airfoil thickness | AC80: [m] | AD80: =Spar_Thickness_Calculator!Y81*Spar_Thickness_Calculator!Y80/100 -> 0.5018729625 | AE80: =Spar_Thickness_Calculator!Z81*Spar_Thickness_Calculator!Z80/100 -> 0.334581975 | AF80: ρs | AG80: Density of sparcap | AH80: [kg/m3] | AI80: =Global_Var!$E$4 -> 1920
V81: AF% | W81: % thickness of foil | X81: [%] | Y81: =N12 -> 22.5 | Z81: =Y81 -> 22.5 | AA81: ho | AB81: Section height outer | AC81: [m] | AD81: =AD80*Spar_Thickness_Calculator!AI88 -> 0.4265920181 | AE81: =AE80*Spar_Thickness_Calculator!AI88 -> 0.2843946787 | AF81: ϵUD(max) | AG81: Max allow design strain Sparcap | AH81: [-] | AI81: =Global_Var!$E$5 -> 0.0029
V82: M | W82: Moment | X82: [n-m] | Y82: =M12 -> 5426667.2 | Z82: =Y82*Spar_Thickness_Calculator!AI90 -> 3617778.133 | AA82: hc | AB82: height of core | AC82: [m] | AD82: =Spar_Thickness_Calculator!AD81-2*Spar_Thickness_Calculator!Y83 -> -0.2307856589 | AE82: =Spar_Thickness_Calculator!AE81-2*Spar_Thickness_Calculator!Z83 -> -0.3329167949 | AF82: σs(allow) | AG82: Allowable stress in Sparcap | AH82: [Pa] | AI82: =Global_Var!$E$6 -> 115420000
V83: t | W83: Spar Cap Thickness | X83: [m] | Y83: 0.3286888385 | Z83: 0.3086557368 | AA83: c | AB83: distance from neutral axis | AC83: [m] | AD83: =Spar_Thickness_Calculator!AD81/2 -> 0.2132960091 | AE83: =Spar_Thickness_Calculator!AE81/2 -> 0.1421973394 | AF83: EC | AG83: Modulus of Core | AH83: [Pa] | AI83: =Global_Var!$E$7 -> 3790000
V84: σs(max) | W84: Max Stress in Sparcap | X84: [Pa] | Y84: =(Y82*(Spar_Thickness_Calculator!AD81/2)*Spar_Thickness_Calculator!AI79)/(Spar_Thickness_Calculator!AI79*Spar_Thickness_Calculator!AD84+Spar_Thickness_Calculator!AI83*Spar_Thickness_Calculator!AD85) -> 115416095.8 | Z84: =(Z82*(Spar_Thickness_Calculator!AE81/2)*Spar_Thickness_Calculator!AI79)/(Spar_Thickness_Calculator!AI79*Spar_Thickness_Calculator!AE84+Spar_Thickness_Calculator!AI83*Spar_Thickness_Calculator!AE85) -> 115515389.4 | AA84: Is | AB84: Moment of inertia Spar | AC84: [m4] | AD84: =(Spar_Thickness_Calculator!AD79/12)*(Spar_Thickness_Calculator!AD81^3-Spar_Thickness_Calculator!AD82^3) -> 0.01002894367 | AE84: =(Spar_Thickness_Calculator!AE79/12)*(Spar_Thickness_Calculator!AE81^3-Spar_Thickness_Calculator!AE82^3) -> 0.004453680205 | AF84: ρc | AG84: Density of core | AH84: [kg/m3] | AI84: =Global_Var!$E$8 -> 673
V85: Ww | W85: Wet Weight | X85: [kg] | Y85: =Spar_Thickness_Calculator!AD89+Spar_Thickness_Calculator!AD88-Spar_Thickness_Calculator!AD91 -> 662.9363224 | Z85: =Spar_Thickness_Calculator!AE89+Spar_Thickness_Calculator!AE88-Spar_Thickness_Calculator!AE91 -> 442.394089 | AA85: Ic | AB85: Moment of inertia Core | AC85: [m4] | AD85: =(Spar_Thickness_Calculator!AD79/12)*Spar_Thickness_Calculator!AD82^3 -> -0.001370906198 | AE85: =(Spar_Thickness_Calculator!AE79/12)*Spar_Thickness_Calculator!AE82^3 -> -0.00274345058 | AF85: ρw | AG85: Density of Seawater | AH85: [kg/m3] | AI85: =Global_Var!$E$9 -> 1029
V86: Ww(rotor) | W86: Wet Weight segment of rotor (+ floats) | X86: [kg] | Y86: =Y85*2 -> 1325.872645 | Z86: =Z85*3 -> 1327.182267 | AA86: Vs | AB86: Volume of Spar | AC86: [m3] | AD86: =Spar_Thickness_Calculator!AD79*Spar_Thickness_Calculator!Y83*Spar_Thickness_Calculator!AI86*2 -> 0.6525086071 | AE86: =Spar_Thickness_Calculator!AE79*Spar_Thickness_Calculator!Z83*Spar_Thickness_Calculator!AI86*2 -> 0.4084927776 | AF86: L | AG86: Section Length | AH86: [m] | AI86: =Global_Var!$E$10 -> 0.7416666667
AA87: Vc | AB87: Volume of Core | AC87: [m3] | AD87: =Spar_Thickness_Calculator!AD82*Spar_Thickness_Calculator!AD79*Spar_Thickness_Calculator!AI86 -> -0.2290762739 | AE87: =Spar_Thickness_Calculator!AE82*Spar_Thickness_Calculator!AE79*Spar_Thickness_Calculator!AI86 -> -0.2203006295 | AG87: Beam width in terms of chord | AH87: [-] | AI87: =Global_Var!$E$11 -> 0.6
W88: Spar Strain Limit (Goal Seek to 1) | Y88: =(Y84/$AI$7) -> 0.9999661736 | Z88: =(Z84/$AI$7) -> 1.000826455 | AA88: Ms | AB88: Mass of Spar | AC88: [kg] | AD88: =Spar_Thickness_Calculator!AI80*AD86 -> 1252.816526 | AE88: =Spar_Thickness_Calculator!AI80*AE86 -> 784.306133 | AG88: Beam height in terms of thickness | AH88: [-] | AI88: 0.85
AA89: Mc | AB89: Mass of Core | AC89: [kg] | AD89: =AD87*Spar_Thickness_Calculator!AI84 -> -154.1683324 | AE89: =AE87*Spar_Thickness_Calculator!AI84 -> -148.2623237 | AG89: Chord Ratio Blade A/Blade B | AH89: [-] | AI89: =Global_Var!$E$13 -> 0.6666666667
AA90: Vd | AB90: Displaced Volume | AC90: [m3] | AD90: =Spar_Thickness_Calculator!AD81*Spar_Thickness_Calculator!AD79*Spar_Thickness_Calculator!AI86 -> 0.4234323332 | AE90: =Spar_Thickness_Calculator!AE81*Spar_Thickness_Calculator!AE79*Spar_Thickness_Calculator!AI86 -> 0.1881921481 | AG90: Moment Ratio Blade A/Blade B | AH90: [-] | AI90: =Global_Var!$E$14 -> 0.6666666667
AA91: Mw | AB91: Mass of disp. Seawater | AC91: [kg] | AD91: =Spar_Thickness_Calculator!AI85*Spar_Thickness_Calculator!AD90 -> 435.7118708 | AE91: =Spar_Thickness_Calculator!AI85*Spar_Thickness_Calculator!AE90 -> 193.6497204
V93: Input/Output | AA93: Intermediate Calculations | AF93: Constants
V94: 7 | Y94: Blade A | Z94: Blade B | AA94: b | AB94: Spar Cap Width | AC94: [m] | AD94: =Spar_Thickness_Calculator!Y95*Spar_Thickness_Calculator!AI102 -> 1.1468184 | AE94: =Spar_Thickness_Calculator!Z95*Spar_Thickness_Calculator!AI102 -> 0.7645456 | AF94: EUD | AG94: Modulus of Sparcap | AH94: [Pa] | AI94: =Global_Var!$E$3 -> 39800000000
V95: C | W95: Chord | X95: [m] | Y95: =L13 -> 1.911364 | Z95: =Y95*Spar_Thickness_Calculator!AI104 -> 1.274242667 | AA95: t | AB95: Airfoil thickness | AC95: [m] | AD95: =Spar_Thickness_Calculator!Y96*Spar_Thickness_Calculator!Y95/100 -> 0.41572167 | AE95: =Spar_Thickness_Calculator!Z96*Spar_Thickness_Calculator!Z95/100 -> 0.27714778 | AF95: ρs | AG95: Density of sparcap | AH95: [kg/m3] | AI95: =Global_Var!$E$4 -> 1920
V96: AF% | W96: % thickness of foil | X96: [%] | Y96: =N13 -> 21.75 | Z96: =Y96 -> 21.75 | AA96: ho | AB96: Section height outer | AC96: [m] | AD96: =AD95*Spar_Thickness_Calculator!AI103 -> 0.3533634195 | AE96: =AE95*Spar_Thickness_Calculator!AI103 -> 0.235575613 | AF96: ϵUD(max) | AG96: Max allow design strain Sparcap | AH96: [-] | AI96: =Global_Var!$E$5 -> 0.0029
V97: M | W97: Moment | X97: [n-m] | Y97: =M13 -> 3663270.908 | Z97: =Y97*Spar_Thickness_Calculator!AI105 -> 2442180.605 | AA97: hc | AB97: height of core | AC97: [m] | AD97: =Spar_Thickness_Calculator!AD96-2*Spar_Thickness_Calculator!Y98 -> -0.2441755471 | AE97: =Spar_Thickness_Calculator!AE96-2*Spar_Thickness_Calculator!Z98 -> -0.2964299623 | AF97: σs(allow) | AG97: Allowable stress in Sparcap | AH97: [Pa] | AI97: =Global_Var!$E$6 -> 115420000
V98: t | W98: Spar Cap Thickness | X98: [m] | Y98: 0.2987694833 | Z98: 0.2660027876 | AA98: c | AB98: distance from neutral axis | AC98: [m] | AD98: =Spar_Thickness_Calculator!AD96/2 -> 0.1766817097 | AE98: =Spar_Thickness_Calculator!AE96/2 -> 0.1177878065 | AF98: EC | AG98: Modulus of Core | AH98: [Pa] | AI98: =Global_Var!$E$7 -> 3790000
V99: σs(max) | W99: Max Stress in Sparcap | X99: [Pa] | Y99: =(Y97*(Spar_Thickness_Calculator!AD96/2)*Spar_Thickness_Calculator!AI94)/(Spar_Thickness_Calculator!AI94*Spar_Thickness_Calculator!AD99+Spar_Thickness_Calculator!AI98*Spar_Thickness_Calculator!AD100) -> 115414131.8 | Z99: =(Z97*(Spar_Thickness_Calculator!AE96/2)*Spar_Thickness_Calculator!AI94)/(Spar_Thickness_Calculator!AI94*Spar_Thickness_Calculator!AE99+Spar_Thickness_Calculator!AI98*Spar_Thickness_Calculator!AE100) -> 115418036.7 | AA99: Is | AB99: Moment of inertia Spar | AC99: [m4] | AD99: =(Spar_Thickness_Calculator!AD94/12)*(Spar_Thickness_Calculator!AD96^3-Spar_Thickness_Calculator!AD97^3) -> 0.005608050313 | AE99: =(Spar_Thickness_Calculator!AE94/12)*(Spar_Thickness_Calculator!AE96^3-Spar_Thickness_Calculator!AE97^3) -> 0.002492481631 | AF99: ρc | AG99: Density of core | AH99: [kg/m3] | AI99: =Global_Var!$E$8 -> 673
V100: Ww | W100: Wet Weight | X100: [kg] | Y100: =Spar_Thickness_Calculator!AD104+Spar_Thickness_Calculator!AD103-Spar_Thickness_Calculator!AD106 -> 526.7786134 | Z100: =Spar_Thickness_Calculator!AE104+Spar_Thickness_Calculator!AE103-Spar_Thickness_Calculator!AE106 -> 328.6246164 | AA100: Ic | AB100: Moment of inertia Core | AC100: [m4] | AD100: =(Spar_Thickness_Calculator!AD94/12)*Spar_Thickness_Calculator!AD97^3 -> -0.001391297211 | AE100: =(Spar_Thickness_Calculator!AE94/12)*Spar_Thickness_Calculator!AE97^3 -> -0.001659542747 | AF100: ρw | AG100: Density of Seawater | AH100: [kg/m3] | AI100: =Global_Var!$E$9 -> 1029
V101: Ww(rotor) | W101: Wet Weight segment of rotor (+ floats) | X101: [kg] | Y101: =Y100*2 -> 1053.557227 | Z101: =Z100*3 -> 985.8738491 | AA101: Vs | AB101: Volume of Spar | AC101: [m3] | AD101: =Spar_Thickness_Calculator!AD94*Spar_Thickness_Calculator!Y98*Spar_Thickness_Calculator!AI101*2 -> 0.5082409388 | AE101: =Spar_Thickness_Calculator!AE94*Spar_Thickness_Calculator!Z98*Spar_Thickness_Calculator!AI101*2 -> 0.3016673703 | AF101: L | AG101: Section Length | AH101: [m] | AI101: =Global_Var!$E$10 -> 0.7416666667
AA102: Vc | AB102: Volume of Core | AC102: [m3] | AD102: =Spar_Thickness_Calculator!AD97*Spar_Thickness_Calculator!AD94*Spar_Thickness_Calculator!AI101 -> -0.2076852159 | AE102: =Spar_Thickness_Calculator!AE97*Spar_Thickness_Calculator!AE94*Spar_Thickness_Calculator!AI101 -> -0.168087049 | AG102: Beam width in terms of chord | AH102: [-] | AI102: =Global_Var!$E$11 -> 0.6
W103: Spar Strain Limit (Goal Seek to 1) | Y103: =(Y99/$AI$7) -> 0.9999491582 | Z103: =(Z99/$AI$7) -> 0.9999829897 | AA103: Ms | AB103: Mass of Spar | AC103: [kg] | AD103: =Spar_Thickness_Calculator!AI95*AD101 -> 975.8226026 | AE103: =Spar_Thickness_Calculator!AI95*AE101 -> 579.201351 | AG103: Beam height in terms of thickness | AH103: [-] | AI103: 0.85
AA104: Mc | AB104: Mass of Core | AC104: [kg] | AD104: =AD102*Spar_Thickness_Calculator!AI99 -> -139.7721503 | AE104: =AE102*Spar_Thickness_Calculator!AI99 -> -113.122584 | AG104: Chord Ratio Blade A/Blade B | AH104: [-] | AI104: =Global_Var!$E$13 -> 0.6666666667
AA105: Vd | AB105: Displaced Volume | AC105: [m3] | AD105: =Spar_Thickness_Calculator!AD96*Spar_Thickness_Calculator!AD94*Spar_Thickness_Calculator!AI101 -> 0.3005557229 | AE105: =Spar_Thickness_Calculator!AE96*Spar_Thickness_Calculator!AE94*Spar_Thickness_Calculator!AI101 -> 0.1335803213 | AG105: Moment Ratio Blade A/Blade B | AH105: [-] | AI105: =Global_Var!$E$14 -> 0.6666666667
AA106: Mw | AB106: Mass of disp. Seawater | AC106: [kg] | AD106: =Spar_Thickness_Calculator!AI100*Spar_Thickness_Calculator!AD105 -> 309.2718389 | AE106: =Spar_Thickness_Calculator!AI100*Spar_Thickness_Calculator!AE105 -> 137.4541506
V108: Input/Output | AA108: Intermediate Calculations | AF108: Constants
V109: 8 | Y109: Blade A | Z109: Blade B | AA109: b | AB109: Spar Cap Width | AC109: [m] | AD109: =Spar_Thickness_Calculator!Y110*Spar_Thickness_Calculator!AI117 -> 1.0059231 | AE109: =Spar_Thickness_Calculator!Z110*Spar_Thickness_Calculator!AI117 -> 0.6706154 | AF109: EUD | AG109: Modulus of Sparcap | AH109: [Pa] | AI109: =Global_Var!$E$3 -> 39800000000
V110: C | W110: Chord | X110: [m] | Y110: =L14 -> 1.6765385 | Z110: =Y110*Spar_Thickness_Calculator!AI119 -> 1.117692333 | AA110: t | AB110: Airfoil thickness | AC110: [m] | AD110: =Spar_Thickness_Calculator!Y111*Spar_Thickness_Calculator!Y110/100 -> 0.352073085 | AE110: =Spar_Thickness_Calculator!Z111*Spar_Thickness_Calculator!Z110/100 -> 0.23471539 | AF110: ρs | AG110: Density of sparcap | AH110: [kg/m3] | AI110: =Global_Var!$E$4 -> 1920
V111: AF% | W111: % thickness of foil | X111: [%] | Y111: =N14 -> 21 | Z111: =Y111 -> 21 | AA111: ho | AB111: Section height outer | AC111: [m] | AD111: =AD110*Spar_Thickness_Calculator!AI118 -> 0.2992621222 | AE111: =AE110*Spar_Thickness_Calculator!AI118 -> 0.1995080815 | AF111: ϵUD(max) | AG111: Max allow design strain Sparcap | AH111: [-] | AI111: =Global_Var!$E$5 -> 0.0029
V112: M | W112: Moment | X112: [n-m] | Y112: =M14 -> 2189716.612 | Z112: =Y112*Spar_Thickness_Calculator!AI120 -> 1459811.075 | AA112: hc | AB112: height of core | AC112: [m] | AD112: =Spar_Thickness_Calculator!AD111-2*Spar_Thickness_Calculator!Y113 -> -0.1918949127 | AE112: =Spar_Thickness_Calculator!AE111-2*Spar_Thickness_Calculator!Z113 -> -0.2444891654 | AF112: σs(allow) | AG112: Allowable stress in Sparcap | AH112: [Pa] | AI112: =Global_Var!$E$6 -> 115420000
V113: t | W113: Spar Cap Thickness | X113: [m] | Y113: 0.2455785175 | Z113: 0.2219986235 | AA113: c | AB113: distance from neutral axis | AC113: [m] | AD113: =Spar_Thickness_Calculator!AD111/2 -> 0.1496310611 | AE113: =Spar_Thickness_Calculator!AE111/2 -> 0.09975404075 | AF113: EC | AG113: Modulus of Core | AH113: [Pa] | AI113: =Global_Var!$E$7 -> 3790000
V114: σs(max) | W114: Max Stress in Sparcap | X114: [Pa] | Y114: =(Y112*(Spar_Thickness_Calculator!AD111/2)*Spar_Thickness_Calculator!AI109)/(Spar_Thickness_Calculator!AI109*Spar_Thickness_Calculator!AD114+Spar_Thickness_Calculator!AI113*Spar_Thickness_Calculator!AD115) -> 115412054.5 | Z114: =(Z112*(Spar_Thickness_Calculator!AE111/2)*Spar_Thickness_Calculator!AI109)/(Spar_Thickness_Calculator!AI109*Spar_Thickness_Calculator!AE114+Spar_Thickness_Calculator!AI113*Spar_Thickness_Calculator!AE115) -> 115534133.2 | AA114: Is | AB114: Moment of inertia Spar | AC114: [m4] | AD114: =(Spar_Thickness_Calculator!AD109/12)*(Spar_Thickness_Calculator!AD111^3-Spar_Thickness_Calculator!AD112^3) -> 0.00283901133 | AE114: =(Spar_Thickness_Calculator!AE109/12)*(Spar_Thickness_Calculator!AE111^3-Spar_Thickness_Calculator!AE112^3) -> 0.001260502285 | AF114: ρc | AG114: Density of core | AH114: [kg/m3] | AI114: =Global_Var!$E$8 -> 673
V115: Ww | W115: Wet Weight | X115: [kg] | Y115: =Spar_Thickness_Calculator!AD119+Spar_Thickness_Calculator!AD118-Spar_Thickness_Calculator!AD121 -> 377.4580585 | Z115: =Spar_Thickness_Calculator!AE119+Spar_Thickness_Calculator!AE118-Spar_Thickness_Calculator!AE121 -> 240.0519931 | AA115: Ic | AB115: Moment of inertia Core | AC115: [m4] | AD115: =(Spar_Thickness_Calculator!AD109/12)*Spar_Thickness_Calculator!AD112^3 -> -0.0005923438985 | AE115: =(Spar_Thickness_Calculator!AE109/12)*Spar_Thickness_Calculator!AE112^3 -> -0.0008167161253 | AF115: ρw | AG115: Density of Seawater | AH115: [kg/m3] | AI115: =Global_Var!$E$9 -> 1029
V116: Ww(rotor) | W116: Wet Weight segment of rotor (+ floats) | X116: [kg] | Y116: =Y115*2 -> 754.9161169 | Z116: =Z115*3 -> 720.1559793 | AA116: Vs | AB116: Volume of Spar | AC116: [m3] | AD116: =Spar_Thickness_Calculator!AD109*Spar_Thickness_Calculator!Y113*Spar_Thickness_Calculator!AI116*2 -> 0.366432437 | AE116: =Spar_Thickness_Calculator!AE109*Spar_Thickness_Calculator!Z113*Spar_Thickness_Calculator!AI116*2 -> 0.2208322819 | AF116: L | AG116: Section Length | AH116: [m] | AI116: =Global_Var!$E$10 -> 0.7416666667
AA117: Vc | AB117: Volume of Core | AC117: [m3] | AD117: =Spar_Thickness_Calculator!AD112*Spar_Thickness_Calculator!AD109*Spar_Thickness_Calculator!AI116 -> -0.143165048 | AE117: =Spar_Thickness_Calculator!AE112*Spar_Thickness_Calculator!AE109*Spar_Thickness_Calculator!AI116 -> -0.1216023313 | AG117: Beam width in terms of chord | AH117: [-] | AI117: =Global_Var!$E$11 -> 0.6
W118: Spar Strain Limit (Goal Seek to 1) | Y118: =(Y114/$AI$7) -> 0.9999311598 | Z118: =(Z114/$AI$7) -> 1.000988851 | AA118: Ms | AB118: Mass of Spar | AC118: [kg] | AD118: =Spar_Thickness_Calculator!AI110*AD116 -> 703.550279 | AE118: =Spar_Thickness_Calculator!AI110*AE116 -> 423.9979813 | AG118: Beam height in terms of thickness | AH118: [-] | AI118: 0.85
AA119: Mc | AB119: Mass of Core | AC119: [kg] | AD119: =AD117*Spar_Thickness_Calculator!AI114 -> -96.35007733 | AE119: =AE117*Spar_Thickness_Calculator!AI114 -> -81.83836894 | AG119: Chord Ratio Blade A/Blade B | AH119: [-] | AI119: =Global_Var!$E$13 -> 0.6666666667
AA120: Vd | AB120: Displaced Volume | AC120: [m3] | AD120: =Spar_Thickness_Calculator!AD111*Spar_Thickness_Calculator!AD109*Spar_Thickness_Calculator!AI116 -> 0.2232673889 | AE120: =Spar_Thickness_Calculator!AE111*Spar_Thickness_Calculator!AE109*Spar_Thickness_Calculator!AI116 -> 0.09922995064 | AG120: Moment Ratio Blade A/Blade B | AH120: [-] | AI120: =Global_Var!$E$14 -> 0.6666666667
AA121: Mw | AB121: Mass of disp. Seawater | AC121: [kg] | AD121: =Spar_Thickness_Calculator!AI115*Spar_Thickness_Calculator!AD120 -> 229.7421432 | AE121: =Spar_Thickness_Calculator!AI115*Spar_Thickness_Calculator!AE120 -> 102.1076192
V123: Input/Output | AA123: Intermediate Calculations | AF123: Constants
V124: 9 | Y124: Blade A | Z124: Blade B | AA124: b | AB124: Spar Cap Width | AC124: [m] | AD124: =Spar_Thickness_Calculator!Y125*Spar_Thickness_Calculator!AI132 -> 0.85259265 | AE124: =Spar_Thickness_Calculator!Z125*Spar_Thickness_Calculator!AI132 -> 0.5683951 | AF124: EUD | AG124: Modulus of Sparcap | AH124: [Pa] | AI124: =Global_Var!$E$3 -> 39800000000
V125: C | W125: Chord | X125: [m] | Y125: =L15 -> 1.42098775 | Z125: =Y125*Spar_Thickness_Calculator!AI134 -> 0.9473251667 | AA125: t | AB125: Airfoil thickness | AC125: [m] | AD125: =Spar_Thickness_Calculator!Y126*Spar_Thickness_Calculator!Y125/100 -> 0.2747242983 | AE125: =Spar_Thickness_Calculator!Z126*Spar_Thickness_Calculator!Z125/100 -> 0.1831495322 | AF125: ρs | AG125: Density of sparcap | AH125: [kg/m3] | AI125: =Global_Var!$E$4 -> 1920
V126: AF% | W126: % thickness of foil | X126: [%] | Y126: =N15 -> 19.33333333 | Z126: =Y126 -> 19.33333333 | AA126: ho | AB126: Section height outer | AC126: [m] | AD126: =AD125*Spar_Thickness_Calculator!AI133 -> 0.2335156536 | AE126: =AE125*Spar_Thickness_Calculator!AI133 -> 0.1556771024 | AF126: ϵUD(max) | AG126: Max allow design strain Sparcap | AH126: [-] | AI126: =Global_Var!$E$5 -> 0.0029
V127: M | W127: Moment | X127: [n-m] | Y127: =M15 -> 1062400.104 | Z127: =Y127*Spar_Thickness_Calculator!AI135 -> 708266.7359 | AA127: hc | AB127: height of core | AC127: [m] | AD127: =Spar_Thickness_Calculator!AD126-2*Spar_Thickness_Calculator!Y128 -> -0.1337704073 | AE127: =Spar_Thickness_Calculator!AE126-2*Spar_Thickness_Calculator!Z128 -> -0.1847218621 | AF127: σs(allow) | AG127: Allowable stress in Sparcap | AH127: [Pa] | AI127: =Global_Var!$E$6 -> 115420000
V128: t | W128: Spar Cap Thickness | X128: [m] | Y128: 0.1836430304 | Z128: 0.1701994822 | AA128: c | AB128: distance from neutral axis | AC128: [m] | AD128: =Spar_Thickness_Calculator!AD126/2 -> 0.1167578268 | AE128: =Spar_Thickness_Calculator!AE126/2 -> 0.07783855119 | AF128: EC | AG128: Modulus of Core | AH128: [Pa] | AI128: =Global_Var!$E$7 -> 3790000
V129: σs(max) | W129: Max Stress in Sparcap | X129: [Pa] | Y129: =(Y127*(Spar_Thickness_Calculator!AD126/2)*Spar_Thickness_Calculator!AI124)/(Spar_Thickness_Calculator!AI124*Spar_Thickness_Calculator!AD129+Spar_Thickness_Calculator!AI128*Spar_Thickness_Calculator!AD130) -> 115414385.5 | Z129: =(Z127*(Spar_Thickness_Calculator!AE126/2)*Spar_Thickness_Calculator!AI124)/(Spar_Thickness_Calculator!AI124*Spar_Thickness_Calculator!AE129+Spar_Thickness_Calculator!AI128*Spar_Thickness_Calculator!AE130) -> 115520800.6 | AA129: Is | AB129: Moment of inertia Spar | AC129: [m4] | AD129: =(Spar_Thickness_Calculator!AD124/12)*(Spar_Thickness_Calculator!AD126^3-Spar_Thickness_Calculator!AD127^3) -> 0.001074782801 | AE129: =(Spar_Thickness_Calculator!AE124/12)*(Spar_Thickness_Calculator!AE126^3-Spar_Thickness_Calculator!AE127^3) -> 0.0004772624547 | AF129: ρc | AG129: Density of core | AH129: [kg/m3] | AI129: =Global_Var!$E$8 -> 673
V130: Ww | W130: Wet Weight | X130: [kg] | Y130: =Spar_Thickness_Calculator!AD134+Spar_Thickness_Calculator!AD133-Spar_Thickness_Calculator!AD136 -> 237.0477478 | Z130: =Spar_Thickness_Calculator!AE134+Spar_Thickness_Calculator!AE133-Spar_Thickness_Calculator!AE136 -> 155.5793304 | AA130: Ic | AB130: Moment of inertia Core | AC130: [m4] | AD130: =(Spar_Thickness_Calculator!AD124/12)*Spar_Thickness_Calculator!AD127^3 -> -0.0001700750026 | AE130: =(Spar_Thickness_Calculator!AE124/12)*Spar_Thickness_Calculator!AE127^3 -> -0.0002985547414 | AF130: ρw | AG130: Density of Seawater | AH130: [kg/m3] | AI130: =Global_Var!$E$9 -> 1029
V131: Ww(rotor) | W131: Wet Weight segment of rotor (+ floats) | X131: [kg] | Y131: =Y130*2 -> 474.0954957 | Z131: =Z130*3 -> 466.7379911 | AA131: Vs | AB131: Volume of Spar | AC131: [m3] | AD131: =Spar_Thickness_Calculator!AD124*Spar_Thickness_Calculator!Y128*Spar_Thickness_Calculator!AI131*2 -> 0.232249502 | AE131: =Spar_Thickness_Calculator!AE124*Spar_Thickness_Calculator!Z128*Spar_Thickness_Calculator!AI131*2 -> 0.1434984851 | AF131: L | AG131: Section Length | AH131: [m] | AI131: =Global_Var!$E$10 -> 0.7416666667
AA132: Vc | AB132: Volume of Core | AC132: [m3] | AD132: =Spar_Thickness_Calculator!AD127*Spar_Thickness_Calculator!AD124*Spar_Thickness_Calculator!AI131 -> -0.08458831898 | AE132: =Spar_Thickness_Calculator!AE127*Spar_Thickness_Calculator!AE124*Spar_Thickness_Calculator!AI131 -> -0.07787129261 | AG132: Beam width in terms of chord | AH132: [-] | AI132: =Global_Var!$E$11 -> 0.6
W133: Spar Strain Limit (Goal Seek to 1) | Y133: =(Y129/$AI$7) -> 0.9999513555 | Z133: =(Z129/$AI$7) -> 1.000873337 | AA133: Ms | AB133: Mass of Spar | AC133: [kg] | AD133: =Spar_Thickness_Calculator!AI125*AD131 -> 445.9190438 | AE133: =Spar_Thickness_Calculator!AI125*AE131 -> 275.5170913 | AG133: Beam height in terms of thickness | AH133: [-] | AI133: 0.85
AA134: Mc | AB134: Mass of Core | AC134: [kg] | AD134: =AD132*Spar_Thickness_Calculator!AI129 -> -56.92793867 | AE134: =AE132*Spar_Thickness_Calculator!AI129 -> -52.40737993 | AG134: Chord Ratio Blade A/Blade B | AH134: [-] | AI134: =Global_Var!$E$13 -> 0.6666666667
AA135: Vd | AB135: Displaced Volume | AC135: [m3] | AD135: =Spar_Thickness_Calculator!AD126*Spar_Thickness_Calculator!AD124*Spar_Thickness_Calculator!AI131 -> 0.147661183 | AE135: =Spar_Thickness_Calculator!AE126*Spar_Thickness_Calculator!AE124*Spar_Thickness_Calculator!AI131 -> 0.06562719245 | AG135: Moment Ratio Blade A/Blade B | AH135: [-] | AI135: =Global_Var!$E$14 -> 0.6666666667
AA136: Mw | AB136: Mass of disp. Seawater | AC136: [kg] | AD136: =Spar_Thickness_Calculator!AI130*Spar_Thickness_Calculator!AD135 -> 151.9433573 | AE136: =Spar_Thickness_Calculator!AI130*Spar_Thickness_Calculator!AE135 -> 67.53038103
V138: Input/Output | AA138: Intermediate Calculations | AF138: Constants
V139: 10 | Y139: Blade A | Z139: Blade B | AA139: b | AB139: Spar Cap Width | AC139: [m] | AD139: =Spar_Thickness_Calculator!Y140*Spar_Thickness_Calculator!AI147 -> 0.6908538 | AE139: =Spar_Thickness_Calculator!Z140*Spar_Thickness_Calculator!AI147 -> 0.4605692 | AF139: EUD | AG139: Modulus of Sparcap | AH139: [Pa] | AI139: =Global_Var!$E$3 -> 39800000000
V140: C | W140: Chord | X140: [m] | Y140: =L16 -> 1.151423 | Z140: =Y140*Spar_Thickness_Calculator!AI149 -> 0.7676153333 | AA140: t | AB140: Airfoil thickness | AC140: [m] | AD140: =Spar_Thickness_Calculator!Y141*Spar_Thickness_Calculator!Y140/100 -> 0.2034180633 | AE140: =Spar_Thickness_Calculator!Z141*Spar_Thickness_Calculator!Z140/100 -> 0.1356120422 | AF140: ρs | AG140: Density of sparcap | AH140: [kg/m3] | AI140: =Global_Var!$E$4 -> 1920
V141: AF% | W141: % thickness of foil | X141: [%] | Y141: =N16 -> 17.66666667 | Z141: =Y141 -> 17.66666667 | AA141: ho | AB141: Section height outer | AC141: [m] | AD141: =AD140*Spar_Thickness_Calculator!AI148 -> 0.1729053538 | AE141: =AE140*Spar_Thickness_Calculator!AI148 -> 0.1152702359 | AF141: ϵUD(max) | AG141: Max allow design strain Sparcap | AH141: [-] | AI141: =Global_Var!$E$5 -> 0.0029
V142: M | W142: Moment | X142: [n-m] | Y142: =M16 -> 324240.05 | Z142: =Y142*Spar_Thickness_Calculator!AI150 -> 216160.0333 | AA142: hc | AB142: height of core | AC142: [m] | AD142: =Spar_Thickness_Calculator!AD141-2*Spar_Thickness_Calculator!Y143 -> 0.0983390059 | AE142: =Spar_Thickness_Calculator!AE141-2*Spar_Thickness_Calculator!Z143 -> -0.1085815915 | AF142: σs(allow) | AG142: Allowable stress in Sparcap | AH142: [Pa] | AI142: =Global_Var!$E$6 -> 115420000
V143: t | W143: Spar Cap Thickness | X143: [m] | Y143: 0.03728317397 | Z143: 0.1119259137 | AA143: c | AB143: distance from neutral axis | AC143: [m] | AD143: =Spar_Thickness_Calculator!AD141/2 -> 0.08645267692 | AE143: =Spar_Thickness_Calculator!AE141/2 -> 0.05763511794 | AF143: EC | AG143: Modulus of Core | AH143: [Pa] | AI143: =Global_Var!$E$7 -> 3790000
V144: σs(max) | W144: Max Stress in Sparcap | X144: [Pa] | Y144: =(Y142*(Spar_Thickness_Calculator!AD141/2)*Spar_Thickness_Calculator!AI139)/(Spar_Thickness_Calculator!AI139*Spar_Thickness_Calculator!AD144+Spar_Thickness_Calculator!AI143*Spar_Thickness_Calculator!AD145) -> 115425184.8 | Z144: =(Z142*(Spar_Thickness_Calculator!AE141/2)*Spar_Thickness_Calculator!AI139)/(Spar_Thickness_Calculator!AI139*Spar_Thickness_Calculator!AE144+Spar_Thickness_Calculator!AI143*Spar_Thickness_Calculator!AE145) -> 115447402.6 | AA144: Is | AB144: Moment of inertia Spar | AC144: [m4] | AD144: =(Spar_Thickness_Calculator!AD139/12)*(Spar_Thickness_Calculator!AD141^3-Spar_Thickness_Calculator!AD142^3) -> 0.0002428483744 | AE144: =(Spar_Thickness_Calculator!AE139/12)*(Spar_Thickness_Calculator!AE141^3-Spar_Thickness_Calculator!AE142^3) -> 0.0001079188348 | AF144: ρc | AG144: Density of core | AH144: [kg/m3] | AI144: =Global_Var!$E$8 -> 673
V145: Ww | W145: Wet Weight | X145: [kg] | Y145: =Spar_Thickness_Calculator!AD149+Spar_Thickness_Calculator!AD148-Spar_Thickness_Calculator!AD151 -> 16.10416916 | Z145: =Spar_Thickness_Calculator!AE149+Spar_Thickness_Calculator!AE148-Spar_Thickness_Calculator!AE151 -> 81.33469842 | AA145: Ic | AB145: Moment of inertia Core | AC145: [m4] | AD145: =(Spar_Thickness_Calculator!AD139/12)*Spar_Thickness_Calculator!AD142^3 -> 5.474977591e-05 | AE145: =(Spar_Thickness_Calculator!AE139/12)*Spar_Thickness_Calculator!AE142^3 -> -4.913401501e-05 | AF145: ρw | AG145: Density of Seawater | AH145: [kg/m3] | AI145: =Global_Var!$E$9 -> 1029
V146: Ww(rotor) | W146: Wet Weight segment of rotor (+ floats) | X146: [kg] | Y146: =Y145*2 -> 32.20833832 | Z146: =Z145*3 -> 244.0040952 | AA146: Vs | AB146: Volume of Spar | AC146: [m3] | AD146: =Spar_Thickness_Calculator!AD139*Spar_Thickness_Calculator!Y143*Spar_Thickness_Calculator!AI146*2 -> 0.03820654658 | AE146: =Spar_Thickness_Calculator!AE139*Spar_Thickness_Calculator!Z143*Spar_Thickness_Calculator!AI146*2 -> 0.07646528231 | AF146: L | AG146: Section Length | AH146: [m] | AI146: =Global_Var!$E$10 -> 0.7416666667
AA147: Vc | AB147: Volume of Core | AC147: [m3] | AD147: =Spar_Thickness_Calculator!AD142*Spar_Thickness_Calculator!AD139*Spar_Thickness_Calculator!AI146 -> 0.05038725797 | AE147: =Spar_Thickness_Calculator!AE142*Spar_Thickness_Calculator!AE139*Spar_Thickness_Calculator!AI146 -> -0.03709025807 | AG147: Beam width in terms of chord | AH147: [-] | AI147: =Global_Var!$E$11 -> 0.6
W148: Spar Strain Limit (Goal Seek to 1) | Y148: =(Y144/$AI$7) -> 1.000044922 | Z148: =(Z144/$AI$7) -> 1.000237417 | AA148: Ms | AB148: Mass of Spar | AC148: [kg] | AD148: =Spar_Thickness_Calculator!AI140*AD146 -> 73.35656942 | AE148: =Spar_Thickness_Calculator!AI140*AE146 -> 146.813342 | AG148: Beam height in terms of thickness | AH148: [-] | AI148: 0.85
AA149: Mc | AB149: Mass of Core | AC149: [kg] | AD149: =AD147*Spar_Thickness_Calculator!AI144 -> 33.91062461 | AE149: =AE147*Spar_Thickness_Calculator!AI144 -> -24.96174368 | AG149: Chord Ratio Blade A/Blade B | AH149: [-] | AI149: =Global_Var!$E$13 -> 0.6666666667
AA150: Vd | AB150: Displaced Volume | AC150: [m3] | AD150: =Spar_Thickness_Calculator!AD141*Spar_Thickness_Calculator!AD139*Spar_Thickness_Calculator!AI146 -> 0.08859380455 | AE150: =Spar_Thickness_Calculator!AE141*Spar_Thickness_Calculator!AE139*Spar_Thickness_Calculator!AI146 -> 0.03937502424 | AG150: Moment Ratio Blade A/Blade B | AH150: [-] | AI150: =Global_Var!$E$14 -> 0.6666666667
AA151: Mw | AB151: Mass of disp. Seawater | AC151: [kg] | AD151: =Spar_Thickness_Calculator!AI145*Spar_Thickness_Calculator!AD150 -> 91.16302488 | AE151: =Spar_Thickness_Calculator!AI145*Spar_Thickness_Calculator!AE150 -> 40.51689995
V153: Input/Output | AA153: Intermediate Calculations | AF153: Constants
V154: 11 | Y154: Blade A | Z154: Blade B | AA154: b | AB154: Spar Cap Width | AC154: [m] | AD154: =Spar_Thickness_Calculator!Y155*Spar_Thickness_Calculator!AI162 -> 0.43266405 | AE154: =Spar_Thickness_Calculator!Z155*Spar_Thickness_Calculator!AI162 -> 0.2884427 | AF154: EUD | AG154: Modulus of Sparcap | AH154: [Pa] | AI154: =Global_Var!$E$3 -> 39800000000
V155: C | W155: Chord | X155: [m] | Y155: =L17 -> 0.72110675 | Z155: =Y155*Spar_Thickness_Calculator!AI164 -> 0.4807378333 | AA155: t | AB155: Airfoil thickness | AC155: [m] | AD155: =Spar_Thickness_Calculator!Y156*Spar_Thickness_Calculator!Y155/100 -> 0.11537708 | AE155: =Spar_Thickness_Calculator!Z156*Spar_Thickness_Calculator!Z155/100 -> 0.07691805333 | AF155: ρs | AG155: Density of sparcap | AH155: [kg/m3] | AI155: =Global_Var!$E$4 -> 1920
V156: AF% | W156: % thickness of foil | X156: [%] | Y156: =N17 -> 16 | Z156: =Y156 -> 16 | AA156: ho | AB156: Section height outer | AC156: [m] | AD156: =AD155*Spar_Thickness_Calculator!AI163 -> 0.098070518 | AE156: =AE155*Spar_Thickness_Calculator!AI163 -> 0.06538034533 | AF156: ϵUD(max) | AG156: Max allow design strain Sparcap | AH156: [-] | AI156: =Global_Var!$E$5 -> 0.0029
V157: M | W157: Moment | X157: [n-m] | Y157: =M17 -> 0 | Z157: =Y157*Spar_Thickness_Calculator!AI165 -> 0 | AA157: hc | AB157: height of core | AC157: [m] | AD157: =Spar_Thickness_Calculator!AD156-2*Spar_Thickness_Calculator!Y158 -> 6.969579513e+70 | AE157: =Spar_Thickness_Calculator!AE156-2*Spar_Thickness_Calculator!Z158 -> 3.987161047e+71 | AF157: σs(allow) | AG157: Allowable stress in Sparcap | AH157: [Pa] | AI157: =Global_Var!$E$6 -> 115420000
V158: t | W158: Spar Cap Thickness | X158: [m] | Y158: -3.484789757e+70 | Z158: -1.993580524e+71 | AA158: c | AB158: distance from neutral axis | AC158: [m] | AD158: =Spar_Thickness_Calculator!AD156/2 -> 0.049035259 | AE158: =Spar_Thickness_Calculator!AE156/2 -> 0.03269017267 | AF158: EC | AG158: Modulus of Core | AH158: [Pa] | AI158: =Global_Var!$E$7 -> 3790000
V159: σs(max) | W159: Max Stress in Sparcap | X159: [Pa] | Y159: =(Y157*(Spar_Thickness_Calculator!AD156/2)*Spar_Thickness_Calculator!AI154)/(Spar_Thickness_Calculator!AI154*Spar_Thickness_Calculator!AD159+Spar_Thickness_Calculator!AI158*Spar_Thickness_Calculator!AD160) -> 0 | Z159: =(Z157*(Spar_Thickness_Calculator!AE156/2)*Spar_Thickness_Calculator!AI154)/(Spar_Thickness_Calculator!AI154*Spar_Thickness_Calculator!AE159+Spar_Thickness_Calculator!AI158*Spar_Thickness_Calculator!AE160) -> 0 | AA159: Is | AB159: Moment of inertia Spar | AC159: [m4] | AD159: =(Spar_Thickness_Calculator!AD154/12)*(Spar_Thickness_Calculator!AD156^3-Spar_Thickness_Calculator!AD157^3) -> -1.220644775e+211 | AE159: =(Spar_Thickness_Calculator!AE154/12)*(Spar_Thickness_Calculator!AE156^3-Spar_Thickness_Calculator!AE157^3) -> -1.523595354e+213 | AF159: ρc | AG159: Density of core | AH159: [kg/m3] | AI159: =Global_Var!$E$8 -> 673
V160: Ww | W160: Wet Weight | X160: [kg] | Y160: =Spar_Thickness_Calculator!AD164+Spar_Thickness_Calculator!AD163-Spar_Thickness_Calculator!AD166 -> -2.788897818e+73 | Z160: =Spar_Thickness_Calculator!AE164+Spar_Thickness_Calculator!AE163-Spar_Thickness_Calculator!AE166 -> -1.063649509e+74 | AA160: Ic | AB160: Moment of inertia Core | AC160: [m4] | AD160: =(Spar_Thickness_Calculator!AD154/12)*Spar_Thickness_Calculator!AD157^3 -> 1.220644775e+211 | AE160: =(Spar_Thickness_Calculator!AE154/12)*Spar_Thickness_Calculator!AE157^3 -> 1.523595354e+213 | AF160: ρw | AG160: Density of Seawater | AH160: [kg/m3] | AI160: =Global_Var!$E$9 -> 1029
V161: Ww(rotor) | W161: Wet Weight segment of rotor (+ floats) | X161: [kg] | Y161: =Y160*2 -> -5.577795635e+73 | Z161: =Z160*3 -> -3.190948528e+74 | AA161: Vs | AB161: Volume of Spar | AC161: [m3] | AD161: =Spar_Thickness_Calculator!AD154*Spar_Thickness_Calculator!Y158*Spar_Thickness_Calculator!AI161*2 -> -2.23648582e+70 | AE161: =Spar_Thickness_Calculator!AE154*Spar_Thickness_Calculator!Z158*Spar_Thickness_Calculator!AI161*2 -> -8.529667276e+70 | AF161: L | AG161: Section Length | AH161: [m] | AI161: =Global_Var!$E$10 -> 0.7416666667
AA162: Vc | AB162: Volume of Core | AC162: [m3] | AD162: =Spar_Thickness_Calculator!AD157*Spar_Thickness_Calculator!AD154*Spar_Thickness_Calculator!AI161 -> 2.23648582e+70 | AE162: =Spar_Thickness_Calculator!AE157*Spar_Thickness_Calculator!AE154*Spar_Thickness_Calculator!AI161 -> 8.529667276e+70 | AG162: Beam width in terms of chord | AH162: [-] | AI162: =Global_Var!$E$11 -> 0.6
W163: Spar Strain Limit (Goal Seek to 1) | Y163: =(Y159/$AI$7) -> 0 | Z163: =(Z159/$AI$7) -> 0 | AA163: Ms | AB163: Mass of Spar | AC163: [kg] | AD163: =Spar_Thickness_Calculator!AI155*AD161 -> -4.294052775e+73 | AE163: =Spar_Thickness_Calculator!AI155*AE161 -> -1.637696117e+74 | AG163: Beam height in terms of thickness | AH163: [-] | AI163: 0.85
AA164: Mc | AB164: Mass of Core | AC164: [kg] | AD164: =AD162*Spar_Thickness_Calculator!AI159 -> 1.505154957e+73 | AE164: =AE162*Spar_Thickness_Calculator!AI159 -> 5.740466077e+73 | AG164: Chord Ratio Blade A/Blade B | AH164: [-] | AI164: =Global_Var!$E$13 -> 0.6666666667
AA165: Vd | AB165: Displaced Volume | AC165: [m3] | AD165: =Spar_Thickness_Calculator!AD156*Spar_Thickness_Calculator!AD154*Spar_Thickness_Calculator!AI161 -> 0.03147009407 | AE165: =Spar_Thickness_Calculator!AE156*Spar_Thickness_Calculator!AE154*Spar_Thickness_Calculator!AI161 -> 0.01398670847 | AG165: Moment Ratio Blade A/Blade B | AH165: [-] | AI165: =Global_Var!$E$14 -> 0.6666666667
AA166: Mw | AB166: Mass of disp. Seawater | AC166: [kg] | AD166: =Spar_Thickness_Calculator!AI160*Spar_Thickness_Calculator!AD165 -> 32.38272679 | AE166: =Spar_Thickness_Calculator!AI160*Spar_Thickness_Calculator!AE165 -> 14.39232302
V168: Input/Output | AA168: Intermediate Calculations | AF168: Constants
V169: 12 | Y169: Blade A | Z169: Blade B | AA169: b | AB169: Spar Cap Width | AC169: [m] | AD169: =Spar_Thickness_Calculator!Y170*Spar_Thickness_Calculator!AI177 -> 0 | AE169: =Spar_Thickness_Calculator!Z170*Spar_Thickness_Calculator!AI177 -> 0 | AF169: EUD | AG169: Modulus of Sparcap | AH169: [Pa] | AI169: =Global_Var!$E$3 -> 39800000000
V170: C | W170: Chord | X170: [m] | Y170: =L18 -> 0 | Z170: =Y170*Spar_Thickness_Calculator!AI179 -> 0 | AA170: t | AB170: Airfoil thickness | AC170: [m] | AD170: =Spar_Thickness_Calculator!Y171*Spar_Thickness_Calculator!Y170/100 -> 0 | AE170: =Spar_Thickness_Calculator!Z171*Spar_Thickness_Calculator!Z170/100 -> 0 | AF170: ρs | AG170: Density of sparcap | AH170: [kg/m3] | AI170: =Global_Var!$E$4 -> 1920
V171: AF% | W171: % thickness of foil | X171: [%] | Y171: =N18 -> 0 | Z171: =Y171 -> 0 | AA171: ho | AB171: Section height outer | AC171: [m] | AD171: =AD170*Spar_Thickness_Calculator!AI178 -> 0 | AE171: =AE170*Spar_Thickness_Calculator!AI178 -> 0 | AF171: ϵUD(max) | AG171: Max allow design strain Sparcap | AH171: [-] | AI171: =Global_Var!$E$5 -> 0.0029
V172: M | W172: Moment | X172: [n-m] | Y172: =M18 -> 0 | Z172: =Y172*Spar_Thickness_Calculator!AI180 -> 0 | AA172: hc | AB172: height of core | AC172: [m] | AD172: =Spar_Thickness_Calculator!AD171-2*Spar_Thickness_Calculator!Y173 -> -0.1006859395 | AE172: =Spar_Thickness_Calculator!AE171-2*Spar_Thickness_Calculator!Z173 -> -0.5749989779 | AF172: σs(allow) | AG172: Allowable stress in Sparcap | AH172: [Pa] | AI172: =Global_Var!$E$6 -> 115420000
V173: t | W173: Spar Cap Thickness | X173: [m] | Y173: 0.05034296976 | Z173: 0.287499489 | AA173: c | AB173: distance from neutral axis | AC173: [m] | AD173: =Spar_Thickness_Calculator!AD171/2 -> 0 | AE173: =Spar_Thickness_Calculator!AE171/2 -> 0 | AF173: EC | AG173: Modulus of Core | AH173: [Pa] | AI173: =Global_Var!$E$7 -> 3790000
V174: σs(max) | W174: Max Stress in Sparcap | X174: [Pa] | Y174: =(Y172*(Spar_Thickness_Calculator!AD171/2)*Spar_Thickness_Calculator!AI169)/(Spar_Thickness_Calculator!AI169*Spar_Thickness_Calculator!AD174+Spar_Thickness_Calculator!AI173*Spar_Thickness_Calculator!AD175) ->  | Z174: =(Z172*(Spar_Thickness_Calculator!AE171/2)*Spar_Thickness_Calculator!AI169)/(Spar_Thickness_Calculator!AI169*Spar_Thickness_Calculator!AE174+Spar_Thickness_Calculator!AI173*Spar_Thickness_Calculator!AE175) ->  | AA174: Is | AB174: Moment of inertia Spar | AC174: [m4] | AD174: =(Spar_Thickness_Calculator!AD169/12)*(Spar_Thickness_Calculator!AD171^3-Spar_Thickness_Calculator!AD172^3) -> 0 | AE174: =(Spar_Thickness_Calculator!AE169/12)*(Spar_Thickness_Calculator!AE171^3-Spar_Thickness_Calculator!AE172^3) -> 0 | AF174: ρc | AG174: Density of core | AH174: [kg/m3] | AI174: =Global_Var!$E$8 -> 673
V175: Ww | W175: Wet Weight | X175: [kg] | Y175: =Spar_Thickness_Calculator!AD179+Spar_Thickness_Calculator!AD178-Spar_Thickness_Calculator!AD181 -> 0 | Z175: =Spar_Thickness_Calculator!AE179+Spar_Thickness_Calculator!AE178-Spar_Thickness_Calculator!AE181 -> 0 | AA175: Ic | AB175: Moment of inertia Core | AC175: [m4] | AD175: =(Spar_Thickness_Calculator!AD169/12)*Spar_Thickness_Calculator!AD172^3 -> 0 | AE175: =(Spar_Thickness_Calculator!AE169/12)*Spar_Thickness_Calculator!AE172^3 -> 0 | AF175: ρw | AG175: Density of Seawater | AH175: [kg/m3] | AI175: =Global_Var!$E$9 -> 1029
V176: Ww(rotor) | W176: Wet Weight segment of rotor (+ floats) | X176: [kg] | Y176: =Y175*2 -> 0 | Z176: =Z175*3 -> 0 | AA176: Vs | AB176: Volume of Spar | AC176: [m3] | AD176: =Spar_Thickness_Calculator!AD169*Spar_Thickness_Calculator!Y173*Spar_Thickness_Calculator!AI176*2 -> 0 | AE176: =Spar_Thickness_Calculator!AE169*Spar_Thickness_Calculator!Z173*Spar_Thickness_Calculator!AI176*2 -> 0 | AF176: L | AG176: Section Length | AH176: [m] | AI176: =Global_Var!$E$10 -> 0.7416666667
AA177: Vc | AB177: Volume of Core | AC177: [m3] | AD177: =Spar_Thickness_Calculator!AD172*Spar_Thickness_Calculator!AD169*Spar_Thickness_Calculator!AI176 -> 0 | AE177: =Spar_Thickness_Calculator!AE172*Spar_Thickness_Calculator!AE169*Spar_Thickness_Calculator!AI176 -> 0 | AG177: Beam width in terms of chord | AH177: [-] | AI177: =Global_Var!$E$11 -> 0.6
W178: Spar Strain Limit (Goal Seek to 1) | Y178: =(Y174/$AI$7) ->  | Z178: =(Z174/$AI$7) ->  | AA178: Ms | AB178: Mass of Spar | AC178: [kg] | AD178: =Spar_Thickness_Calculator!AI170*AD176 -> 0 | AE178: =Spar_Thickness_Calculator!AI170*AE176 -> 0 | AG178: Beam height in terms of thickness | AH178: [-] | AI178: 0.85
AA179: Mc | AB179: Mass of Core | AC179: [kg] | AD179: =AD177*Spar_Thickness_Calculator!AI174 -> 0 | AE179: =AE177*Spar_Thickness_Calculator!AI174 -> 0 | AG179: Chord Ratio Blade A/Blade B | AH179: [-] | AI179: =Global_Var!$E$13 -> 0.6666666667
AA180: Vd | AB180: Displaced Volume | AC180: [m3] | AD180: =Spar_Thickness_Calculator!AD171*Spar_Thickness_Calculator!AD169*Spar_Thickness_Calculator!AI176 -> 0 | AE180: =Spar_Thickness_Calculator!AE171*Spar_Thickness_Calculator!AE169*Spar_Thickness_Calculator!AI176 -> 0 | AG180: Moment Ratio Blade A/Blade B | AH180: [-] | AI180: =Global_Var!$E$14 -> 0.6666666667
AA181: Mw | AB181: Mass of disp. Seawater | AC181: [kg] | AD181: =Spar_Thickness_Calculator!AI175*Spar_Thickness_Calculator!AD180 -> 0 | AE181: =Spar_Thickness_Calculator!AI175*Spar_Thickness_Calculator!AE180 -> 0
V183: Input/Output | AA183: Intermediate Calculations | AF183: Constants
V184: 13 | Y184: Blade A | Z184: Blade B | AA184: b | AB184: Spar Cap Width | AC184: [m] | AD184: =Spar_Thickness_Calculator!Y185*Spar_Thickness_Calculator!AI192 -> 0 | AE184: =Spar_Thickness_Calculator!Z185*Spar_Thickness_Calculator!AI192 -> 0 | AF184: EUD | AG184: Modulus of Sparcap | AH184: [Pa] | AI184: =Global_Var!$E$3 -> 39800000000
V185: C | W185: Chord | X185: [m] | Y185: =L19 -> 0 | Z185: =Y185*Spar_Thickness_Calculator!AI194 -> 0 | AA185: t | AB185: Airfoil thickness | AC185: [m] | AD185: =Spar_Thickness_Calculator!Y186*Spar_Thickness_Calculator!Y185/100 -> 0 | AE185: =Spar_Thickness_Calculator!Z186*Spar_Thickness_Calculator!Z185/100 -> 0 | AF185: ρs | AG185: Density of sparcap | AH185: [kg/m3] | AI185: =Global_Var!$E$4 -> 1920
V186: AF% | W186: % thickness of foil | X186: [%] | Y186: =N19 -> 0 | Z186: =Y186 -> 0 | AA186: ho | AB186: Section height outer | AC186: [m] | AD186: =AD185*Spar_Thickness_Calculator!AI193 -> 0 | AE186: =AE185*Spar_Thickness_Calculator!AI193 -> 0 | AF186: ϵUD(max) | AG186: Max allow design strain Sparcap | AH186: [-] | AI186: =Global_Var!$E$5 -> 0.0029
V187: M | W187: Moment | X187: [n-m] | Y187: =M19 -> 0 | Z187: =Y187*Spar_Thickness_Calculator!AI195 -> 0 | AA187: hc | AB187: height of core | AC187: [m] | AD187: =Spar_Thickness_Calculator!AD186-2*Spar_Thickness_Calculator!Y188 -> -0.09876935198 | AE187: =Spar_Thickness_Calculator!AE186-2*Spar_Thickness_Calculator!Z188 -> -0.5615262565 | AF187: σs(allow) | AG187: Allowable stress in Sparcap | AH187: [Pa] | AI187: =Global_Var!$E$6 -> 115420000
V188: t | W188: Spar Cap Thickness | X188: [m] | Y188: 0.04938467599 | Z188: 0.2807631283 | AA188: c | AB188: distance from neutral axis | AC188: [m] | AD188: =Spar_Thickness_Calculator!AD186/2 -> 0 | AE188: =Spar_Thickness_Calculator!AE186/2 -> 0 | AF188: EC | AG188: Modulus of Core | AH188: [Pa] | AI188: =Global_Var!$E$7 -> 3790000
V189: σs(max) | W189: Max Stress in Sparcap | X189: [Pa] | Y189: =(Y187*(Spar_Thickness_Calculator!AD186/2)*Spar_Thickness_Calculator!AI184)/(Spar_Thickness_Calculator!AI184*Spar_Thickness_Calculator!AD189+Spar_Thickness_Calculator!AI188*Spar_Thickness_Calculator!AD190) ->  | Z189: =(Z187*(Spar_Thickness_Calculator!AE186/2)*Spar_Thickness_Calculator!AI184)/(Spar_Thickness_Calculator!AI184*Spar_Thickness_Calculator!AE189+Spar_Thickness_Calculator!AI188*Spar_Thickness_Calculator!AE190) ->  | AA189: Is | AB189: Moment of inertia Spar | AC189: [m4] | AD189: =(Spar_Thickness_Calculator!AD184/12)*(Spar_Thickness_Calculator!AD186^3-Spar_Thickness_Calculator!AD187^3) -> 0 | AE189: =(Spar_Thickness_Calculator!AE184/12)*(Spar_Thickness_Calculator!AE186^3-Spar_Thickness_Calculator!AE187^3) -> 0 | AF189: ρc | AG189: Density of core | AH189: [kg/m3] | AI189: =Global_Var!$E$8 -> 673
V190: Ww | W190: Wet Weight | X190: [kg] | Y190: =Spar_Thickness_Calculator!AD194+Spar_Thickness_Calculator!AD193-Spar_Thickness_Calculator!AD196 -> 0 | Z190: =Spar_Thickness_Calculator!AE194+Spar_Thickness_Calculator!AE193-Spar_Thickness_Calculator!AE196 -> 0 | AA190: Ic | AB190: Moment of inertia Core | AC190: [m4] | AD190: =(Spar_Thickness_Calculator!AD184/12)*Spar_Thickness_Calculator!AD187^3 -> 0 | AE190: =(Spar_Thickness_Calculator!AE184/12)*Spar_Thickness_Calculator!AE187^3 -> 0 | AF190: ρw | AG190: Density of Seawater | AH190: [kg/m3] | AI190: =Global_Var!$E$9 -> 1029
V191: Ww(rotor) | W191: Wet Weight segment of rotor (+ floats) | X191: [kg] | Y191: =Y190*2 -> 0 | Z191: =Z190*3 -> 0 | AA191: Vs | AB191: Volume of Spar | AC191: [m3] | AD191: =Spar_Thickness_Calculator!AD184*Spar_Thickness_Calculator!Y188*Spar_Thickness_Calculator!AI191*2 -> 0 | AE191: =Spar_Thickness_Calculator!AE184*Spar_Thickness_Calculator!Z188*Spar_Thickness_Calculator!AI191*2 -> 0 | AF191: L | AG191: Section Length | AH191: [m] | AI191: =Global_Var!$E$10 -> 0.7416666667
AA192: Vc | AB192: Volume of Core | AC192: [m3] | AD192: =Spar_Thickness_Calculator!AD187*Spar_Thickness_Calculator!AD184*Spar_Thickness_Calculator!AI191 -> 0 | AE192: =Spar_Thickness_Calculator!AE187*Spar_Thickness_Calculator!AE184*Spar_Thickness_Calculator!AI191 -> 0 | AG192: Beam width in terms of chord | AH192: [-] | AI192: =Global_Var!$E$11 -> 0.6
W193: Spar Strain Limit (Goal Seek to 1) | Y193: =(Y189/$AI$7) ->  | Z193: =(Z189/$AI$7) ->  | AA193: Ms | AB193: Mass of Spar | AC193: [kg] | AD193: =Spar_Thickness_Calculator!AI185*AD191 -> 0 | AE193: =Spar_Thickness_Calculator!AI185*AE191 -> 0 | AG193: Beam height in terms of thickness | AH193: [-] | AI193: 0.85
AA194: Mc | AB194: Mass of Core | AC194: [kg] | AD194: =AD192*Spar_Thickness_Calculator!AI189 -> 0 | AE194: =AE192*Spar_Thickness_Calculator!AI189 -> 0 | AG194: Chord Ratio Blade A/Blade B | AH194: [-] | AI194: =Global_Var!$E$13 -> 0.6666666667
AA195: Vd | AB195: Displaced Volume | AC195: [m3] | AD195: =Spar_Thickness_Calculator!AD186*Spar_Thickness_Calculator!AD184*Spar_Thickness_Calculator!AI191 -> 0 | AE195: =Spar_Thickness_Calculator!AE186*Spar_Thickness_Calculator!AE184*Spar_Thickness_Calculator!AI191 -> 0 | AG195: Moment Ratio Blade A/Blade B | AH195: [-] | AI195: =Global_Var!$E$14 -> 0.6666666667
AA196: Mw | AB196: Mass of disp. Seawater | AC196: [kg] | AD196: =Spar_Thickness_Calculator!AI190*Spar_Thickness_Calculator!AD195 -> 0 | AE196: =Spar_Thickness_Calculator!AI190*Spar_Thickness_Calculator!AE195 -> 0
V198: Input/Output | AA198: Intermediate Calculations | AF198: Constants
V199: 14 | Y199: Blade A | Z199: Blade B | AA199: b | AB199: Spar Cap Width | AC199: [m] | AD199: =Spar_Thickness_Calculator!Y200*Spar_Thickness_Calculator!AI207 -> 0 | AE199: =Spar_Thickness_Calculator!Z200*Spar_Thickness_Calculator!AI207 -> 0 | AF199: EUD | AG199: Modulus of Sparcap | AH199: [Pa] | AI199: =Global_Var!$E$3 -> 39800000000
V200: C | W200: Chord | X200: [m] | Y200: =L20 -> 0 | Z200: =Y200*Spar_Thickness_Calculator!AI209 -> 0 | AA200: t | AB200: Airfoil thickness | AC200: [m] | AD200: =Spar_Thickness_Calculator!Y201*Spar_Thickness_Calculator!Y200/100 -> 0 | AE200: =Spar_Thickness_Calculator!Z201*Spar_Thickness_Calculator!Z200/100 -> 0 | AF200: ρs | AG200: Density of sparcap | AH200: [kg/m3] | AI200: =Global_Var!$E$4 -> 1920
V201: AF% | W201: % thickness of foil | X201: [%] | Y201: =N20 -> 0 | Z201: =Y201 -> 0 | AA201: ho | AB201: Section height outer | AC201: [m] | AD201: =AD200*Spar_Thickness_Calculator!AI208 -> 0 | AE201: =AE200*Spar_Thickness_Calculator!AI208 -> 0 | AF201: ϵUD(max) | AG201: Max allow design strain Sparcap | AH201: [-] | AI201: =Global_Var!$E$5 -> 0.0029
V202: M | W202: Moment | X202: [n-m] | Y202: =M20 -> 0 | Z202: =Y202*Spar_Thickness_Calculator!AI210 -> 0 | AA202: hc | AB202: height of core | AC202: [m] | AD202: =Spar_Thickness_Calculator!AD201-2*Spar_Thickness_Calculator!Y203 -> -0.09595893029 | AE202: =Spar_Thickness_Calculator!AE201-2*Spar_Thickness_Calculator!Z203 -> -0.5441145729 | AF202: σs(allow) | AG202: Allowable stress in Sparcap | AH202: [Pa] | AI202: =Global_Var!$E$6 -> 115420000
V203: t | W203: Spar Cap Thickness | X203: [m] | Y203: 0.04797946515 | Z203: 0.2720572865 | AA203: c | AB203: distance from neutral axis | AC203: [m] | AD203: =Spar_Thickness_Calculator!AD201/2 -> 0 | AE203: =Spar_Thickness_Calculator!AE201/2 -> 0 | AF203: EC | AG203: Modulus of Core | AH203: [Pa] | AI203: =Global_Var!$E$7 -> 3790000
V204: σs(max) | W204: Max Stress in Sparcap | X204: [Pa] | Y204: =(Y202*(Spar_Thickness_Calculator!AD201/2)*Spar_Thickness_Calculator!AI199)/(Spar_Thickness_Calculator!AI199*Spar_Thickness_Calculator!AD204+Spar_Thickness_Calculator!AI203*Spar_Thickness_Calculator!AD205) ->  | Z204: =(Z202*(Spar_Thickness_Calculator!AE201/2)*Spar_Thickness_Calculator!AI199)/(Spar_Thickness_Calculator!AI199*Spar_Thickness_Calculator!AE204+Spar_Thickness_Calculator!AI203*Spar_Thickness_Calculator!AE205) ->  | AA204: Is | AB204: Moment of inertia Spar | AC204: [m4] | AD204: =(Spar_Thickness_Calculator!AD199/12)*(Spar_Thickness_Calculator!AD201^3-Spar_Thickness_Calculator!AD202^3) -> 0 | AE204: =(Spar_Thickness_Calculator!AE199/12)*(Spar_Thickness_Calculator!AE201^3-Spar_Thickness_Calculator!AE202^3) -> 0 | AF204: ρc | AG204: Density of core | AH204: [kg/m3] | AI204: =Global_Var!$E$8 -> 673
V205: Ww | W205: Wet Weight | X205: [kg] | Y205: =Spar_Thickness_Calculator!AD209+Spar_Thickness_Calculator!AD208-Spar_Thickness_Calculator!AD211 -> 0 | Z205: =Spar_Thickness_Calculator!AE209+Spar_Thickness_Calculator!AE208-Spar_Thickness_Calculator!AE211 -> 0 | AA205: Ic | AB205: Moment of inertia Core | AC205: [m4] | AD205: =(Spar_Thickness_Calculator!AD199/12)*Spar_Thickness_Calculator!AD202^3 -> 0 | AE205: =(Spar_Thickness_Calculator!AE199/12)*Spar_Thickness_Calculator!AE202^3 -> 0 | AF205: ρw | AG205: Density of Seawater | AH205: [kg/m3] | AI205: =Global_Var!$E$9 -> 1029
V206: Ww(rotor) | W206: Wet Weight segment of rotor (+ floats) | X206: [kg] | Y206: =Y205*2 -> 0 | Z206: =Z205*3 -> 0 | AA206: Vs | AB206: Volume of Spar | AC206: [m3] | AD206: =Spar_Thickness_Calculator!AD199*Spar_Thickness_Calculator!Y203*Spar_Thickness_Calculator!AI206*2 -> 0 | AE206: =Spar_Thickness_Calculator!AE199*Spar_Thickness_Calculator!Z203*Spar_Thickness_Calculator!AI206*2 -> 0 | AF206: L | AG206: Section Length | AH206: [m] | AI206: =Global_Var!$E$10 -> 0.7416666667
AA207: Vc | AB207: Volume of Core | AC207: [m3] | AD207: =Spar_Thickness_Calculator!AD202*Spar_Thickness_Calculator!AD199*Spar_Thickness_Calculator!AI206 -> 0 | AE207: =Spar_Thickness_Calculator!AE202*Spar_Thickness_Calculator!AE199*Spar_Thickness_Calculator!AI206 -> 0 | AG207: Beam width in terms of chord | AH207: [-] | AI207: =Global_Var!$E$11 -> 0.6
W208: Spar Strain Limit (Goal Seek to 1) | Y208: =(Y204/$AI$7) ->  | Z208: =(Z204/$AI$7) ->  | AA208: Ms | AB208: Mass of Spar | AC208: [kg] | AD208: =Spar_Thickness_Calculator!AI200*AD206 -> 0 | AE208: =Spar_Thickness_Calculator!AI200*AE206 -> 0 | AG208: Beam height in terms of thickness | AH208: [-] | AI208: 0.85
AA209: Mc | AB209: Mass of Core | AC209: [kg] | AD209: =AD207*Spar_Thickness_Calculator!AI204 -> 0 | AE209: =AE207*Spar_Thickness_Calculator!AI204 -> 0 | AG209: Chord Ratio Blade A/Blade B | AH209: [-] | AI209: =Global_Var!$E$13 -> 0.6666666667
AA210: Vd | AB210: Displaced Volume | AC210: [m3] | AD210: =Spar_Thickness_Calculator!AD201*Spar_Thickness_Calculator!AD199*Spar_Thickness_Calculator!AI206 -> 0 | AE210: =Spar_Thickness_Calculator!AE201*Spar_Thickness_Calculator!AE199*Spar_Thickness_Calculator!AI206 -> 0 | AG210: Moment Ratio Blade A/Blade B | AH210: [-] | AI210: =Global_Var!$E$14 -> 0.6666666667
AA211: Mw | AB211: Mass of disp. Seawater | AC211: [kg] | AD211: =Spar_Thickness_Calculator!AI205*Spar_Thickness_Calculator!AD210 -> 0 | AE211: =Spar_Thickness_Calculator!AI205*Spar_Thickness_Calculator!AE210 -> 0
V213: Input/Output | AA213: Intermediate Calculations | AF213: Constants
V214: 15 | Y214: Blade A | Z214: Blade B | AA214: b | AB214: Spar Cap Width | AC214: [m] | AD214: =Spar_Thickness_Calculator!Y215*Spar_Thickness_Calculator!AI222 -> 0 | AE214: =Spar_Thickness_Calculator!Z215*Spar_Thickness_Calculator!AI222 -> 0 | AF214: EUD | AG214: Modulus of Sparcap | AH214: [Pa] | AI214: =Global_Var!$E$3 -> 39800000000
... 236 more rows

Sheet Beam_Thickness_Calculator
S3: =SUM(S7:S15) -> -1846.543378 | Y3: Input/Output | AD3: Intermediate Calculations | AI3: Constants
P4: Blade A | T4: Blade B | Y4: 1 | AB4: Blade A | AC4: Blade B | AD4: b | AE4: Spar Cap Width | AF4: [m] | AG4: =Beam_Thickness_Calculator!AB5*Beam_Thickness_Calculator!AL12 -> 1.38 | AH4: =Beam_Thickness_Calculator!AC5*Beam_Thickness_Calculator!AL12 -> 0.92 | AI4: EUD | AJ4: Modulus of Sparcap | AK4: [Pa] | AL4: =Global_Var!$E$3 -> 39800000000
J5: Spar Allowable | K5: Z | L5: Chord | M5: Element Thrust | N5: Moment My | O5: T/C orig | P5: T/C | Q5: Spar Thickness | R5: Height of Core | S5: Wet Weight | T5: T/C | U5: Spar Thickness | V5: Height of Core | W5: Wet Weight | Y5: C | Z5: Chord | AA5: [m] | AB5: =L7 -> 2.3 | AC5: =AB5*Beam_Thickness_Calculator!AL14 -> 1.533333333 | AD5: t | AE5: Airfoil thickness | AF5: [m] | AG5: =Beam_Thickness_Calculator!AB6*Beam_Thickness_Calculator!AB5/100 -> 2.300669572 | AH5: =Beam_Thickness_Calculator!AC6*Beam_Thickness_Calculator!AC5/100 -> 1.533333333 | AI5: ρs | AJ5: Density of sparcap | AK5: [kg/m3] | AL5: =Global_Var!$E$4 -> 1920
J6: [m] | K6: [m] | L6: [m] | M6: [kN] | N6: [N-m] | O6: [%] | P6: [%] | Q6: [m] | R6: [m] | S6: [kg] | T6: [%] | U6: [m] | V6: [m] | W6: [kg] | Y6: AF% | Z6: % thickness of foil | AA6: [%] | AB6: =P7 -> 100.0291118 | AC6: =T7 -> 100 | AD6: ho | AE6: Section height outer | AF6: [m] | AG6: =AG5*Beam_Thickness_Calculator!AL13 -> 1.955569136 | AH6: =AH5*Beam_Thickness_Calculator!AL13 -> 1.303333333 | AI6: ϵUD(max) | AJ6: Max allow design strain Sparcap | AK6: [-] | AL6: =Global_Var!$E$5 -> 0.0029
J7: =Blade_Definition!H4/2 -> 1.15 | K7: =Spar_Thickness_Calculator!K7 -> 0 | L7: =Spar_Thickness_Calculator!L7 -> 2.3 | M7: =Spar_Thickness_Calculator!#REF! ->  | N7: =Spar_Thickness_Calculator!M7 -> 15501225.1 | O7: =Spar_Thickness_Calculator!N7 -> 100 | P7: 100.0291118 | Q7: 0.05251011807 | R7: =AG7 -> 1.8505489 | S7: =AB11 -> -1157.010208 | T7: 100 | U7: =Spar_Thickness_Calculator!S7 -> 0.08533494341 | V7: =AH7 -> 1.132663447 | W7: =AC11 -> -514.1272175 | Y7: M | Z7: Moment | AA7: [n-m] | AB7: =N7 -> 15501225.1 | AC7: =AB7*Beam_Thickness_Calculator!AL15 -> 10334150.06 | AD7: hc | AE7: height of core | AF7: [m] | AG7: =Beam_Thickness_Calculator!AG6-2*Beam_Thickness_Calculator!AB8 -> 1.8505489 | AH7: =Beam_Thickness_Calculator!AH6-2*Beam_Thickness_Calculator!AC8 -> 1.132663447 | AI7: σs(allow) | AJ7: Allowable stress in Sparcap | AK7: [Pa] | AL7: =Global_Var!$E$6 -> 115420000
J8: =Blade_Definition!H5/2 -> 1.15 | K8: =Spar_Thickness_Calculator!K8 -> 1.1375 | L8: =Spar_Thickness_Calculator!L8 -> 2.3 | M8: =Spar_Thickness_Calculator!#REF! ->  | N8: =Spar_Thickness_Calculator!M8 -> 14315791.05 | O8: =Spar_Thickness_Calculator!N8 -> 100 | P8: 100.0396423 | Q8: 0.04829189371 | R8: =AG22 -> 1.85919122 | S8: =AB26 -> -1178.695188 | T8: 100 | U8: =Spar_Thickness_Calculator!S8 -> 0.07786164435 | V8: =AH22 -> 1.147610045 | W8: =AC26 -> -552.2800384 | Y8: t | Z8: Spar Cap Thickness | AA8: [m] | AB8: =Q7 -> 0.05251011807 | AC8: =U7 -> 0.08533494341 | AD8: c | AE8: distance from neutral axis | AF8: [m] | AG8: =Beam_Thickness_Calculator!AG6/2 -> 0.9777845682 | AH8: =Beam_Thickness_Calculator!AH6/2 -> 0.6516666667 | AI8: EC | AJ8: Modulus of Core | AK8: [Pa] | AL8: =Global_Var!$E$7 -> 3790000
J9: =Blade_Definition!H6/2 -> 0.8986090169 | K9: =Spar_Thickness_Calculator!K9 -> 3.4125 | L9: =Spar_Thickness_Calculator!L9 -> 2.857262375 | M9: =Spar_Thickness_Calculator!#REF! ->  | N9: =Spar_Thickness_Calculator!M9 -> 11950574.84 | O9: =Spar_Thickness_Calculator!N9 -> 62.9 | P9: 62.91276295 | Q9: 0.04174752228 | R9: =AG37 -> 1.444450255 | S9: =AB41 -> -1118.472166 | T9: 80.59039556 | U9: 0.05 | V9: =AH37 -> 1.204851462 | W9: =AC41 -> -864.1679681 | Y9: σs(max) | Z9: Max Stress in Sparcap | AA9: [Pa] | AB9: =(AB7*(Beam_Thickness_Calculator!AG6/2)*Beam_Thickness_Calculator!AL4)/(Beam_Thickness_Calculator!AL4*Beam_Thickness_Calculator!AG9+Beam_Thickness_Calculator!AL8*Beam_Thickness_Calculator!AG10) -> 115417809.7 | AC9: =(AC7*(Beam_Thickness_Calculator!AH6/2)*Beam_Thickness_Calculator!AL4)/(Beam_Thickness_Calculator!AL4*Beam_Thickness_Calculator!AH9+Beam_Thickness_Calculator!AL8*Beam_Thickness_Calculator!AH10) -> 115433830.8 | AD9: Is | AE9: Moment of inertia Spar | AF9: [m4] | AG9: =(Beam_Thickness_Calculator!AG4/12)*(Beam_Thickness_Calculator!AG6^3-Beam_Thickness_Calculator!AG7^3) -> 0.1312522634 | AH9: =(Beam_Thickness_Calculator!AH4/12)*(Beam_Thickness_Calculator!AH6^3-Beam_Thickness_Calculator!AH7^3) -> 0.05832949028 | AI9: ρc | AJ9: Density of core | AK9: [kg/m3] | AL9: =Global_Var!$E$8 -> 673
J10: =Blade_Definition!H7/2 -> 0.40974297 | K10: =Spar_Thickness_Calculator!K10 -> 5.6875 | L10: =Spar_Thickness_Calculator!L10 -> 3.41452475 | M10: =Spar_Thickness_Calculator!#REF! ->  | N10: =Spar_Thickness_Calculator!M10 -> 9618492.134 | O10: =Spar_Thickness_Calculator!N10 -> 24 | P10: 24.00263264 | Q10: 0.07238592773 | R10: =AG52 -> 0.5518676019 | S10: =AB56 -> -205.0459581 | T10: 46.99737673 | U10: 0.05 | V10: =AH52 -> 0.8093510008 | W10: =AC56 -> -604.8344745 | Y10: Ww | Z10: Wet Weight | AA10: [kg] | AB10: =Beam_Thickness_Calculator!AG14+Beam_Thickness_Calculator!AG13-Beam_Thickness_Calculator!AG16 -> -578.505104 | AC10: =Beam_Thickness_Calculator!AH14+Beam_Thickness_Calculator!AH13-Beam_Thickness_Calculator!AH16 -> -171.3757392 | AD10: Ic | AE10: Moment of inertia Core | AF10: [m4] | AG10: =(Beam_Thickness_Calculator!AG4/12)*Beam_Thickness_Calculator!AG7^3 -> 0.7287851882 | AH10: =(Beam_Thickness_Calculator!AH4/12)*Beam_Thickness_Calculator!AH7^3 -> 0.1114061681 | AI10: ρw | AJ10: Density of Seawater | AK10: [kg/m3] | AL10: =Global_Var!$E$9 -> 1029
J11: =Blade_Definition!H8/2 -> 0.313511835 | K11: =Spar_Thickness_Calculator!K11 -> 7.9625 | L11: =Spar_Thickness_Calculator!L11 -> 2.696876 | M11: =Spar_Thickness_Calculator!#REF! ->  | N11: =Spar_Thickness_Calculator!M11 -> 7424471.612 | O11: =Spar_Thickness_Calculator!N11 -> 23.25 | P11: 23.26061792 | Q11: 0.1215177836 | R11: =AG67 -> 0.2901779516 | S11: =AB71 -> 271.8040874 | T11: 58.29435134 | U11: 0.05 | V11: =AH67 -> 0.79087161 | W11: =AC71 -> -461.9229733 | Y11: Ww(rotor) | Z11: Wet Weight segment of rotor | AA11: [kg] | AB11: =AB10*2 -> -1157.010208 | AC11: =AC10*3 -> -514.1272175 | AD11: Vs | AE11: Volume of Spar | AF11: [m3] | AG11: =Beam_Thickness_Calculator!AG4*Beam_Thickness_Calculator!AB8*Beam_Thickness_Calculator!AL11*2 -> 0.1074882117 | AH11: =Beam_Thickness_Calculator!AH4*Beam_Thickness_Calculator!AC8*Beam_Thickness_Calculator!AL11*2 -> 0.1164537528 | AI11: L | AJ11: Section Length | AK11: [m] | AL11: =Global_Var!$E$10 -> 0.7416666667
I12: =J12*0.75 -> 0.1882023609 | J12: =Blade_Definition!H9/2 -> 0.2509364812 | K12: =Spar_Thickness_Calculator!K12 -> 10.2375 | L12: =Spar_Thickness_Calculator!L12 -> 2.2305465 | M12: =Spar_Thickness_Calculator!#REF! ->  | N12: =Spar_Thickness_Calculator!M12 -> 5426667.2 | O12: =Spar_Thickness_Calculator!N12 -> 22.5 | P12: 24.28921501 | Q12: 0.1882023609 | R12: =AG82 -> 0.08411017815 | S12: =AB86 -> 606.342195 | T12: 63.15148077 | U12: 0.05 | V12: =AH82 -> 0.6982197816 | W12: =AC86 -> -316.570213 | AD12: Vc | AE12: Volume of Core | AF12: [m3] | AG12: =Beam_Thickness_Calculator!AG7*Beam_Thickness_Calculator!AG4*Beam_Thickness_Calculator!AL11 -> 1.894036799 | AH12: =Beam_Thickness_Calculator!AH7*Beam_Thickness_Calculator!AH4*Beam_Thickness_Calculator!AL11 -> 0.772854025 | AJ12: Beam width in terms of chord | AK12: [-] | AL12: =Global_Var!$E$11 -> 0.6
I13: =J13*0.75 -> 0.1558956262 | J13: =Blade_Definition!H10/2 -> 0.207860835 | K13: =Spar_Thickness_Calculator!K13 -> 12.5125 | L13: =Spar_Thickness_Calculator!L13 -> 1.911364 | M13: =Spar_Thickness_Calculator!#REF! ->  | N13: =Spar_Thickness_Calculator!M13 -> 3663270.908 | O13: =Spar_Thickness_Calculator!N13 -> 21.75 | P13: 25.2572393 | Q13: 0.1558956262 | R13: =AG97 -> 0.09855285992 | S13: =AB101 -> 412.896401 | T13: 59.8535562 | U13: 0.05 | V13: =AH97 -> 0.548277618 | W13: =AC101 -> -180.4657909 | Z13: Spar Strain Limit (Goal Seek to 1) | AB13: =(AB9/$AL$7) -> 0.9999810231 | AC13: =(AC9/$AL$7) -> 1.00011983 | AD13: Ms | AE13: Mass of Spar | AF13: [kg] | AG13: =Beam_Thickness_Calculator!AL5*AG11 -> 206.3773664 | AH13: =Beam_Thickness_Calculator!AL5*AH11 -> 223.5912053 | AJ13: Beam height in terms of thickness | AK13: [-] | AL13: 0.85
I14: 0.1320274069 | J14: =Blade_Definition!H11/2 -> 0.1760365425 | K14: =Spar_Thickness_Calculator!K14 -> 14.7875 | L14: =Spar_Thickness_Calculator!L14 -> 1.6765385 | M14: =Spar_Thickness_Calculator!#REF! ->  | N14: =Spar_Thickness_Calculator!M14 -> 2189716.612 | O14: =Spar_Thickness_Calculator!N14 -> 21 | P14: 23.72863382 | Q14: 0.1320274069 | R14: =AG112 -> 0.07409191549 | S14: =AB116 -> 311.6979208 | T14: 49.4672045 | U14: 0.05 | V14: =AH112 -> 0.3699574793 | W14: =AC116 -> -63.57153634 | AD14: Mc | AE14: Mass of Core | AF14: [kg] | AG14: =AG12*Beam_Thickness_Calculator!AL9 -> 1274.686766 | AH14: =AH12*Beam_Thickness_Calculator!AL9 -> 520.1307588 | AJ14: Chord Ratio Blade A/Blade B | AK14: [-] | AL14: =Global_Var!$E$13 -> 0.6666666667
I15: 0.1030216119 | J15: =Blade_Definition!H12/2 -> 0.1373621492 | K15: =Spar_Thickness_Calculator!K15 -> 17.0625 | L15: =Spar_Thickness_Calculator!L15 -> 1.42098775 | M15: =Spar_Thickness_Calculator!#REF! ->  | N15: =Spar_Thickness_Calculator!M15 -> 1062400.104 | O15: =Spar_Thickness_Calculator!N15 -> 19.33333333 | P15: 21.14781529 | Q15: 0.1030216119 | R15: =AG127 -> 0.04938846124 | S15: =AB131 -> 209.939538 | T15: 37.8505294 | U15: 0.05 | V15: =AH127 -> 0.2047824521 | W15: =AC131 -> 20.48457271 | AD15: Vd | AE15: Displaced Volume | AF15: [m3] | AG15: =Beam_Thickness_Calculator!AG6*Beam_Thickness_Calculator!AG4*Beam_Thickness_Calculator!AL11 -> 2.001525011 | AH15: =Beam_Thickness_Calculator!AH6*Beam_Thickness_Calculator!AH4*Beam_Thickness_Calculator!AL11 -> 0.8893077778 | AJ15: Moment Ratio Blade A/Blade B | AK15: [-] | AL15: =Global_Var!$E$14 -> 0.6666666667
I16: 0.07628177375 | J16: =Blade_Definition!H13/2 -> 0.1017090317 | K16: =Spar_Thickness_Calculator!K16 -> 19.3375 | L16: =Spar_Thickness_Calculator!L16 -> 1.151423 | M16: =Spar_Thickness_Calculator!#REF! ->  | N16: =Spar_Thickness_Calculator!M16 -> 324240.05 | O16: =Spar_Thickness_Calculator!N16 -> 17.66666667 | P16: 15.96048961 | Q16: 0.07628177375 | R16: =AG142 -> 0.003643288587 | S16: =AB146 -> 137.971596 | T16: 24.60960995 | U16: 0.05 | V16: =AH142 -> 0.06057106856 | W16: =AC146 -> 69.20934524 | AD16: Mw | AE16: Mass of disp. Seawater | AF16: [kg] | AG16: =Beam_Thickness_Calculator!AL10*Beam_Thickness_Calculator!AG15 -> 2059.569236 | AH16: =Beam_Thickness_Calculator!AL10*Beam_Thickness_Calculator!AH15 -> 915.0977033
J17: =Blade_Definition!H14/2 -> 0.05768854 | K17: =Spar_Thickness_Calculator!K17 -> 21.6125 | L17: =Spar_Thickness_Calculator!L17 -> 0.72110675 | M17: =Spar_Thickness_Calculator!#REF! ->  | N17: =Spar_Thickness_Calculator!M17 -> 0 | O17: =Spar_Thickness_Calculator!N17 -> 16 | P17: 2.89471596e+56 | Q17: 5740398089 | R17: =AG157 -> 1.774289336e+54 | S17: 40 | T17: 2.89471596e+56 | U17: =Spar_Thickness_Calculator!S17 -> -1.993580524e+71 | V17: =AH157 -> 3.987161047e+71 | W17: =AC161 -> -3.190948528e+74
P18: 24.65387527 | Q18: 0.04 | R18: =AG172 -> -0.08 | S18: =AB176 -> 0 | T18: 22.96795239 | U18: =Spar_Thickness_Calculator!S18 -> 0.287499489 | V18: =AH172 -> -0.5749989779 | W18: =AC176 -> 0 | Y18: Input/Output | AD18: Intermediate Calculations | AI18: Constants
P19: 24.29969433 | Q19: 0.04 | R19: =AG187 -> -0.08 | S19: =AB191 -> 0 | T19: 24.73467369 | U19: =Spar_Thickness_Calculator!S19 -> 0.2807631283 | V19: =AH187 -> -0.5615262565 | W19: =AC191 -> 0 | Y19: 2 | AB19: Blade A | AC19: Blade B | AD19: b | AE19: Spar Cap Width | AF19: [m] | AG19: =Beam_Thickness_Calculator!AB20*Beam_Thickness_Calculator!AL27 -> 1.38 | AH19: =Beam_Thickness_Calculator!AC20*Beam_Thickness_Calculator!AL27 -> 0.92 | AI19: EUD | AJ19: Modulus of Sparcap | AK19: [Pa] | AL19: =Global_Var!$E$3 -> 39800000000
P20: 23.82657476 | Q20: 0.04 | R20: =AG202 -> -0.08 | S20: =AB206 -> 0 | T20: 24.47920287 | U20: =Spar_Thickness_Calculator!S20 -> 0.2720572865 | V20: =AH202 -> -0.5441145729 | W20: =AC206 -> 0 | Y20: C | Z20: Chord | AA20: [m] | AB20: =L8 -> 2.3 | AC20: =AB20*Beam_Thickness_Calculator!AL29 -> 1.533333333 | AD20: t | AE20: Airfoil thickness | AF20: [m] | AG20: =Beam_Thickness_Calculator!AB21*Beam_Thickness_Calculator!AB20/100 -> 2.300911773 | AH20: =Beam_Thickness_Calculator!AC21*Beam_Thickness_Calculator!AC20/100 -> 1.533333333 | AI20: ρs | AJ20: Density of sparcap | AK20: [kg/m3] | AL20: =Global_Var!$E$4 -> 1920
P21: 23.26612415 | Q21: 0.04 | R21: =AG217 -> -0.08 | S21: =AB221 -> 0 | T21: 24.13926305 | U21: =Spar_Thickness_Calculator!S21 -> 0.2615738172 | V21: =AH217 -> -0.5231476345 | W21: =AC221 -> 0 | Y21: AF% | Z21: % thickness of foil | AA21: [%] | AB21: =P8 -> 100.0396423 | AC21: =T8 -> 100 | AD21: ho | AE21: Section height outer | AF21: [m] | AG21: =AG20*Beam_Thickness_Calculator!AL28 -> 1.955775007 | AH21: =AH20*Beam_Thickness_Calculator!AL28 -> 1.303333333 | AI21: ϵUD(max) | AJ21: Max allow design strain Sparcap | AK21: [-] | AL21: =Global_Var!$E$5 -> 0.0029
P22: 22.58627147 | Q22: 0.04 | R22: =AG232 -> -0.08 | S22: =AB236 -> 0 | T22: 23.71285198 | U22: =Spar_Thickness_Calculator!S22 -> 0.2508164134 | V22: =AH232 -> -0.5016328268 | W22: =AC236 -> 0 | Y22: M | Z22: Moment | AA22: [n-m] | AB22: =N8 -> 14315791.05 | AC22: =AB22*Beam_Thickness_Calculator!AL30 -> 9543860.702 | AD22: hc | AE22: height of core | AF22: [m] | AG22: =Beam_Thickness_Calculator!AG21-2*Beam_Thickness_Calculator!AB23 -> 1.85919122 | AH22: =Beam_Thickness_Calculator!AH21-2*Beam_Thickness_Calculator!AC23 -> 1.147610045 | AI22: σs(allow) | AJ22: Allowable stress in Sparcap | AK22: [Pa] | AL22: =Global_Var!$E$6 -> 115420000
P23: 21.77614478 | Q23: 0.04 | R23: =AG247 -> -0.08 | S23: =AB251 -> 0 | T23: 23.1924277 | U23: =Spar_Thickness_Calculator!S23 -> 0.236485616 | V23: =AH247 -> -0.4729712319 | W23: =AC251 -> 0 | Y23: t | Z23: Spar Cap Thickness | AA23: [m] | AB23: =Q8 -> 0.04829189371 | AC23: =U8 -> 0.07786164435 | AD23: c | AE23: distance from neutral axis | AF23: [m] | AG23: =Beam_Thickness_Calculator!AG21/2 -> 0.9778875036 | AH23: =Beam_Thickness_Calculator!AH21/2 -> 0.6516666667 | AI23: EC | AJ23: Modulus of Core | AK23: [Pa] | AL23: =Global_Var!$E$7 -> 3790000
P24: 21.3 | Q24: =Spar_Thickness_Calculator!P24 -> 0.03829865683 | R24: =AG262 -> -0.07659731367 | S24: =AB266 -> 0 | T24: 22.57639155 | U24: =Spar_Thickness_Calculator!S24 -> 0.2186359422 | V24: =AH262 -> -0.4372718844 | W24: =AC266 -> 0 | Y24: σs(max) | Z24: Max Stress in Sparcap | AA24: [Pa] | AB24: =(AB22*(Beam_Thickness_Calculator!AG21/2)*Beam_Thickness_Calculator!AL19)/(Beam_Thickness_Calculator!AL19*Beam_Thickness_Calculator!AG24+Beam_Thickness_Calculator!AL23*Beam_Thickness_Calculator!AG25) -> 115375811.8 | AC24: =(AC22*(Beam_Thickness_Calculator!AH21/2)*Beam_Thickness_Calculator!AL19)/(Beam_Thickness_Calculator!AL19*Beam_Thickness_Calculator!AH24+Beam_Thickness_Calculator!AL23*Beam_Thickness_Calculator!AH25) -> 115448599.4 | AD24: Is | AE24: Moment of inertia Spar | AF24: [m4] | AG24: =(Beam_Thickness_Calculator!AG19/12)*(Beam_Thickness_Calculator!AG21^3-Beam_Thickness_Calculator!AG22^3) -> 0.1212655689 | AH24: =(Beam_Thickness_Calculator!AH19/12)*(Beam_Thickness_Calculator!AH21^3-Beam_Thickness_Calculator!AH22^3) -> 0.05386069666 | AI24: ρc | AJ24: Density of core | AK24: [kg/m3] | AL24: =Global_Var!$E$8 -> 673
P25: 21.2 | Q25: =Spar_Thickness_Calculator!P25 -> 0.03472835045 | R25: =AG277 -> -0.0694567009 | S25: =AB281 -> 0 | T25: 21.8574879 | U25: =Spar_Thickness_Calculator!S25 -> 0.1921793983 | V25: =AH277 -> -0.3843587967 | W25: =AC281 -> 0 | Y25: Ww | Z25: Wet Weight | AA25: [kg] | AB25: =Beam_Thickness_Calculator!AG29+Beam_Thickness_Calculator!AG28-Beam_Thickness_Calculator!AG31 -> -589.3475938 | AC25: =Beam_Thickness_Calculator!AH29+Beam_Thickness_Calculator!AH28-Beam_Thickness_Calculator!AH31 -> -184.0933461 | AD25: Ic | AE25: Moment of inertia Core | AF25: [m4] | AG25: =(Beam_Thickness_Calculator!AG19/12)*Beam_Thickness_Calculator!AG22^3 -> 0.7390435304 | AH25: =(Beam_Thickness_Calculator!AH19/12)*Beam_Thickness_Calculator!AH22^3 -> 0.1158749617 | AI25: ρw | AJ25: Density of Seawater | AK25: [kg/m3] | AL25: =Global_Var!$E$9 -> 1029
P26: 21.1 | Q26: =Spar_Thickness_Calculator!P26 -> 0.03085315141 | R26: =AG292 -> -0.06170630282 | S26: =AB296 -> 0 | T26: 21.02789976 | U26: =Spar_Thickness_Calculator!S26 -> 0.09702926307 | V26: =AH292 -> -0.1940585261 | W26: =AC296 -> 0 | Y26: Ww(rotor) | Z26: Wet Weight segment of rotor (+ floats) | AA26: [kg] | AB26: =AB25*2 -> -1178.695188 | AC26: =AC25*3 -> -552.2800384 | AD26: Vs | AE26: Volume of Spar | AF26: [m3] | AG26: =Beam_Thickness_Calculator!AG19*Beam_Thickness_Calculator!AB23*Beam_Thickness_Calculator!AL26*2 -> 0.09885350642 | AH26: =Beam_Thickness_Calculator!AH19*Beam_Thickness_Calculator!AC23*Beam_Thickness_Calculator!AL26*2 -> 0.1062551907 | AI26: L | AJ26: Section Length | AK26: [m] | AL26: =Global_Var!$E$10 -> 0.7416666667
P27: 20.8 | Q27: =Spar_Thickness_Calculator!P27 -> 0.02722358114 | R27: =AG307 -> -0.05444716227 | S27: =AB311 -> 0 | T27: 20.8 | U27: =Spar_Thickness_Calculator!S27 -> 0.07633643351 | V27: =AH307 -> -0.152672867 | W27: =AC311 -> 0 | AD27: Vc | AE27: Volume of Core | AF27: [m3] | AG27: =Beam_Thickness_Calculator!AG22*Beam_Thickness_Calculator!AG19*Beam_Thickness_Calculator!AL26 -> 1.902882214 | AH27: =Beam_Thickness_Calculator!AH22*Beam_Thickness_Calculator!AH19*Beam_Thickness_Calculator!AL26 -> 0.7830525871 | AJ27: Beam width in terms of chord | AK27: [-] | AL27: =Global_Var!$E$11 -> 0.6
P28: 20.4 | Q28: =Spar_Thickness_Calculator!P28 -> 0.0235641184 | R28: =AG322 -> -0.0471282368 | S28: =AB326 -> 0 | T28: 20.4 | U28: =Spar_Thickness_Calculator!S28 -> 0.06141767948 | V28: =AH322 -> -0.122835359 | W28: =AC326 -> 0 | Z28: Spar Strain Limit (Goal Seek to 1) | AB28: =(AB24/$AL$7) -> 0.9996171534 | AC28: =(AC24/$AL$7) -> 1.000247786 | AD28: Ms | AE28: Mass of Spar | AF28: [kg] | AG28: =Beam_Thickness_Calculator!AL20*AG26 -> 189.7987323 | AH28: =Beam_Thickness_Calculator!AL20*AH26 -> 204.0099661 | AJ28: Beam height in terms of thickness | AK28: [-] | AL28: 0.85
P29: 19.9 | Q29: =Spar_Thickness_Calculator!P29 -> 0.0198283488 | R29: =AG337 -> -0.03965669759 | S29: =AB341 -> 0 | T29: 19.9 | U29: =Spar_Thickness_Calculator!S29 -> 0.04904894756 | V29: =AH337 -> -0.09809789511 | W29: =AC341 -> 0 | AD29: Mc | AE29: Mass of Core | AF29: [kg] | AG29: =AG27*Beam_Thickness_Calculator!AL24 -> 1280.63973 | AH29: =AH27*Beam_Thickness_Calculator!AL24 -> 526.9943911 | AJ29: Chord Ratio Blade A/Blade B | AK29: [-] | AL29: =Global_Var!$E$13 -> 0.6666666667
P30: 19.5 | Q30: =Spar_Thickness_Calculator!P30 -> 0.01572867694 | R30: =AG352 -> -0.03145735388 | S30: =AB356 -> 0 | T30: 19.5 | U30: =Spar_Thickness_Calculator!S30 -> 0.03730407404 | V30: =AH352 -> -0.07460814809 | W30: =AC356 -> 0 | AD30: Vd | AE30: Displaced Volume | AF30: [m3] | AG30: =Beam_Thickness_Calculator!AG21*Beam_Thickness_Calculator!AG19*Beam_Thickness_Calculator!AL26 -> 2.00173572 | AH30: =Beam_Thickness_Calculator!AH21*Beam_Thickness_Calculator!AH19*Beam_Thickness_Calculator!AL26 -> 0.8893077778 | AJ30: Moment Ratio Blade A/Blade B | AK30: [-] | AL30: =Global_Var!$E$14 -> 0.6666666667
P31: 19 | Q31: =Spar_Thickness_Calculator!P31 -> 0.01172562288 | R31: =AG367 -> -0.02345124575 | S31: =AB371 -> 0 | T31: 19 | U31: =Spar_Thickness_Calculator!S31 -> 0.02753359682 | V31: =AH367 -> -0.05506719365 | W31: =AC371 -> 0 | AD31: Mw | AE31: Mass of disp. Seawater | AF31: [kg] | AG31: =Beam_Thickness_Calculator!AL25*Beam_Thickness_Calculator!AG30 -> 2059.786056 | AH31: =Beam_Thickness_Calculator!AL25*Beam_Thickness_Calculator!AH30 -> 915.0977033
P32: 18.5 | Q32: =Spar_Thickness_Calculator!P32 -> 0.007880961187 | R32: =AG382 -> -0.01576192237 | S32: =AB386 -> 0 | T32: 18.5 | U32: =Spar_Thickness_Calculator!S32 -> 0.01902742232 | V32: =AH382 -> -0.03805484465 | W32: =AC386 -> 0
P33: 18.1 | Q33: =Spar_Thickness_Calculator!P33 -> 0.004191143401 | R33: =AG397 -> -0.008382286801 | S33: =AB401 -> 0 | T33: 18.1 | U33: =Spar_Thickness_Calculator!S33 -> 0.01172739648 | V33: =AH397 -> -0.02345479296 | W33: =AC401 -> 0 | Y33: Input/Output | AD33: Intermediate Calculations | AI33: Constants
P34: 17.6 | Q34: =Spar_Thickness_Calculator!P34 -> 0.001066978348 | R34: =AG412 -> -0.002133956696 | S34: =AB416 -> 0 | T34: 17.6 | U34: =Spar_Thickness_Calculator!S34 -> 0.005992007328 | V34: =AH412 -> -0.01198401466 | W34: =AC416 -> 0 | Y34: 3 | AB34: Blade A | AC34: Blade B | AD34: b | AE34: Spar Cap Width | AF34: [m] | AG34: =Beam_Thickness_Calculator!AB35*Beam_Thickness_Calculator!AL42 -> 1.714357425 | AH34: =Beam_Thickness_Calculator!AC35*Beam_Thickness_Calculator!AL42 -> 1.14290495 | AI34: EUD | AJ34: Modulus of Sparcap | AK34: [Pa] | AL34: =Global_Var!$E$3 -> 39800000000
P35: 17.2 | Q35: =Spar_Thickness_Calculator!P35 -> -0.001472850964 | R35: =AG427 -> 0.002945701928 | S35: =AB431 -> 0 | T35: 17.2 | U35: =Spar_Thickness_Calculator!S35 -> 0.001600141133 | V35: =AH427 -> -0.003200282267 | W35: =AC431 -> 0 | Y35: C | Z35: Chord | AA35: [m] | AB35: =L9 -> 2.857262375 | AC35: =AB35*Beam_Thickness_Calculator!AL44 -> 1.904841583 | AD35: t | AE35: Airfoil thickness | AF35: [m] | AG35: =Beam_Thickness_Calculator!AB36*Beam_Thickness_Calculator!AB35/100 -> 1.797582705 | AH35: =Beam_Thickness_Calculator!AC36*Beam_Thickness_Calculator!AC35/100 -> 1.535119367 | AI35: ρs | AJ35: Density of sparcap | AK35: [kg/m3] | AL35: =Global_Var!$E$4 -> 1920
P36: 16.7 | Q36: =Spar_Thickness_Calculator!P36 -> -0.003157231886 | R36: =AG442 -> 0.006314463771 | S36: =AB446 -> 0 | T36: 16.7 | U36: =Spar_Thickness_Calculator!S36 -> -0.001258008941 | V36: =AH442 -> 0.002516017883 | W36: =AC446 -> 0 | Y36: AF% | Z36: % thickness of foil | AA36: [%] | AB36: =P9 -> 62.91276295 | AC36: =T9 -> 80.59039556 | AD36: ho | AE36: Section height outer | AF36: [m] | AG36: =AG35*Beam_Thickness_Calculator!AL43 -> 1.527945299 | AH36: =AH35*Beam_Thickness_Calculator!AL43 -> 1.304851462 | AI36: ϵUD(max) | AJ36: Max allow design strain Sparcap | AK36: [-] | AL36: =Global_Var!$E$5 -> 0.0029
P37: -7.758096827e+39 | Q37: =Spar_Thickness_Calculator!P37 -> 5880034876 | R37: =AG457 -> -1.176006975e+10 | S37: =AB461 -> 0 | T37: -7.758096827e+39 | U37: =Spar_Thickness_Calculator!S37 -> 1.39086906e+10 | V37: =AH457 -> -2.78173812e+10 | W37: =AC461 -> 0 | Y37: M | Z37: Moment | AA37: [n-m] | AB37: =N9 -> 11950574.84 | AC37: =AB37*Beam_Thickness_Calculator!AL45 -> 7967049.893 | AD37: hc | AE37: height of core | AF37: [m] | AG37: =Beam_Thickness_Calculator!AG36-2*Beam_Thickness_Calculator!AB38 -> 1.444450255 | AH37: =Beam_Thickness_Calculator!AH36-2*Beam_Thickness_Calculator!AC38 -> 1.204851462 | AI37: σs(allow) | AJ37: Allowable stress in Sparcap | AK37: [Pa] | AL37: =Global_Var!$E$6 -> 115420000
Y38: t | Z38: Spar Cap Thickness | AA38: [m] | AB38: =Q9 -> 0.04174752228 | AC38: =U9 -> 0.05 | AD38: c | AE38: distance from neutral axis | AF38: [m] | AG38: =Beam_Thickness_Calculator!AG36/2 -> 0.7639726496 | AH38: =Beam_Thickness_Calculator!AH36/2 -> 0.6524257309 | AI38: EC | AJ38: Modulus of Core | AK38: [Pa] | AL38: =Global_Var!$E$7 -> 3790000
Y39: σs(max) | Z39: Max Stress in Sparcap | AA39: [Pa] | AB39: =(AB37*(Beam_Thickness_Calculator!AG36/2)*Beam_Thickness_Calculator!AL34)/(Beam_Thickness_Calculator!AL34*Beam_Thickness_Calculator!AG39+Beam_Thickness_Calculator!AL38*Beam_Thickness_Calculator!AG40) -> 115417573.6 | AC39: =(AC37*(Beam_Thickness_Calculator!AH36/2)*Beam_Thickness_Calculator!AL34)/(Beam_Thickness_Calculator!AL34*Beam_Thickness_Calculator!AH39+Beam_Thickness_Calculator!AL38*Beam_Thickness_Calculator!AH40) -> 115427971.9 | AD39: Is | AE39: Moment of inertia Spar | AF39: [m4] | AG39: =(Beam_Thickness_Calculator!AG34/12)*(Beam_Thickness_Calculator!AG36^3-Beam_Thickness_Calculator!AG37^3) -> 0.07906231189 | AH39: =(Beam_Thickness_Calculator!AH34/12)*(Beam_Thickness_Calculator!AH36^3-Beam_Thickness_Calculator!AH37^3) -> 0.04501575511 | AI39: ρc | AJ39: Density of core | AK39: [kg/m3] | AL39: =Global_Var!$E$8 -> 673
Y40: Ww | Z40: Wet Weight | AA40: [kg] | AB40: =Beam_Thickness_Calculator!AG44+Beam_Thickness_Calculator!AG43-Beam_Thickness_Calculator!AG46 -> -559.236083 | AC40: =Beam_Thickness_Calculator!AH44+Beam_Thickness_Calculator!AH43-Beam_Thickness_Calculator!AH46 -> -288.0559894 | AD40: Ic | AE40: Moment of inertia Core | AF40: [m4] | AG40: =(Beam_Thickness_Calculator!AG34/12)*Beam_Thickness_Calculator!AG37^3 -> 0.4305542654 | AH40: =(Beam_Thickness_Calculator!AH34/12)*Beam_Thickness_Calculator!AH37^3 -> 0.1665825072 | AI40: ρw | AJ40: Density of Seawater | AK40: [kg/m3] | AL40: =Global_Var!$E$9 -> 1029
Y41: Ww(rotor) | Z41: Wet Weight segment of rotor (+ floats) | AA41: [kg] | AB41: =AB40*2 -> -1118.472166 | AC41: =AC40*3 -> -864.1679681 | AD41: Vs | AE41: Volume of Spar | AF41: [m3] | AG41: =Beam_Thickness_Calculator!AG34*Beam_Thickness_Calculator!AB38*Beam_Thickness_Calculator!AL41*2 -> 0.1061624259 | AH41: =Beam_Thickness_Calculator!AH34*Beam_Thickness_Calculator!AC38*Beam_Thickness_Calculator!AL41*2 -> 0.08476545046 | AI41: L | AJ41: Section Length | AK41: [m] | AL41: =Global_Var!$E$10 -> 0.7416666667
AD42: Vc | AE42: Volume of Core | AF42: [m3] | AG42: =Beam_Thickness_Calculator!AG37*Beam_Thickness_Calculator!AG34*Beam_Thickness_Calculator!AL41 -> 1.836592148 | AH42: =Beam_Thickness_Calculator!AH37*Beam_Thickness_Calculator!AH34*Beam_Thickness_Calculator!AL41 -> 1.021297769 | AJ42: Beam width in terms of chord | AK42: [-] | AL42: =Global_Var!$E$11 -> 0.6
Z43: Spar Strain Limit (Goal Seek to 1) | AB43: =(AB39/$AL$7) -> 0.9999789777 | AC43: =(AC39/$AL$7) -> 1.000069068 | AD43: Ms | AE43: Mass of Spar | AF43: [kg] | AG43: =Beam_Thickness_Calculator!AL35*AG41 -> 203.8318578 | AH43: =Beam_Thickness_Calculator!AL35*AH41 -> 162.7496649 | AJ43: Beam height in terms of thickness | AK43: [-] | AL43: 0.85
AD44: Mc | AE44: Mass of Core | AF44: [kg] | AG44: =AG42*Beam_Thickness_Calculator!AL39 -> 1236.026515 | AH44: =AH42*Beam_Thickness_Calculator!AL39 -> 687.3333985 | AJ44: Chord Ratio Blade A/Blade B | AK44: [-] | AL44: =Global_Var!$E$13 -> 0.6666666667
AD45: Vd | AE45: Displaced Volume | AF45: [m3] | AG45: =Beam_Thickness_Calculator!AG36*Beam_Thickness_Calculator!AG34*Beam_Thickness_Calculator!AL41 -> 1.942754573 | AH45: =Beam_Thickness_Calculator!AH36*Beam_Thickness_Calculator!AH34*Beam_Thickness_Calculator!AL41 -> 1.106063219 | AJ45: Moment Ratio Blade A/Blade B | AK45: [-] | AL45: =Global_Var!$E$14 -> 0.6666666667
AD46: Mw | AE46: Mass of disp. Seawater | AF46: [kg] | AG46: =Beam_Thickness_Calculator!AL40*Beam_Thickness_Calculator!AG45 -> 1999.094456 | AH46: =Beam_Thickness_Calculator!AL40*Beam_Thickness_Calculator!AH45 -> 1138.139053
Y48: Input/Output | AD48: Intermediate Calculations | AI48: Constants
Y49: 4 | AB49: Blade A | AC49: Blade B | AD49: b | AE49: Spar Cap Width | AF49: [m] | AG49: =Beam_Thickness_Calculator!AB50*Beam_Thickness_Calculator!AL57 -> 2.04871485 | AH49: =Beam_Thickness_Calculator!AC50*Beam_Thickness_Calculator!AL57 -> 1.3658099 | AI49: EUD | AJ49: Modulus of Sparcap | AK49: [Pa] | AL49: =Global_Var!$E$3 -> 39800000000
Y50: C | Z50: Chord | AA50: [m] | AB50: =L10 -> 3.41452475 | AC50: =AB50*Beam_Thickness_Calculator!AL59 -> 2.276349833 | AD50: t | AE50: Airfoil thickness | AF50: [m] | AG50: =Beam_Thickness_Calculator!AB51*Beam_Thickness_Calculator!AB50/100 -> 0.8195758322 | AH50: =Beam_Thickness_Calculator!AC51*Beam_Thickness_Calculator!AC50/100 -> 1.069824707 | AI50: ρs | AJ50: Density of sparcap | AK50: [kg/m3] | AL50: =Global_Var!$E$4 -> 1920
Y51: AF% | Z51: % thickness of foil | AA51: [%] | AB51: =P10 -> 24.00263264 | AC51: =T10 -> 46.99737673 | AD51: ho | AE51: Section height outer | AF51: [m] | AG51: =AG50*Beam_Thickness_Calculator!AL58 -> 0.6966394573 | AH51: =AH50*Beam_Thickness_Calculator!AL58 -> 0.9093510008 | AI51: ϵUD(max) | AJ51: Max allow design strain Sparcap | AK51: [-] | AL51: =Global_Var!$E$5 -> 0.0029
Y52: M | Z52: Moment | AA52: [n-m] | AB52: =N10 -> 9618492.134 | AC52: =AB52*Beam_Thickness_Calculator!AL60 -> 6412328.089 | AD52: hc | AE52: height of core | AF52: [m] | AG52: =Beam_Thickness_Calculator!AG51-2*Beam_Thickness_Calculator!AB53 -> 0.5518676019 | AH52: =Beam_Thickness_Calculator!AH51-2*Beam_Thickness_Calculator!AC53 -> 0.8093510008 | AI52: σs(allow) | AJ52: Allowable stress in Sparcap | AK52: [Pa] | AL52: =Global_Var!$E$6 -> 115420000
Y53: t | Z53: Spar Cap Thickness | AA53: [m] | AB53: =Q10 -> 0.07238592773 | AC53: =U10 -> 0.05 | AD53: c | AE53: distance from neutral axis | AF53: [m] | AG53: =Beam_Thickness_Calculator!AG51/2 -> 0.3483197287 | AH53: =Beam_Thickness_Calculator!AH51/2 -> 0.4546755004 | AI53: EC | AJ53: Modulus of Core | AK53: [Pa] | AL53: =Global_Var!$E$7 -> 3790000
Y54: σs(max) | Z54: Max Stress in Sparcap | AA54: [Pa] | AB54: =(AB52*(Beam_Thickness_Calculator!AG51/2)*Beam_Thickness_Calculator!AL49)/(Beam_Thickness_Calculator!AL49*Beam_Thickness_Calculator!AG54+Beam_Thickness_Calculator!AL53*Beam_Thickness_Calculator!AG55) -> 115418221.3 | AC54: =(AC52*(Beam_Thickness_Calculator!AH51/2)*Beam_Thickness_Calculator!AL49)/(Beam_Thickness_Calculator!AL49*Beam_Thickness_Calculator!AH54+Beam_Thickness_Calculator!AL53*Beam_Thickness_Calculator!AH55) -> 115466820.6 | AD54: Is | AE54: Moment of inertia Spar | AF54: [m4] | AG54: =(Beam_Thickness_Calculator!AG49/12)*(Beam_Thickness_Calculator!AG51^3-Beam_Thickness_Calculator!AG52^3) -> 0.02902483811 | AH54: =(Beam_Thickness_Calculator!AH49/12)*(Beam_Thickness_Calculator!AH51^3-Beam_Thickness_Calculator!AH52^3) -> 0.02524417819 | AI54: ρc | AJ54: Density of core | AK54: [kg/m3] | AL54: =Global_Var!$E$8 -> 673
Y55: Ww | Z55: Wet Weight | AA55: [kg] | AB55: =Beam_Thickness_Calculator!AG59+Beam_Thickness_Calculator!AG58-Beam_Thickness_Calculator!AG61 -> -102.522979 | AC55: =Beam_Thickness_Calculator!AH59+Beam_Thickness_Calculator!AH58-Beam_Thickness_Calculator!AH61 -> -201.6114915 | AD55: Ic | AE55: Moment of inertia Core | AF55: [m4] | AG55: =(Beam_Thickness_Calculator!AG49/12)*Beam_Thickness_Calculator!AG52^3 -> 0.02869491657 | AH55: =(Beam_Thickness_Calculator!AH49/12)*Beam_Thickness_Calculator!AH52^3 -> 0.06034200472 | AI55: ρw | AJ55: Density of Seawater | AK55: [kg/m3] | AL55: =Global_Var!$E$9 -> 1029
Y56: Ww(rotor) | Z56: Wet Weight segment of rotor (+ floats) | AA56: [kg] | AB56: =AB55*2 -> -205.0459581 | AC56: =AC55*3 -> -604.8344745 | AD56: Vs | AE56: Volume of Spar | AF56: [m3] | AG56: =Beam_Thickness_Calculator!AG49*Beam_Thickness_Calculator!AB53*Beam_Thickness_Calculator!AL56*2 -> 0.2199755522 | AH56: =Beam_Thickness_Calculator!AH49*Beam_Thickness_Calculator!AC53*Beam_Thickness_Calculator!AL56*2 -> 0.1012975676 | AI56: L | AJ56: Section Length | AK56: [m] | AL56: =Global_Var!$E$10 -> 0.7416666667
AD57: Vc | AE57: Volume of Core | AF57: [m3] | AG57: =Beam_Thickness_Calculator!AG52*Beam_Thickness_Calculator!AG49*Beam_Thickness_Calculator!AL56 -> 0.8385426855 | AH57: =Beam_Thickness_Calculator!AH52*Beam_Thickness_Calculator!AH49*Beam_Thickness_Calculator!AL56 -> 0.819852877 | AJ57: Beam width in terms of chord | AK57: [-] | AL57: =Global_Var!$E$11 -> 0.6
Z58: Spar Strain Limit (Goal Seek to 1) | AB58: =(AB54/$AL$7) -> 0.9999845897 | AC58: =(AC54/$AL$7) -> 1.000405654 | AD58: Ms | AE58: Mass of Spar | AF58: [kg] | AG58: =Beam_Thickness_Calculator!AL50*AG56 -> 422.3530602 | AH58: =Beam_Thickness_Calculator!AL50*AH56 -> 194.4913298 | AJ58: Beam height in terms of thickness | AK58: [-] | AL58: 0.85
AD59: Mc | AE59: Mass of Core | AF59: [kg] | AG59: =AG57*Beam_Thickness_Calculator!AL54 -> 564.3392273 | AH59: =AH57*Beam_Thickness_Calculator!AL54 -> 551.7609862 | AJ59: Chord Ratio Blade A/Blade B | AK59: [-] | AL59: =Global_Var!$E$13 -> 0.6666666667
AD60: Vd | AE60: Displaced Volume | AF60: [m3] | AG60: =Beam_Thickness_Calculator!AG51*Beam_Thickness_Calculator!AG49*Beam_Thickness_Calculator!AL56 -> 1.058518238 | AH60: =Beam_Thickness_Calculator!AH51*Beam_Thickness_Calculator!AH49*Beam_Thickness_Calculator!AL56 -> 0.9211504446 | AJ60: Moment Ratio Blade A/Blade B | AK60: [-] | AL60: =Global_Var!$E$14 -> 0.6666666667
AD61: Mw | AE61: Mass of disp. Seawater | AF61: [kg] | AG61: =Beam_Thickness_Calculator!AL55*Beam_Thickness_Calculator!AG60 -> 1089.215267 | AH61: =Beam_Thickness_Calculator!AL55*Beam_Thickness_Calculator!AH60 -> 947.8638075
Y63: Input/Output | AD63: Intermediate Calculations | AI63: Constants
Y64: 5 | AB64: Blade A | AC64: Blade B | AD64: b | AE64: Spar Cap Width | AF64: [m] | AG64: =Beam_Thickness_Calculator!AB65*Beam_Thickness_Calculator!AL72 -> 1.6181256 | AH64: =Beam_Thickness_Calculator!AC65*Beam_Thickness_Calculator!AL72 -> 1.0787504 | AI64: EUD | AJ64: Modulus of Sparcap | AK64: [Pa] | AL64: =Global_Var!$E$3 -> 39800000000
Y65: C | Z65: Chord | AA65: [m] | AB65: =L11 -> 2.696876 | AC65: =AB65*Beam_Thickness_Calculator!AL74 -> 1.797917333 | AD65: t | AE65: Airfoil thickness | AF65: [m] | AG65: =Beam_Thickness_Calculator!AB66*Beam_Thickness_Calculator!AB65/100 -> 0.6273100222 | AH65: =Beam_Thickness_Calculator!AC66*Beam_Thickness_Calculator!AC65/100 -> 1.048084247 | AI65: ρs | AJ65: Density of sparcap | AK65: [kg/m3] | AL65: =Global_Var!$E$4 -> 1920
Y66: AF% | Z66: % thickness of foil | AA66: [%] | AB66: =P11 -> 23.26061792 | AC66: =T11 -> 58.29435134 | AD66: ho | AE66: Section height outer | AF66: [m] | AG66: =AG65*Beam_Thickness_Calculator!AL73 -> 0.5332135188 | AH66: =AH65*Beam_Thickness_Calculator!AL73 -> 0.89087161 | AI66: ϵUD(max) | AJ66: Max allow design strain Sparcap | AK66: [-] | AL66: =Global_Var!$E$5 -> 0.0029
Y67: M | Z67: Moment | AA67: [n-m] | AB67: =N11 -> 7424471.612 | AC67: =AB67*Beam_Thickness_Calculator!AL75 -> 4949647.741 | AD67: hc | AE67: height of core | AF67: [m] | AG67: =Beam_Thickness_Calculator!AG66-2*Beam_Thickness_Calculator!AB68 -> 0.2901779516 | AH67: =Beam_Thickness_Calculator!AH66-2*Beam_Thickness_Calculator!AC68 -> 0.79087161 | AI67: σs(allow) | AJ67: Allowable stress in Sparcap | AK67: [Pa] | AL67: =Global_Var!$E$6 -> 115420000
Y68: t | Z68: Spar Cap Thickness | AA68: [m] | AB68: =Q11 -> 0.1215177836 | AC68: =U11 -> 0.05 | AD68: c | AE68: distance from neutral axis | AF68: [m] | AG68: =Beam_Thickness_Calculator!AG66/2 -> 0.2666067594 | AH68: =Beam_Thickness_Calculator!AH66/2 -> 0.445435805 | AI68: EC | AJ68: Modulus of Core | AK68: [Pa] | AL68: =Global_Var!$E$7 -> 3790000
Y69: σs(max) | Z69: Max Stress in Sparcap | AA69: [Pa] | AB69: =(AB67*(Beam_Thickness_Calculator!AG66/2)*Beam_Thickness_Calculator!AL64)/(Beam_Thickness_Calculator!AL64*Beam_Thickness_Calculator!AG69+Beam_Thickness_Calculator!AL68*Beam_Thickness_Calculator!AG70) -> 115430729.2 | AC69: =(AC67*(Beam_Thickness_Calculator!AH66/2)*Beam_Thickness_Calculator!AL64)/(Beam_Thickness_Calculator!AL64*Beam_Thickness_Calculator!AH69+Beam_Thickness_Calculator!AL68*Beam_Thickness_Calculator!AH70) -> 115459902.7 | AD69: Is | AE69: Moment of inertia Spar | AF69: [m4] | AG69: =(Beam_Thickness_Calculator!AG64/12)*(Beam_Thickness_Calculator!AG66^3-Beam_Thickness_Calculator!AG67^3) -> 0.01714775706 | AH69: =(Beam_Thickness_Calculator!AH64/12)*(Beam_Thickness_Calculator!AH66^3-Beam_Thickness_Calculator!AH67^3) -> 0.01909114199 | AI69: ρc | AJ69: Density of core | AK69: [kg/m3] | AL69: =Global_Var!$E$8 -> 673
Y70: Ww | Z70: Wet Weight | AA70: [kg] | AB70: =Beam_Thickness_Calculator!AG74+Beam_Thickness_Calculator!AG73-Beam_Thickness_Calculator!AG76 -> 135.9020437 | AC70: =Beam_Thickness_Calculator!AH74+Beam_Thickness_Calculator!AH73-Beam_Thickness_Calculator!AH76 -> -153.9743244 | AD70: Ic | AE70: Moment of inertia Core | AF70: [m4] | AG70: =(Beam_Thickness_Calculator!AG64/12)*Beam_Thickness_Calculator!AG67^3 -> 0.003294763262 | AH70: =(Beam_Thickness_Calculator!AH64/12)*Beam_Thickness_Calculator!AH67^3 -> 0.04446903257 | AI70: ρw | AJ70: Density of Seawater | AK70: [kg/m3] | AL70: =Global_Var!$E$9 -> 1029
Y71: Ww(rotor) | Z71: Wet Weight segment of rotor (+ floats) | AA71: [kg] | AB71: =AB70*2 -> 271.8040874 | AC71: =AC70*3 -> -461.9229733 | AD71: Vs | AE71: Volume of Spar | AF71: [m3] | AG71: =Beam_Thickness_Calculator!AG64*Beam_Thickness_Calculator!AB68*Beam_Thickness_Calculator!AL71*2 -> 0.2916693708 | AH71: =Beam_Thickness_Calculator!AH64*Beam_Thickness_Calculator!AC68*Beam_Thickness_Calculator!AL71*2 -> 0.08000732133 | AI71: L | AJ71: Section Length | AK71: [m] | AL71: =Global_Var!$E$10 -> 0.7416666667
AD72: Vc | AE72: Volume of Core | AF72: [m3] | AG72: =Beam_Thickness_Calculator!AG67*Beam_Thickness_Calculator!AG64*Beam_Thickness_Calculator!AL71 -> 0.3482454093 | AH72: =Beam_Thickness_Calculator!AH67*Beam_Thickness_Calculator!AH64*Beam_Thickness_Calculator!AL71 -> 0.6327551903 | AJ72: Beam width in terms of chord | AK72: [-] | AL72: =Global_Var!$E$11 -> 0.6
Z73: Spar Strain Limit (Goal Seek to 1) | AB73: =(AB69/$AL$7) -> 1.000092958 | AC73: =(AC69/$AL$7) -> 1.000345718 | AD73: Ms | AE73: Mass of Spar | AF73: [kg] | AG73: =Beam_Thickness_Calculator!AL65*AG71 -> 560.005192 | AH73: =Beam_Thickness_Calculator!AL65*AH71 -> 153.614057 | AJ73: Beam height in terms of thickness | AK73: [-] | AL73: 0.85
AD74: Mc | AE74: Mass of Core | AF74: [kg] | AG74: =AG72*Beam_Thickness_Calculator!AL69 -> 234.3691604 | AH74: =AH72*Beam_Thickness_Calculator!AL69 -> 425.8442431 | AJ74: Chord Ratio Blade A/Blade B | AK74: [-] | AL74: =Global_Var!$E$13 -> 0.6666666667
AD75: Vd | AE75: Displaced Volume | AF75: [m3] | AG75: =Beam_Thickness_Calculator!AG66*Beam_Thickness_Calculator!AG64*Beam_Thickness_Calculator!AL71 -> 0.6399147801 | AH75: =Beam_Thickness_Calculator!AH66*Beam_Thickness_Calculator!AH64*Beam_Thickness_Calculator!AL71 -> 0.7127625117 | AJ75: Moment Ratio Blade A/Blade B | AK75: [-] | AL75: =Global_Var!$E$14 -> 0.6666666667
AD76: Mw | AE76: Mass of disp. Seawater | AF76: [kg] | AG76: =Beam_Thickness_Calculator!AL70*Beam_Thickness_Calculator!AG75 -> 658.4723087 | AH76: =Beam_Thickness_Calculator!AL70*Beam_Thickness_Calculator!AH75 -> 733.4326245
Y78: Input/Output | AD78: Intermediate Calculations | AI78: Constants
Y79: 6 | AB79: Blade A | AC79: Blade B | AD79: b | AE79: Spar Cap Width | AF79: [m] | AG79: =Beam_Thickness_Calculator!AB80*Beam_Thickness_Calculator!AL87 -> 1.3383279 | AH79: =Beam_Thickness_Calculator!AC80*Beam_Thickness_Calculator!AL87 -> 0.8922186 | AI79: EUD | AJ79: Modulus of Sparcap | AK79: [Pa] | AL79: =Global_Var!$E$3 -> 39800000000
Y80: C | Z80: Chord | AA80: [m] | AB80: =L12 -> 2.2305465 | AC80: =AB80*Beam_Thickness_Calculator!AL89 -> 1.487031 | AD80: t | AE80: Airfoil thickness | AF80: [m] | AG80: =Beam_Thickness_Calculator!AB81*Beam_Thickness_Calculator!AB80/100 -> 0.5417822353 | AH80: =Beam_Thickness_Calculator!AC81*Beam_Thickness_Calculator!AC80/100 -> 0.939082096 | AI80: ρs | AJ80: Density of sparcap | AK80: [kg/m3] | AL80: =Global_Var!$E$4 -> 1920
Y81: AF% | Z81: % thickness of foil | AA81: [%] | AB81: =P12 -> 24.28921501 | AC81: =T12 -> 63.15148077 | AD81: ho | AE81: Section height outer | AF81: [m] | AG81: =AG80*Beam_Thickness_Calculator!AL88 -> 0.4605149 | AH81: =AH80*Beam_Thickness_Calculator!AL88 -> 0.7982197816 | AI81: ϵUD(max) | AJ81: Max allow design strain Sparcap | AK81: [-] | AL81: =Global_Var!$E$5 -> 0.0029
Y82: M | Z82: Moment | AA82: [n-m] | AB82: =N12 -> 5426667.2 | AC82: =AB82*Beam_Thickness_Calculator!AL90 -> 3617778.133 | AD82: hc | AE82: height of core | AF82: [m] | AG82: =Beam_Thickness_Calculator!AG81-2*Beam_Thickness_Calculator!AB83 -> 0.08411017815 | AH82: =Beam_Thickness_Calculator!AH81-2*Beam_Thickness_Calculator!AC83 -> 0.6982197816 | AI82: σs(allow) | AJ82: Allowable stress in Sparcap | AK82: [Pa] | AL82: =Global_Var!$E$6 -> 115420000
Y83: t | Z83: Spar Cap Thickness | AA83: [m] | AB83: =Q12 -> 0.1882023609 | AC83: =U12 -> 0.05 | AD83: c | AE83: distance from neutral axis | AF83: [m] | AG83: =Beam_Thickness_Calculator!AG81/2 -> 0.23025745 | AH83: =Beam_Thickness_Calculator!AH81/2 -> 0.3991098908 | AI83: EC | AJ83: Modulus of Core | AK83: [Pa] | AL83: =Global_Var!$E$7 -> 3790000
Y84: σs(max) | Z84: Max Stress in Sparcap | AA84: [Pa] | AB84: =(AB82*(Beam_Thickness_Calculator!AG81/2)*Beam_Thickness_Calculator!AL79)/(Beam_Thickness_Calculator!AL79*Beam_Thickness_Calculator!AG84+Beam_Thickness_Calculator!AL83*Beam_Thickness_Calculator!AG85) -> 115421956 | AC84: =(AC82*(Beam_Thickness_Calculator!AH81/2)*Beam_Thickness_Calculator!AL79)/(Beam_Thickness_Calculator!AL79*Beam_Thickness_Calculator!AH84+Beam_Thickness_Calculator!AL83*Beam_Thickness_Calculator!AH85) -> 115434359.5 | AD84: Is | AE84: Moment of inertia Spar | AF84: [m4] | AG84: =(Beam_Thickness_Calculator!AG79/12)*(Beam_Thickness_Calculator!AG81^3-Beam_Thickness_Calculator!AG82^3) -> 0.01082575504 | AH84: =(Beam_Thickness_Calculator!AH79/12)*(Beam_Thickness_Calculator!AH81^3-Beam_Thickness_Calculator!AH82^3) -> 0.01250591974 | AI84: ρc | AJ84: Density of core | AK84: [kg/m3] | AL84: =Global_Var!$E$8 -> 673
Y85: Ww | Z85: Wet Weight | AA85: [kg] | AB85: =Beam_Thickness_Calculator!AG89+Beam_Thickness_Calculator!AG88-Beam_Thickness_Calculator!AG91 -> 303.1710975 | AC85: =Beam_Thickness_Calculator!AH89+Beam_Thickness_Calculator!AH88-Beam_Thickness_Calculator!AH91 -> -105.5234043 | AD85: Ic | AE85: Moment of inertia Core | AF85: [m4] | AG85: =(Beam_Thickness_Calculator!AG79/12)*Beam_Thickness_Calculator!AG82^3 -> 6.636314267e-05 | AH85: =(Beam_Thickness_Calculator!AH79/12)*Beam_Thickness_Calculator!AH82^3 -> 0.02530850392 | AI85: ρw | AJ85: Density of Seawater | AK85: [kg/m3] | AL85: =Global_Var!$E$9 -> 1029
Y86: Ww(rotor) | Z86: Wet Weight segment of rotor (+ floats) | AA86: [kg] | AB86: =AB85*2 -> 606.342195 | AC86: =AC85*3 -> -316.570213 | AD86: Vs | AE86: Volume of Spar | AF86: [m3] | AG86: =Beam_Thickness_Calculator!AG79*Beam_Thickness_Calculator!AB83*Beam_Thickness_Calculator!AL86*2 -> 0.3736167646 | AH86: =Beam_Thickness_Calculator!AH79*Beam_Thickness_Calculator!AC83*Beam_Thickness_Calculator!AL86*2 -> 0.0661728795 | AI86: L | AJ86: Section Length | AK86: [m] | AL86: =Global_Var!$E$10 -> 0.7416666667
AD87: Vc | AE87: Volume of Core | AF87: [m3] | AG87: =Beam_Thickness_Calculator!AG82*Beam_Thickness_Calculator!AG79*Beam_Thickness_Calculator!AL86 -> 0.08348719025 | AH87: =Beam_Thickness_Calculator!AH82*Beam_Thickness_Calculator!AH79*Beam_Thickness_Calculator!AL86 -> 0.4620321347 | AJ87: Beam width in terms of chord | AK87: [-] | AL87: =Global_Var!$E$11 -> 0.6
Z88: Spar Strain Limit (Goal Seek to 1) | AB88: =(AB84/$AL$7) -> 1.000016947 | AC88: =(AC84/$AL$7) -> 1.000124411 | AD88: Ms | AE88: Mass of Spar | AF88: [kg] | AG88: =Beam_Thickness_Calculator!AL80*AG86 -> 717.344188 | AH88: =Beam_Thickness_Calculator!AL80*AH86 -> 127.0519286 | AJ88: Beam height in terms of thickness | AK88: [-] | AL88: 0.85
AD89: Mc | AE89: Mass of Core | AF89: [kg] | AG89: =AG87*Beam_Thickness_Calculator!AL84 -> 56.18687904 | AH89: =AH87*Beam_Thickness_Calculator!AL84 -> 310.9476267 | AJ89: Chord Ratio Blade A/Blade B | AK89: [-] | AL89: =Global_Var!$E$13 -> 0.6666666667
AD90: Vd | AE90: Displaced Volume | AF90: [m3] | AG90: =Beam_Thickness_Calculator!AG81*Beam_Thickness_Calculator!AG79*Beam_Thickness_Calculator!AL86 -> 0.4571039548 | AH90: =Beam_Thickness_Calculator!AH81*Beam_Thickness_Calculator!AH79*Beam_Thickness_Calculator!AL86 -> 0.5282050142 | AJ90: Moment Ratio Blade A/Blade B | AK90: [-] | AL90: =Global_Var!$E$14 -> 0.6666666667
AD91: Mw | AE91: Mass of disp. Seawater | AF91: [kg] | AG91: =Beam_Thickness_Calculator!AL85*Beam_Thickness_Calculator!AG90 -> 470.3599695 | AH91: =Beam_Thickness_Calculator!AL85*Beam_Thickness_Calculator!AH90 -> 543.5229596
Y93: Input/Output | AD93: Intermediate Calculations | AI93: Constants
Y94: 7 | AB94: Blade A | AC94: Blade B | AD94: b | AE94: Spar Cap Width | AF94: [m] | AG94: =Beam_Thickness_Calculator!AB95*Beam_Thickness_Calculator!AL102 -> 1.1468184 | AH94: =Beam_Thickness_Calculator!AC95*Beam_Thickness_Calculator!AL102 -> 0.7645456 | AI94: EUD | AJ94: Modulus of Sparcap | AK94: [Pa] | AL94: =Global_Var!$E$3 -> 39800000000
Y95: C | Z95: Chord | AA95: [m] | AB95: =L13 -> 1.911364 | AC95: =AB95*Beam_Thickness_Calculator!AL104 -> 1.274242667 | AD95: t | AE95: Airfoil thickness | AF95: [m] | AG95: =Beam_Thickness_Calculator!AB96*Beam_Thickness_Calculator!AB95/100 -> 0.4827577793 | AH95: =Beam_Thickness_Calculator!AC96*Beam_Thickness_Calculator!AC95/100 -> 0.7626795506 | AI95: ρs | AJ95: Density of sparcap | AK95: [kg/m3] | AL95: =Global_Var!$E$4 -> 1920
Y96: AF% | Z96: % thickness of foil | AA96: [%] | AB96: =P13 -> 25.2572393 | AC96: =T13 -> 59.8535562 | AD96: ho | AE96: Section height outer | AF96: [m] | AG96: =AG95*Beam_Thickness_Calculator!AL103 -> 0.4103441124 | AH96: =AH95*Beam_Thickness_Calculator!AL103 -> 0.648277618 | AI96: ϵUD(max) | AJ96: Max allow design strain Sparcap | AK96: [-] | AL96: =Global_Var!$E$5 -> 0.0029
Y97: M | Z97: Moment | AA97: [n-m] | AB97: =N13 -> 3663270.908 | AC97: =AB97*Beam_Thickness_Calculator!AL105 -> 2442180.605 | AD97: hc | AE97: height of core | AF97: [m] | AG97: =Beam_Thickness_Calculator!AG96-2*Beam_Thickness_Calculator!AB98 -> 0.09855285992 | AH97: =Beam_Thickness_Calculator!AH96-2*Beam_Thickness_Calculator!AC98 -> 0.548277618 | AI97: σs(allow) | AJ97: Allowable stress in Sparcap | AK97: [Pa] | AL97: =Global_Var!$E$6 -> 115420000
Y98: t | Z98: Spar Cap Thickness | AA98: [m] | AB98: =Q13 -> 0.1558956262 | AC98: =U13 -> 0.05 | AD98: c | AE98: distance from neutral axis | AF98: [m] | AG98: =Beam_Thickness_Calculator!AG96/2 -> 0.2051720562 | AH98: =Beam_Thickness_Calculator!AH96/2 -> 0.324138809 | AI98: EC | AJ98: Modulus of Core | AK98: [Pa] | AL98: =Global_Var!$E$7 -> 3790000
Y99: σs(max) | Z99: Max Stress in Sparcap | AA99: [Pa] | AB99: =(AB97*(Beam_Thickness_Calculator!AG96/2)*Beam_Thickness_Calculator!AL94)/(Beam_Thickness_Calculator!AL94*Beam_Thickness_Calculator!AG99+Beam_Thickness_Calculator!AL98*Beam_Thickness_Calculator!AG100) -> 115421643.3 | AC99: =(AC97*(Beam_Thickness_Calculator!AH96/2)*Beam_Thickness_Calculator!AL94)/(Beam_Thickness_Calculator!AL94*Beam_Thickness_Calculator!AH99+Beam_Thickness_Calculator!AL98*Beam_Thickness_Calculator!AH100) -> 115421480 | AD99: Is | AE99: Moment of inertia Spar | AF99: [m4] | AG99: =(Beam_Thickness_Calculator!AG94/12)*(Beam_Thickness_Calculator!AG96^3-Beam_Thickness_Calculator!AG97^3) -> 0.006511775413 | AH99: =(Beam_Thickness_Calculator!AH94/12)*(Beam_Thickness_Calculator!AH96^3-Beam_Thickness_Calculator!AH97^3) -> 0.006857389949 | AI99: ρc | AJ99: Density of core | AK99: [kg/m3] | AL99: =Global_Var!$E$8 -> 673
Y100: Ww | Z100: Wet Weight | AA100: [kg] | AB100: =Beam_Thickness_Calculator!AG104+Beam_Thickness_Calculator!AG103-Beam_Thickness_Calculator!AG106 -> 206.4482005 | AC100: =Beam_Thickness_Calculator!AH104+Beam_Thickness_Calculator!AH103-Beam_Thickness_Calculator!AH106 -> -60.15526364 | AD100: Ic | AE100: Moment of inertia Core | AF100: [m4] | AG100: =(Beam_Thickness_Calculator!AG94/12)*Beam_Thickness_Calculator!AG97^3 -> 9.147893528e-05 | AH100: =(Beam_Thickness_Calculator!AH94/12)*Beam_Thickness_Calculator!AH97^3 -> 0.01050083173 | AI100: ρw | AJ100: Density of Seawater | AK100: [kg/m3] | AL100: =Global_Var!$E$9 -> 1029
Y101: Ww(rotor) | Z101: Wet Weight segment of rotor (+ floats) | AA101: [kg] | AB101: =AB100*2 -> 412.896401 | AC101: =AC100*3 -> -180.4657909 | AD101: Vs | AE101: Volume of Spar | AF101: [m3] | AG101: =Beam_Thickness_Calculator!AG94*Beam_Thickness_Calculator!AB98*Beam_Thickness_Calculator!AL101*2 -> 0.2651962261 | AH101: =Beam_Thickness_Calculator!AH94*Beam_Thickness_Calculator!AC98*Beam_Thickness_Calculator!AL101*2 -> 0.05670379867 | AI101: L | AJ101: Section Length | AK101: [m] | AL101: =Global_Var!$E$10 -> 0.7416666667
AD102: Vc | AE102: Volume of Core | AF102: [m3] | AG102: =Beam_Thickness_Calculator!AG97*Beam_Thickness_Calculator!AG94*Beam_Thickness_Calculator!AL101 -> 0.0838248229 | AH102: =Beam_Thickness_Calculator!AH97*Beam_Thickness_Calculator!AH94*Beam_Thickness_Calculator!AL101 -> 0.3108942367 | AJ102: Beam width in terms of chord | AK102: [-] | AL102: =Global_Var!$E$11 -> 0.6
Z103: Spar Strain Limit (Goal Seek to 1) | AB103: =(AB99/$AL$7) -> 1.000014238 | AC103: =(AC99/$AL$7) -> 1.000012822 | AD103: Ms | AE103: Mass of Spar | AF103: [kg] | AG103: =Beam_Thickness_Calculator!AL95*AG101 -> 509.1767541 | AH103: =Beam_Thickness_Calculator!AL95*AH101 -> 108.8712934 | AJ103: Beam height in terms of thickness | AK103: [-] | AL103: 0.85
AD104: Mc | AE104: Mass of Core | AF104: [kg] | AG104: =AG102*Beam_Thickness_Calculator!AL99 -> 56.41410581 | AH104: =AH102*Beam_Thickness_Calculator!AL99 -> 209.2318213 | AJ104: Chord Ratio Blade A/Blade B | AK104: [-] | AL104: =Global_Var!$E$13 -> 0.6666666667
AD105: Vd | AE105: Displaced Volume | AF105: [m3] | AG105: =Beam_Thickness_Calculator!AG96*Beam_Thickness_Calculator!AG94*Beam_Thickness_Calculator!AL101 -> 0.349021049 | AH105: =Beam_Thickness_Calculator!AH96*Beam_Thickness_Calculator!AH94*Beam_Thickness_Calculator!AL101 -> 0.3675980353 | AJ105: Moment Ratio Blade A/Blade B | AK105: [-] | AL105: =Global_Var!$E$14 -> 0.6666666667
AD106: Mw | AE106: Mass of disp. Seawater | AF106: [kg] | AG106: =Beam_Thickness_Calculator!AL100*Beam_Thickness_Calculator!AG105 -> 359.1426594 | AH106: =Beam_Thickness_Calculator!AL100*Beam_Thickness_Calculator!AH105 -> 378.2583783
Y108: Input/Output | AD108: Intermediate Calculations | AI108: Constants
Y109: 8 | AB109: Blade A | AC109: Blade B | AD109: b | AE109: Spar Cap Width | AF109: [m] | AG109: =Beam_Thickness_Calculator!AB110*Beam_Thickness_Calculator!AL117 -> 1.0059231 | AH109: =Beam_Thickness_Calculator!AC110*Beam_Thickness_Calculator!AL117 -> 0.6706154 | AI109: EUD | AJ109: Modulus of Sparcap | AK109: [Pa] | AL109: =Global_Var!$E$3 -> 39800000000
Y110: C | Z110: Chord | AA110: [m] | AB110: =L14 -> 1.6765385 | AC110: =AB110*Beam_Thickness_Calculator!AL119 -> 1.117692333 | AD110: t | AE110: Airfoil thickness | AF110: [m] | AG110: =Beam_Thickness_Calculator!AB111*Beam_Thickness_Calculator!AB110/100 -> 0.3978196815 | AH110: =Beam_Thickness_Calculator!AC111*Beam_Thickness_Calculator!AC110/100 -> 0.5528911522 | AI110: ρs | AJ110: Density of sparcap | AK110: [kg/m3] | AL110: =Global_Var!$E$4 -> 1920
Y111: AF% | Z111: % thickness of foil | AA111: [%] | AB111: =P14 -> 23.72863382 | AC111: =T14 -> 49.4672045 | AD111: ho | AE111: Section height outer | AF111: [m] | AG111: =AG110*Beam_Thickness_Calculator!AL118 -> 0.3381467292 | AH111: =AH110*Beam_Thickness_Calculator!AL118 -> 0.4699574793 | AI111: ϵUD(max) | AJ111: Max allow design strain Sparcap | AK111: [-] | AL111: =Global_Var!$E$5 -> 0.0029
Y112: M | Z112: Moment | AA112: [n-m] | AB112: =N14 -> 2189716.612 | AC112: =AB112*Beam_Thickness_Calculator!AL120 -> 1459811.075 | AD112: hc | AE112: height of core | AF112: [m] | AG112: =Beam_Thickness_Calculator!AG111-2*Beam_Thickness_Calculator!AB113 -> 0.07409191549 | AH112: =Beam_Thickness_Calculator!AH111-2*Beam_Thickness_Calculator!AC113 -> 0.3699574793 | AI112: σs(allow) | AJ112: Allowable stress in Sparcap | AK112: [Pa] | AL112: =Global_Var!$E$6 -> 115420000
Y113: t | Z113: Spar Cap Thickness | AA113: [m] | AB113: =Q14 -> 0.1320274069 | AC113: =U14 -> 0.05 | AD113: c | AE113: distance from neutral axis | AF113: [m] | AG113: =Beam_Thickness_Calculator!AG111/2 -> 0.1690733646 | AH113: =Beam_Thickness_Calculator!AH111/2 -> 0.2349787397 | AI113: EC | AJ113: Modulus of Core | AK113: [Pa] | AL113: =Global_Var!$E$7 -> 3790000
Y114: σs(max) | Z114: Max Stress in Sparcap | AA114: [Pa] | AB114: =(AB112*(Beam_Thickness_Calculator!AG111/2)*Beam_Thickness_Calculator!AL109)/(Beam_Thickness_Calculator!AL109*Beam_Thickness_Calculator!AG114+Beam_Thickness_Calculator!AL113*Beam_Thickness_Calculator!AG115) -> 115440005.8 | AC114: =(AC112*(Beam_Thickness_Calculator!AH111/2)*Beam_Thickness_Calculator!AL109)/(Beam_Thickness_Calculator!AL109*Beam_Thickness_Calculator!AH114+Beam_Thickness_Calculator!AL113*Beam_Thickness_Calculator!AH115) -> 115455446 | AD114: Is | AE114: Moment of inertia Spar | AF114: [m4] | AG114: =(Beam_Thickness_Calculator!AG109/12)*(Beam_Thickness_Calculator!AG111^3-Beam_Thickness_Calculator!AG112^3) -> 0.003207054418 | AH114: =(Beam_Thickness_Calculator!AH109/12)*(Beam_Thickness_Calculator!AH111^3-Beam_Thickness_Calculator!AH112^3) -> 0.002970786283 | AI114: ρc | AJ114: Density of core | AK114: [kg/m3] | AL114: =Global_Var!$E$8 -> 673
Y115: Ww | Z115: Wet Weight | AA115: [kg] | AB115: =Beam_Thickness_Calculator!AG119+Beam_Thickness_Calculator!AG118-Beam_Thickness_Calculator!AG121 -> 155.8489604 | AC115: =Beam_Thickness_Calculator!AH119+Beam_Thickness_Calculator!AH118-Beam_Thickness_Calculator!AH121 -> -21.19051211 | AD115: Ic | AE115: Moment of inertia Core | AF115: [m4] | AG115: =(Beam_Thickness_Calculator!AG109/12)*Beam_Thickness_Calculator!AG112^3 -> 3.409541676e-05 | AH115: =(Beam_Thickness_Calculator!AH109/12)*Beam_Thickness_Calculator!AH112^3 -> 0.002829747674 | AI115: ρw | AJ115: Density of Seawater | AK115: [kg/m3] | AL115: =Global_Var!$E$9 -> 1029
Y116: Ww(rotor) | Z116: Wet Weight segment of rotor (+ floats) | AA116: [kg] | AB116: =AB115*2 -> 311.6979208 | AC116: =AC115*3 -> -63.57153634 | AD116: Vs | AE116: Volume of Spar | AF116: [m3] | AG116: =Beam_Thickness_Calculator!AG109*Beam_Thickness_Calculator!AB113*Beam_Thickness_Calculator!AL116*2 -> 0.1970006373 | AH116: =Beam_Thickness_Calculator!AH109*Beam_Thickness_Calculator!AC113*Beam_Thickness_Calculator!AL116*2 -> 0.04973730883 | AI116: L | AJ116: Section Length | AK116: [m] | AL116: =Global_Var!$E$10 -> 0.7416666667
AD117: Vc | AE117: Volume of Core | AF117: [m3] | AG117: =Beam_Thickness_Calculator!AG112*Beam_Thickness_Calculator!AG109*Beam_Thickness_Calculator!AL116 -> 0.05527698724 | AH117: =Beam_Thickness_Calculator!AH112*Beam_Thickness_Calculator!AH109*Beam_Thickness_Calculator!AL116 -> 0.1840068941 | AJ117: Beam width in terms of chord | AK117: [-] | AL117: =Global_Var!$E$11 -> 0.6
Z118: Spar Strain Limit (Goal Seek to 1) | AB118: =(AB114/$AL$7) -> 1.00017333 | AC118: =(AC114/$AL$7) -> 1.000307104 | AD118: Ms | AE118: Mass of Spar | AF118: [kg] | AG118: =Beam_Thickness_Calculator!AL110*AG116 -> 378.2412236 | AH118: =Beam_Thickness_Calculator!AL110*AH116 -> 95.49563296 | AJ118: Beam height in terms of thickness | AK118: [-] | AL118: 0.85
AD119: Mc | AE119: Mass of Core | AF119: [kg] | AG119: =AG117*Beam_Thickness_Calculator!AL114 -> 37.20141241 | AH119: =AH117*Beam_Thickness_Calculator!AL114 -> 123.8366397 | AJ119: Chord Ratio Blade A/Blade B | AK119: [-] | AL119: =Global_Var!$E$13 -> 0.6666666667
AD120: Vd | AE120: Displaced Volume | AF120: [m3] | AG120: =Beam_Thickness_Calculator!AG111*Beam_Thickness_Calculator!AG109*Beam_Thickness_Calculator!AL116 -> 0.2522776245 | AH120: =Beam_Thickness_Calculator!AH111*Beam_Thickness_Calculator!AH109*Beam_Thickness_Calculator!AL116 -> 0.2337442029 | AJ120: Moment Ratio Blade A/Blade B | AK120: [-] | AL120: =Global_Var!$E$14 -> 0.6666666667
AD121: Mw | AE121: Mass of disp. Seawater | AF121: [kg] | AG121: =Beam_Thickness_Calculator!AL115*Beam_Thickness_Calculator!AG120 -> 259.5936757 | AH121: =Beam_Thickness_Calculator!AL115*Beam_Thickness_Calculator!AH120 -> 240.5227848
Y123: Input/Output | AD123: Intermediate Calculations | AI123: Constants
Y124: 9 | AB124: Blade A | AC124: Blade B | AD124: b | AE124: Spar Cap Width | AF124: [m] | AG124: =Beam_Thickness_Calculator!AB125*Beam_Thickness_Calculator!AL132 -> 0.85259265 | AH124: =Beam_Thickness_Calculator!AC125*Beam_Thickness_Calculator!AL132 -> 0.5683951 | AI124: EUD | AJ124: Modulus of Sparcap | AK124: [Pa] | AL124: =Global_Var!$E$3 -> 39800000000
Y125: C | Z125: Chord | AA125: [m] | AB125: =L15 -> 1.42098775 | AC125: =AB125*Beam_Thickness_Calculator!AL134 -> 0.9473251667 | AD125: t | AE125: Airfoil thickness | AF125: [m] | AG125: =Beam_Thickness_Calculator!AB126*Beam_Thickness_Calculator!AB125/100 -> 0.3005078647 | AH125: =Beam_Thickness_Calculator!AC126*Beam_Thickness_Calculator!AC125/100 -> 0.3585675907 | AI125: ρs | AJ125: Density of sparcap | AK125: [kg/m3] | AL125: =Global_Var!$E$4 -> 1920
Y126: AF% | Z126: % thickness of foil | AA126: [%] | AB126: =P15 -> 21.14781529 | AC126: =T15 -> 37.8505294 | AD126: ho | AE126: Section height outer | AF126: [m] | AG126: =AG125*Beam_Thickness_Calculator!AL133 -> 0.255431685 | AH126: =AH125*Beam_Thickness_Calculator!AL133 -> 0.3047824521 | AI126: ϵUD(max) | AJ126: Max allow design strain Sparcap | AK126: [-] | AL126: =Global_Var!$E$5 -> 0.0029
Y127: M | Z127: Moment | AA127: [n-m] | AB127: =N15 -> 1062400.104 | AC127: =AB127*Beam_Thickness_Calculator!AL135 -> 708266.7359 | AD127: hc | AE127: height of core | AF127: [m] | AG127: =Beam_Thickness_Calculator!AG126-2*Beam_Thickness_Calculator!AB128 -> 0.04938846124 | AH127: =Beam_Thickness_Calculator!AH126-2*Beam_Thickness_Calculator!AC128 -> 0.2047824521 | AI127: σs(allow) | AJ127: Allowable stress in Sparcap | AK127: [Pa] | AL127: =Global_Var!$E$6 -> 115420000
Y128: t | Z128: Spar Cap Thickness | AA128: [m] | AB128: =Q15 -> 0.1030216119 | AC128: =U15 -> 0.05 | AD128: c | AE128: distance from neutral axis | AF128: [m] | AG128: =Beam_Thickness_Calculator!AG126/2 -> 0.1277158425 | AH128: =Beam_Thickness_Calculator!AH126/2 -> 0.1523912261 | AI128: EC | AJ128: Modulus of Core | AK128: [Pa] | AL128: =Global_Var!$E$7 -> 3790000
Y129: σs(max) | Z129: Max Stress in Sparcap | AA129: [Pa] | AB129: =(AB127*(Beam_Thickness_Calculator!AG126/2)*Beam_Thickness_Calculator!AL124)/(Beam_Thickness_Calculator!AL124*Beam_Thickness_Calculator!AG129+Beam_Thickness_Calculator!AL128*Beam_Thickness_Calculator!AG130) -> 115424675.1 | AC129: =(AC127*(Beam_Thickness_Calculator!AH126/2)*Beam_Thickness_Calculator!AL124)/(Beam_Thickness_Calculator!AL124*Beam_Thickness_Calculator!AH129+Beam_Thickness_Calculator!AL128*Beam_Thickness_Calculator!AH130) -> 115523324.7 | AD129: Is | AE129: Moment of inertia Spar | AF129: [m4] | AG129: =(Beam_Thickness_Calculator!AG124/12)*(Beam_Thickness_Calculator!AG126^3-Beam_Thickness_Calculator!AG127^3) -> 0.001175530537 | AH129: =(Beam_Thickness_Calculator!AH124/12)*(Beam_Thickness_Calculator!AH126^3-Beam_Thickness_Calculator!AH127^3) -> 0.0009342629439 | AI129: ρc | AJ129: Density of core | AK129: [kg/m3] | AL129: =Global_Var!$E$8 -> 673
Y130: Ww | Z130: Wet Weight | AA130: [kg] | AB130: =Beam_Thickness_Calculator!AG134+Beam_Thickness_Calculator!AG133-Beam_Thickness_Calculator!AG136 -> 104.969769 | AC130: =Beam_Thickness_Calculator!AH134+Beam_Thickness_Calculator!AH133-Beam_Thickness_Calculator!AH136 -> 6.828190904 | AD130: Ic | AE130: Moment of inertia Core | AF130: [m4] | AG130: =(Beam_Thickness_Calculator!AG124/12)*Beam_Thickness_Calculator!AG127^3 -> 8.559271935e-06 | AH130: =(Beam_Thickness_Calculator!AH124/12)*Beam_Thickness_Calculator!AH127^3 -> 0.0004067684836 | AI130: ρw | AJ130: Density of Seawater | AK130: [kg/m3] | AL130: =Global_Var!$E$9 -> 1029
Y131: Ww(rotor) | Z131: Wet Weight segment of rotor (+ floats) | AA131: [kg] | AB131: =AB130*2 -> 209.939538 | AC131: =AC130*3 -> 20.48457271 | AD131: Vs | AE131: Volume of Spar | AF131: [m3] | AG131: =Beam_Thickness_Calculator!AG124*Beam_Thickness_Calculator!AB128*Beam_Thickness_Calculator!AL131*2 -> 0.1302892791 | AH131: =Beam_Thickness_Calculator!AH124*Beam_Thickness_Calculator!AC128*Beam_Thickness_Calculator!AL131*2 -> 0.04215596992 | AI131: L | AJ131: Section Length | AK131: [m] | AL131: =Global_Var!$E$10 -> 0.7416666667
AD132: Vc | AE132: Volume of Core | AF132: [m3] | AG132: =Beam_Thickness_Calculator!AG127*Beam_Thickness_Calculator!AG124*Beam_Thickness_Calculator!AL131 -> 0.0312302773 | AH132: =Beam_Thickness_Calculator!AH127*Beam_Thickness_Calculator!AH124*Beam_Thickness_Calculator!AL131 -> 0.08632802891 | AJ132: Beam width in terms of chord | AK132: [-] | AL132: =Global_Var!$E$11 -> 0.6
Z133: Spar Strain Limit (Goal Seek to 1) | AB133: =(AB129/$AL$7) -> 1.000040505 | AC133: =(AC129/$AL$7) -> 1.000895207 | AD133: Ms | AE133: Mass of Spar | AF133: [kg] | AG133: =Beam_Thickness_Calculator!AL125*AG131 -> 250.1554159 | AH133: =Beam_Thickness_Calculator!AL125*AH131 -> 80.93946224 | AJ133: Beam height in terms of thickness | AK133: [-] | AL133: 0.85
AD134: Mc | AE134: Mass of Core | AF134: [kg] | AG134: =AG132*Beam_Thickness_Calculator!AL129 -> 21.01797662 | AH134: =AH132*Beam_Thickness_Calculator!AL129 -> 58.09876346 | AJ134: Chord Ratio Blade A/Blade B | AK134: [-] | AL134: =Global_Var!$E$13 -> 0.6666666667
AD135: Vd | AE135: Displaced Volume | AF135: [m3] | AG135: =Beam_Thickness_Calculator!AG126*Beam_Thickness_Calculator!AG124*Beam_Thickness_Calculator!AL131 -> 0.1615195564 | AH135: =Beam_Thickness_Calculator!AH126*Beam_Thickness_Calculator!AH124*Beam_Thickness_Calculator!AL131 -> 0.1284839988 | AJ135: Moment Ratio Blade A/Blade B | AK135: [-] | AL135: =Global_Var!$E$14 -> 0.6666666667
AD136: Mw | AE136: Mass of disp. Seawater | AF136: [kg] | AG136: =Beam_Thickness_Calculator!AL130*Beam_Thickness_Calculator!AG135 -> 166.2036236 | AH136: =Beam_Thickness_Calculator!AL130*Beam_Thickness_Calculator!AH135 -> 132.2100348
Y138: Input/Output | AD138: Intermediate Calculations | AI138: Constants
Y139: 10 | AB139: Blade A | AC139: Blade B | AD139: b | AE139: Spar Cap Width | AF139: [m] | AG139: =Beam_Thickness_Calculator!AB140*Beam_Thickness_Calculator!AL147 -> 0.6908538 | AH139: =Beam_Thickness_Calculator!AC140*Beam_Thickness_Calculator!AL147 -> 0.4605692 | AI139: EUD | AJ139: Modulus of Sparcap | AK139: [Pa] | AL139: =Global_Var!$E$3 -> 39800000000
Y140: C | Z140: Chord | AA140: [m] | AB140: =L16 -> 1.151423 | AC140: =AB140*Beam_Thickness_Calculator!AL149 -> 0.7676153333 | AD140: t | AE140: Airfoil thickness | AF140: [m] | AG140: =Beam_Thickness_Calculator!AB141*Beam_Thickness_Calculator!AB140/100 -> 0.1837727483 | AH140: =Beam_Thickness_Calculator!AC141*Beam_Thickness_Calculator!AC140/100 -> 0.1889071395 | AI140: ρs | AJ140: Density of sparcap | AK140: [kg/m3] | AL140: =Global_Var!$E$4 -> 1920
Y141: AF% | Z141: % thickness of foil | AA141: [%] | AB141: =P16 -> 15.96048961 | AC141: =T16 -> 24.60960995 | AD141: ho | AE141: Section height outer | AF141: [m] | AG141: =AG140*Beam_Thickness_Calculator!AL148 -> 0.1562068361 | AH141: =AH140*Beam_Thickness_Calculator!AL148 -> 0.1605710686 | AI141: ϵUD(max) | AJ141: Max allow design strain Sparcap | AK141: [-] | AL141: =Global_Var!$E$5 -> 0.0029
Y142: M | Z142: Moment | AA142: [n-m] | AB142: =N16 -> 324240.05 | AC142: =AB142*Beam_Thickness_Calculator!AL150 -> 216160.0333 | AD142: hc | AE142: height of core | AF142: [m] | AG142: =Beam_Thickness_Calculator!AG141-2*Beam_Thickness_Calculator!AB143 -> 0.003643288587 | AH142: =Beam_Thickness_Calculator!AH141-2*Beam_Thickness_Calculator!AC143 -> 0.06057106856 | AI142: σs(allow) | AJ142: Allowable stress in Sparcap | AK142: [Pa] | AL142: =Global_Var!$E$6 -> 115420000
Y143: t | Z143: Spar Cap Thickness | AA143: [m] | AB143: =Q16 -> 0.07628177375 | AC143: =U16 -> 0.05 | AD143: c | AE143: distance from neutral axis | AF143: [m] | AG143: =Beam_Thickness_Calculator!AG141/2 -> 0.07810341804 | AH143: =Beam_Thickness_Calculator!AH141/2 -> 0.08028553428 | AI143: EC | AJ143: Modulus of Core | AK143: [Pa] | AL143: =Global_Var!$E$7 -> 3790000
Y144: σs(max) | Z144: Max Stress in Sparcap | AA144: [Pa] | AB144: =(AB142*(Beam_Thickness_Calculator!AG141/2)*Beam_Thickness_Calculator!AL139)/(Beam_Thickness_Calculator!AL139*Beam_Thickness_Calculator!AG144+Beam_Thickness_Calculator!AL143*Beam_Thickness_Calculator!AG145) -> 115408340.2 | AC144: =(AC142*(Beam_Thickness_Calculator!AH141/2)*Beam_Thickness_Calculator!AL139)/(Beam_Thickness_Calculator!AL139*Beam_Thickness_Calculator!AH144+Beam_Thickness_Calculator!AL143*Beam_Thickness_Calculator!AH145) -> 115413267.7 | AD144: Is | AE144: Moment of inertia Spar | AF144: [m4] | AG144: =(Beam_Thickness_Calculator!AG139/12)*(Beam_Thickness_Calculator!AG141^3-Beam_Thickness_Calculator!AG142^3) -> 0.0002194317681 | AH144: =(Beam_Thickness_Calculator!AH139/12)*(Beam_Thickness_Calculator!AH141^3-Beam_Thickness_Calculator!AH142^3) -> 0.0001503677209 | AI144: ρc | AJ144: Density of core | AK144: [kg/m3] | AL144: =Global_Var!$E$8 -> 673
Y145: Ww | Z145: Wet Weight | AA145: [kg] | AB145: =Beam_Thickness_Calculator!AG149+Beam_Thickness_Calculator!AG148-Beam_Thickness_Calculator!AG151 -> 68.98579802 | AC145: =Beam_Thickness_Calculator!AH149+Beam_Thickness_Calculator!AH148-Beam_Thickness_Calculator!AH151 -> 23.06978175 | AD145: Ic | AE145: Moment of inertia Core | AF145: [m4] | AG145: =(Beam_Thickness_Calculator!AG139/12)*Beam_Thickness_Calculator!AG142^3 -> 2.784105093e-09 | AH145: =(Beam_Thickness_Calculator!AH139/12)*Beam_Thickness_Calculator!AH142^3 -> 8.529220686e-06 | AI145: ρw | AJ145: Density of Seawater | AK145: [kg/m3] | AL145: =Global_Var!$E$9 -> 1029
Y146: Ww(rotor) | Z146: Wet Weight segment of rotor (+ floats) | AA146: [kg] | AB146: =AB145*2 -> 137.971596 | AC146: =AC145*3 -> 69.20934524 | AD146: Vs | AE146: Volume of Spar | AF146: [m3] | AG146: =Beam_Thickness_Calculator!AG139*Beam_Thickness_Calculator!AB143*Beam_Thickness_Calculator!AL146*2 -> 0.07817100401 | AH146: =Beam_Thickness_Calculator!AH139*Beam_Thickness_Calculator!AC143*Beam_Thickness_Calculator!AL146*2 -> 0.03415888233 | AI146: L | AJ146: Section Length | AK146: [m] | AL146: =Global_Var!$E$10 -> 0.7416666667
AD147: Vc | AE147: Volume of Core | AF147: [m3] | AG147: =Beam_Thickness_Calculator!AG142*Beam_Thickness_Calculator!AG139*Beam_Thickness_Calculator!AL146 -> 0.001866759992 | AH147: =Beam_Thickness_Calculator!AH142*Beam_Thickness_Calculator!AH139*Beam_Thickness_Calculator!AL146 -> 0.02069040004 | AJ147: Beam width in terms of chord | AK147: [-] | AL147: =Global_Var!$E$11 -> 0.6
Z148: Spar Strain Limit (Goal Seek to 1) | AB148: =(AB144/$AL$7) -> 0.9998989793 | AC148: =(AC144/$AL$7) -> 0.9999416712 | AD148: Ms | AE148: Mass of Spar | AF148: [kg] | AG148: =Beam_Thickness_Calculator!AL140*AG146 -> 150.0883277 | AH148: =Beam_Thickness_Calculator!AL140*AH146 -> 65.58505408 | AJ148: Beam height in terms of thickness | AK148: [-] | AL148: 0.85
AD149: Mc | AE149: Mass of Core | AF149: [kg] | AG149: =AG147*Beam_Thickness_Calculator!AL144 -> 1.256329475 | AH149: =AH147*Beam_Thickness_Calculator!AL144 -> 13.92463922 | AJ149: Chord Ratio Blade A/Blade B | AK149: [-] | AL149: =Global_Var!$E$13 -> 0.6666666667
AD150: Vd | AE150: Displaced Volume | AF150: [m3] | AG150: =Beam_Thickness_Calculator!AG141*Beam_Thickness_Calculator!AG139*Beam_Thickness_Calculator!AL146 -> 0.080037764 | AH150: =Beam_Thickness_Calculator!AH141*Beam_Thickness_Calculator!AH139*Beam_Thickness_Calculator!AL146 -> 0.05484928237 | AJ150: Moment Ratio Blade A/Blade B | AK150: [-] | AL150: =Global_Var!$E$14 -> 0.6666666667
AD151: Mw | AE151: Mass of disp. Seawater | AF151: [kg] | AG151: =Beam_Thickness_Calculator!AL145*Beam_Thickness_Calculator!AG150 -> 82.35885916 | AH151: =Beam_Thickness_Calculator!AL145*Beam_Thickness_Calculator!AH150 -> 56.43991156
Y153: Input/Output | AD153: Intermediate Calculations | AI153: Constants
Y154: 11 | AB154: Blade A | AC154: Blade B | AD154: b | AE154: Spar Cap Width | AF154: [m] | AG154: =Beam_Thickness_Calculator!AB155*Beam_Thickness_Calculator!AL162 -> 0.43266405 | AH154: =Beam_Thickness_Calculator!AC155*Beam_Thickness_Calculator!AL162 -> 0.2884427 | AI154: EUD | AJ154: Modulus of Sparcap | AK154: [Pa] | AL154: =Global_Var!$E$3 -> 39800000000
Y155: C | Z155: Chord | AA155: [m] | AB155: =L17 -> 0.72110675 | AC155: =AB155*Beam_Thickness_Calculator!AL164 -> 0.4807378333 | AD155: t | AE155: Airfoil thickness | AF155: [m] | AG155: =Beam_Thickness_Calculator!AB156*Beam_Thickness_Calculator!AB155/100 -> 2.087399218e+54 | AH155: =Beam_Thickness_Calculator!AC156*Beam_Thickness_Calculator!AC155/100 -> 1.391599479e+54 | AI155: ρs | AJ155: Density of sparcap | AK155: [kg/m3] | AL155: =Global_Var!$E$4 -> 1920
Y156: AF% | Z156: % thickness of foil | AA156: [%] | AB156: =P17 -> 2.89471596e+56 | AC156: =T17 -> 2.89471596e+56 | AD156: ho | AE156: Section height outer | AF156: [m] | AG156: =AG155*Beam_Thickness_Calculator!AL163 -> 1.774289336e+54 | AH156: =AH155*Beam_Thickness_Calculator!AL163 -> 1.182859557e+54 | AI156: ϵUD(max) | AJ156: Max allow design strain Sparcap | AK156: [-] | AL156: =Global_Var!$E$5 -> 0.0029
Y157: M | Z157: Moment | AA157: [n-m] | AB157: =N17 -> 0 | AC157: =AB157*Beam_Thickness_Calculator!AL165 -> 0 | AD157: hc | AE157: height of core | AF157: [m] | AG157: =Beam_Thickness_Calculator!AG156-2*Beam_Thickness_Calculator!AB158 -> 1.774289336e+54 | AH157: =Beam_Thickness_Calculator!AH156-2*Beam_Thickness_Calculator!AC158 -> 3.987161047e+71 | AI157: σs(allow) | AJ157: Allowable stress in Sparcap | AK157: [Pa] | AL157: =Global_Var!$E$6 -> 115420000
Y158: t | Z158: Spar Cap Thickness | AA158: [m] | AB158: =Q17 -> 5740398089 | AC158: =U17 -> -1.993580524e+71 | AD158: c | AE158: distance from neutral axis | AF158: [m] | AG158: =Beam_Thickness_Calculator!AG156/2 -> 8.871446678e+53 | AH158: =Beam_Thickness_Calculator!AH156/2 -> 5.914297785e+53 | AI158: EC | AJ158: Modulus of Core | AK158: [Pa] | AL158: =Global_Var!$E$7 -> 3790000
Y159: σs(max) | Z159: Max Stress in Sparcap | AA159: [Pa] | AB159: =(AB157*(Beam_Thickness_Calculator!AG156/2)*Beam_Thickness_Calculator!AL154)/(Beam_Thickness_Calculator!AL154*Beam_Thickness_Calculator!AG159+Beam_Thickness_Calculator!AL158*Beam_Thickness_Calculator!AG160) -> 0 | AC159: =(AC157*(Beam_Thickness_Calculator!AH156/2)*Beam_Thickness_Calculator!AL154)/(Beam_Thickness_Calculator!AL154*Beam_Thickness_Calculator!AH159+Beam_Thickness_Calculator!AL158*Beam_Thickness_Calculator!AH160) -> 0 | AD159: Is | AE159: Moment of inertia Spar | AF159: [m4] | AG159: =(Beam_Thickness_Calculator!AG154/12)*(Beam_Thickness_Calculator!AG156^3-Beam_Thickness_Calculator!AG157^3) -> 0 | AH159: =(Beam_Thickness_Calculator!AH154/12)*(Beam_Thickness_Calculator!AH156^3-Beam_Thickness_Calculator!AH157^3) -> -1.523595354e+213 | AI159: ρc | AJ159: Density of core | AK159: [kg/m3] | AL159: =Global_Var!$E$8 -> 673
Y160: Ww | Z160: Wet Weight | AA160: [kg] | AB160: =Beam_Thickness_Calculator!AG164+Beam_Thickness_Calculator!AG163-Beam_Thickness_Calculator!AG166 -> -2.026907884e+56 | AC160: =Beam_Thickness_Calculator!AH164+Beam_Thickness_Calculator!AH163-Beam_Thickness_Calculator!AH166 -> -1.063649509e+74 | AD160: Ic | AE160: Moment of inertia Core | AF160: [m4] | AG160: =(Beam_Thickness_Calculator!AG154/12)*Beam_Thickness_Calculator!AG157^3 -> 2.013923139e+161 | AH160: =(Beam_Thickness_Calculator!AH154/12)*Beam_Thickness_Calculator!AH157^3 -> 1.523595354e+213 | AI160: ρw | AJ160: Density of Seawater | AK160: [kg/m3] | AL160: =Global_Var!$E$9 -> 1029
Y161: Ww(rotor) | Z161: Wet Weight segment of rotor (+ floats) | AA161: [kg] | AB161: =AB160*2 -> -4.053815768e+56 | AC161: =AC160*3 -> -3.190948528e+74 | AD161: Vs | AE161: Volume of Spar | AF161: [m3] | AG161: =Beam_Thickness_Calculator!AG154*Beam_Thickness_Calculator!AB158*Beam_Thickness_Calculator!AL161*2 -> 3684101431 | AH161: =Beam_Thickness_Calculator!AH154*Beam_Thickness_Calculator!AC158*Beam_Thickness_Calculator!AL161*2 -> -8.529667276e+70 | AI161: L | AJ161: Section Length | AK161: [m] | AL161: =Global_Var!$E$10 -> 0.7416666667
AD162: Vc | AE162: Volume of Core | AF162: [m3] | AG162: =Beam_Thickness_Calculator!AG157*Beam_Thickness_Calculator!AG154*Beam_Thickness_Calculator!AL161 -> 5.693561473e+53 | AH162: =Beam_Thickness_Calculator!AH157*Beam_Thickness_Calculator!AH154*Beam_Thickness_Calculator!AL161 -> 8.529667276e+70 | AJ162: Beam width in terms of chord | AK162: [-] | AL162: =Global_Var!$E$11 -> 0.6
Z163: Spar Strain Limit (Goal Seek to 1) | AB163: =(AB159/$AL$7) -> 0 | AC163: =(AC159/$AL$7) -> 0 | AD163: Ms | AE163: Mass of Spar | AF163: [kg] | AG163: =Beam_Thickness_Calculator!AL155*AG161 -> 7.073474747e+12 | AH163: =Beam_Thickness_Calculator!AL155*AH161 -> -1.637696117e+74 | AJ163: Beam height in terms of thickness | AK163: [-] | AL163: 0.85
AD164: Mc | AE164: Mass of Core | AF164: [kg] | AG164: =AG162*Beam_Thickness_Calculator!AL159 -> 3.831766871e+56 | AH164: =AH162*Beam_Thickness_Calculator!AL159 -> 5.740466077e+73 | AJ164: Chord Ratio Blade A/Blade B | AK164: [-] | AL164: =Global_Var!$E$13 -> 0.6666666667
AD165: Vd | AE165: Displaced Volume | AF165: [m3] | AG165: =Beam_Thickness_Calculator!AG156*Beam_Thickness_Calculator!AG154*Beam_Thickness_Calculator!AL161 -> 5.693561473e+53 | AH165: =Beam_Thickness_Calculator!AH156*Beam_Thickness_Calculator!AH154*Beam_Thickness_Calculator!AL161 -> 2.530471766e+53 | AJ165: Moment Ratio Blade A/Blade B | AK165: [-] | AL165: =Global_Var!$E$14 -> 0.6666666667
AD166: Mw | AE166: Mass of disp. Seawater | AF166: [kg] | AG166: =Beam_Thickness_Calculator!AL160*Beam_Thickness_Calculator!AG165 -> 5.858674755e+56 | AH166: =Beam_Thickness_Calculator!AL160*Beam_Thickness_Calculator!AH165 -> 2.603855447e+56
Y168: Input/Output | AD168: Intermediate Calculations | AI168: Constants
Y169: 12 | AB169: Blade A | AC169: Blade B | AD169: b | AE169: Spar Cap Width | AF169: [m] | AG169: =Beam_Thickness_Calculator!AB170*Beam_Thickness_Calculator!AL177 -> 0 | AH169: =Beam_Thickness_Calculator!AC170*Beam_Thickness_Calculator!AL177 -> 0 | AI169: EUD | AJ169: Modulus of Sparcap | AK169: [Pa] | AL169: =Global_Var!$E$3 -> 39800000000
Y170: C | Z170: Chord | AA170: [m] | AB170: =L18 -> 0 | AC170: =AB170*Beam_Thickness_Calculator!AL179 -> 0 | AD170: t | AE170: Airfoil thickness | AF170: [m] | AG170: =Beam_Thickness_Calculator!AB171*Beam_Thickness_Calculator!AB170/100 -> 0 | AH170: =Beam_Thickness_Calculator!AC171*Beam_Thickness_Calculator!AC170/100 -> 0 | AI170: ρs | AJ170: Density of sparcap | AK170: [kg/m3] | AL170: =Global_Var!$E$4 -> 1920
Y171: AF% | Z171: % thickness of foil | AA171: [%] | AB171: =P18 -> 24.65387527 | AC171: =T18 -> 22.96795239 | AD171: ho | AE171: Section height outer | AF171: [m] | AG171: =AG170*Beam_Thickness_Calculator!AL178 -> 0 | AH171: =AH170*Beam_Thickness_Calculator!AL178 -> 0 | AI171: ϵUD(max) | AJ171: Max allow design strain Sparcap | AK171: [-] | AL171: =Global_Var!$E$5 -> 0.0029
Y172: M | Z172: Moment | AA172: [n-m] | AB172: =N18 -> 0 | AC172: =AB172*Beam_Thickness_Calculator!AL180 -> 0 | AD172: hc | AE172: height of core | AF172: [m] | AG172: =Beam_Thickness_Calculator!AG171-2*Beam_Thickness_Calculator!AB173 -> -0.08 | AH172: =Beam_Thickness_Calculator!AH171-2*Beam_Thickness_Calculator!AC173 -> -0.5749989779 | AI172: σs(allow) | AJ172: Allowable stress in Sparcap | AK172: [Pa] | AL172: =Global_Var!$E$6 -> 115420000
Y173: t | Z173: Spar Cap Thickness | AA173: [m] | AB173: =Q18 -> 0.04 | AC173: =U18 -> 0.287499489 | AD173: c | AE173: distance from neutral axis | AF173: [m] | AG173: =Beam_Thickness_Calculator!AG171/2 -> 0 | AH173: =Beam_Thickness_Calculator!AH171/2 -> 0 | AI173: EC | AJ173: Modulus of Core | AK173: [Pa] | AL173: =Global_Var!$E$7 -> 3790000
Y174: σs(max) | Z174: Max Stress in Sparcap | AA174: [Pa] | AB174: =(AB172*(Beam_Thickness_Calculator!AG171/2)*Beam_Thickness_Calculator!AL169)/(Beam_Thickness_Calculator!AL169*Beam_Thickness_Calculator!AG174+Beam_Thickness_Calculator!AL173*Beam_Thickness_Calculator!AG175) ->  | AC174: =(AC172*(Beam_Thickness_Calculator!AH171/2)*Beam_Thickness_Calculator!AL169)/(Beam_Thickness_Calculator!AL169*Beam_Thickness_Calculator!AH174+Beam_Thickness_Calculator!AL173*Beam_Thickness_Calculator!AH175) ->  | AD174: Is | AE174: Moment of inertia Spar | AF174: [m4] | AG174: =(Beam_Thickness_Calculator!AG169/12)*(Beam_Thickness_Calculator!AG171^3-Beam_Thickness_Calculator!AG172^3) -> 0 | AH174: =(Beam_Thickness_Calculator!AH169/12)*(Beam_Thickness_Calculator!AH171^3-Beam_Thickness_Calculator!AH172^3) -> 0 | AI174: ρc | AJ174: Density of core | AK174: [kg/m3] | AL174: =Global_Var!$E$8 -> 673
Y175: Ww | Z175: Wet Weight | AA175: [kg] | AB175: =Beam_Thickness_Calculator!AG179+Beam_Thickness_Calculator!AG178-Beam_Thickness_Calculator!AG181 -> 0 | AC175: =Beam_Thickness_Calculator!AH179+Beam_Thickness_Calculator!AH178-Beam_Thickness_Calculator!AH181 -> 0 | AD175: Ic | AE175: Moment of inertia Core | AF175: [m4] | AG175: =(Beam_Thickness_Calculator!AG169/12)*Beam_Thickness_Calculator!AG172^3 -> 0 | AH175: =(Beam_Thickness_Calculator!AH169/12)*Beam_Thickness_Calculator!AH172^3 -> 0 | AI175: ρw | AJ175: Density of Seawater | AK175: [kg/m3] | AL175: =Global_Var!$E$9 -> 1029
Y176: Ww(rotor) | Z176: Wet Weight segment of rotor (+ floats) | AA176: [kg] | AB176: =AB175*2 -> 0 | AC176: =AC175*3 -> 0 | AD176: Vs | AE176: Volume of Spar | AF176: [m3] | AG176: =Beam_Thickness_Calculator!AG169*Beam_Thickness_Calculator!AB173*Beam_Thickness_Calculator!AL176*2 -> 0 | AH176: =Beam_Thickness_Calculator!AH169*Beam_Thickness_Calculator!AC173*Beam_Thickness_Calculator!AL176*2 -> 0 | AI176: L | AJ176: Section Length | AK176: [m] | AL176: =Global_Var!$E$10 -> 0.7416666667
AD177: Vc | AE177: Volume of Core | AF177: [m3] | AG177: =Beam_Thickness_Calculator!AG172*Beam_Thickness_Calculator!AG169*Beam_Thickness_Calculator!AL176 -> 0 | AH177: =Beam_Thickness_Calculator!AH172*Beam_Thickness_Calculator!AH169*Beam_Thickness_Calculator!AL176 -> 0 | AJ177: Beam width in terms of chord | AK177: [-] | AL177: =Global_Var!$E$11 -> 0.6
Z178: Spar Strain Limit (Goal Seek to 1) | AB178: =(AB174/$AL$7) ->  | AC178: =(AC174/$AL$7) ->  | AD178: Ms | AE178: Mass of Spar | AF178: [kg] | AG178: =Beam_Thickness_Calculator!AL170*AG176 -> 0 | AH178: =Beam_Thickness_Calculator!AL170*AH176 -> 0 | AJ178: Beam height in terms of thickness | AK178: [-] | AL178: 0.85
AD179: Mc | AE179: Mass of Core | AF179: [kg] | AG179: =AG177*Beam_Thickness_Calculator!AL174 -> 0 | AH179: =AH177*Beam_Thickness_Calculator!AL174 -> 0 | AJ179: Chord Ratio Blade A/Blade B | AK179: [-] | AL179: =Global_Var!$E$13 -> 0.6666666667
AD180: Vd | AE180: Displaced Volume | AF180: [m3] | AG180: =Beam_Thickness_Calculator!AG171*Beam_Thickness_Calculator!AG169*Beam_Thickness_Calculator!AL176 -> 0 | AH180: =Beam_Thickness_Calculator!AH171*Beam_Thickness_Calculator!AH169*Beam_Thickness_Calculator!AL176 -> 0 | AJ180: Moment Ratio Blade A/Blade B | AK180: [-] | AL180: =Global_Var!$E$14 -> 0.6666666667
AD181: Mw | AE181: Mass of disp. Seawater | AF181: [kg] | AG181: =Beam_Thickness_Calculator!AL175*Beam_Thickness_Calculator!AG180 -> 0 | AH181: =Beam_Thickness_Calculator!AL175*Beam_Thickness_Calculator!AH180 -> 0
Y183: Input/Output | AD183: Intermediate Calculations | AI183: Constants
Y184: 13 | AB184: Blade A | AC184: Blade B | AD184: b | AE184: Spar Cap Width | AF184: [m] | AG184: =Beam_Thickness_Calculator!AB185*Beam_Thickness_Calculator!AL192 -> 0 | AH184: =Beam_Thickness_Calculator!AC185*Beam_Thickness_Calculator!AL192 -> 0 | AI184: EUD | AJ184: Modulus of Sparcap | AK184: [Pa] | AL184: =Global_Var!$E$3 -> 39800000000
Y185: C | Z185: Chord | AA185: [m] | AB185: =L19 -> 0 | AC185: =AB185*Beam_Thickness_Calculator!AL194 -> 0 | AD185: t | AE185: Airfoil thickness | AF185: [m] | AG185: =Beam_Thickness_Calculator!AB186*Beam_Thickness_Calculator!AB185/100 -> 0 | AH185: =Beam_Thickness_Calculator!AC186*Beam_Thickness_Calculator!AC185/100 -> 0 | AI185: ρs | AJ185: Density of sparcap | AK185: [kg/m3] | AL185: =Global_Var!$E$4 -> 1920
Y186: AF% | Z186: % thickness of foil | AA186: [%] | AB186: =P19 -> 24.29969433 | AC186: =T19 -> 24.73467369 | AD186: ho | AE186: Section height outer | AF186: [m] | AG186: =AG185*Beam_Thickness_Calculator!AL193 -> 0 | AH186: =AH185*Beam_Thickness_Calculator!AL193 -> 0 | AI186: ϵUD(max) | AJ186: Max allow design strain Sparcap | AK186: [-] | AL186: =Global_Var!$E$5 -> 0.0029
Y187: M | Z187: Moment | AA187: [n-m] | AB187: =N19 -> 0 | AC187: =AB187*Beam_Thickness_Calculator!AL195 -> 0 | AD187: hc | AE187: height of core | AF187: [m] | AG187: =Beam_Thickness_Calculator!AG186-2*Beam_Thickness_Calculator!AB188 -> -0.08 | AH187: =Beam_Thickness_Calculator!AH186-2*Beam_Thickness_Calculator!AC188 -> -0.5615262565 | AI187: σs(allow) | AJ187: Allowable stress in Sparcap | AK187: [Pa] | AL187: =Global_Var!$E$6 -> 115420000
Y188: t | Z188: Spar Cap Thickness | AA188: [m] | AB188: =Q19 -> 0.04 | AC188: =U19 -> 0.2807631283 | AD188: c | AE188: distance from neutral axis | AF188: [m] | AG188: =Beam_Thickness_Calculator!AG186/2 -> 0 | AH188: =Beam_Thickness_Calculator!AH186/2 -> 0 | AI188: EC | AJ188: Modulus of Core | AK188: [Pa] | AL188: =Global_Var!$E$7 -> 3790000
Y189: σs(max) | Z189: Max Stress in Sparcap | AA189: [Pa] | AB189: =(AB187*(Beam_Thickness_Calculator!AG186/2)*Beam_Thickness_Calculator!AL184)/(Beam_Thickness_Calculator!AL184*Beam_Thickness_Calculator!AG189+Beam_Thickness_Calculator!AL188*Beam_Thickness_Calculator!AG190) ->  | AC189: =(AC187*(Beam_Thickness_Calculator!AH186/2)*Beam_Thickness_Calculator!AL184)/(Beam_Thickness_Calculator!AL184*Beam_Thickness_Calculator!AH189+Beam_Thickness_Calculator!AL188*Beam_Thickness_Calculator!AH190) ->  | AD189: Is | AE189: Moment of inertia Spar | AF189: [m4] | AG189: =(Beam_Thickness_Calculator!AG184/12)*(Beam_Thickness_Calculator!AG186^3-Beam_Thickness_Calculator!AG187^3) -> 0 | AH189: =(Beam_Thickness_Calculator!AH184/12)*(Beam_Thickness_Calculator!AH186^3-Beam_Thickness_Calculator!AH187^3) -> 0 | AI189: ρc | AJ189: Density of core | AK189: [kg/m3] | AL189: =Global_Var!$E$8 -> 673
Y190: Ww | Z190: Wet Weight | AA190: [kg] | AB190: =Beam_Thickness_Calculator!AG194+Beam_Thickness_Calculator!AG193-Beam_Thickness_Calculator!AG196 -> 0 | AC190: =Beam_Thickness_Calculator!AH194+Beam_Thickness_Calculator!AH193-Beam_Thickness_Calculator!AH196 -> 0 | AD190: Ic | AE190: Moment of inertia Core | AF190: [m4] | AG190: =(Beam_Thickness_Calculator!AG184/12)*Beam_Thickness_Calculator!AG187^3 -> 0 | AH190: =(Beam_Thickness_Calculator!AH184/12)*Beam_Thickness_Calculator!AH187^3 -> 0 | AI190: ρw | AJ190: Density of Seawater | AK190: [kg/m3] | AL190: =Global_Var!$E$9 -> 1029
Y191: Ww(rotor) | Z191: Wet Weight segment of rotor (+ floats) | AA191: [kg] | AB191: =AB190*2 -> 0 | AC191: =AC190*3 -> 0 | AD191: Vs | AE191: Volume of Spar | AF191: [m3] | AG191: =Beam_Thickness_Calculator!AG184*Beam_Thickness_Calculator!AB188*Beam_Thickness_Calculator!AL191*2 -> 0 | AH191: =Beam_Thickness_Calculator!AH184*Beam_Thickness_Calculator!AC188*Beam_Thickness_Calculator!AL191*2 -> 0 | AI191: L | AJ191: Section Length | AK191: [m] | AL191: =Global_Var!$E$10 -> 0.7416666667
AD192: Vc | AE192: Volume of Core | AF192: [m3] | AG192: =Beam_Thickness_Calculator!AG187*Beam_Thickness_Calculator!AG184*Beam_Thickness_Calculator!AL191 -> 0 | AH192: =Beam_Thickness_Calculator!AH187*Beam_Thickness_Calculator!AH184*Beam_Thickness_Calculator!AL191 -> 0 | AJ192: Beam width in terms of chord | AK192: [-] | AL192: =Global_Var!$E$11 -> 0.6
Z193: Spar Strain Limit (Goal Seek to 1) | AB193: =(AB189/$AL$7) ->  | AC193: =(AC189/$AL$7) ->  | AD193: Ms | AE193: Mass of Spar | AF193: [kg] | AG193: =Beam_Thickness_Calculator!AL185*AG191 -> 0 | AH193: =Beam_Thickness_Calculator!AL185*AH191 -> 0 | AJ193: Beam height in terms of thickness | AK193: [-] | AL193: 0.85
AD194: Mc | AE194: Mass of Core | AF194: [kg] | AG194: =AG192*Beam_Thickness_Calculator!AL189 -> 0 | AH194: =AH192*Beam_Thickness_Calculator!AL189 -> 0 | AJ194: Chord Ratio Blade A/Blade B | AK194: [-] | AL194: =Global_Var!$E$13 -> 0.6666666667
AD195: Vd | AE195: Displaced Volume | AF195: [m3] | AG195: =Beam_Thickness_Calculator!AG186*Beam_Thickness_Calculator!AG184*Beam_Thickness_Calculator!AL191 -> 0 | AH195: =Beam_Thickness_Calculator!AH186*Beam_Thickness_Calculator!AH184*Beam_Thickness_Calculator!AL191 -> 0 | AJ195: Moment Ratio Blade A/Blade B | AK195: [-] | AL195: =Global_Var!$E$14 -> 0.6666666667
AD196: Mw | AE196: Mass of disp. Seawater | AF196: [kg] | AG196: =Beam_Thickness_Calculator!AL190*Beam_Thickness_Calculator!AG195 -> 0 | AH196: =Beam_Thickness_Calculator!AL190*Beam_Thickness_Calculator!AH195 -> 0
Y198: Input/Output | AD198: Intermediate Calculations | AI198: Constants
Y199: 14 | AB199: Blade A | AC199: Blade B | AD199: b | AE199: Spar Cap Width | AF199: [m] | AG199: =Beam_Thickness_Calculator!AB200*Beam_Thickness_Calculator!AL207 -> 0 | AH199: =Beam_Thickness_Calculator!AC200*Beam_Thickness_Calculator!AL207 -> 0 | AI199: EUD | AJ199: Modulus of Sparcap | AK199: [Pa] | AL199: =Global_Var!$E$3 -> 39800000000
Y200: C | Z200: Chord | AA200: [m] | AB200: =L20 -> 0 | AC200: =AB200*Beam_Thickness_Calculator!AL209 -> 0 | AD200: t | AE200: Airfoil thickness | AF200: [m] | AG200: =Beam_Thickness_Calculator!AB201*Beam_Thickness_Calculator!AB200/100 -> 0 | AH200: =Beam_Thickness_Calculator!AC201*Beam_Thickness_Calculator!AC200/100 -> 0 | AI200: ρs | AJ200: Density of sparcap | AK200: [kg/m3] | AL200: =Global_Var!$E$4 -> 1920
Y201: AF% | Z201: % thickness of foil | AA201: [%] | AB201: =P20 -> 23.82657476 | AC201: =T20 -> 24.47920287 | AD201: ho | AE201: Section height outer | AF201: [m] | AG201: =AG200*Beam_Thickness_Calculator!AL208 -> 0 | AH201: =AH200*Beam_Thickness_Calculator!AL208 -> 0 | AI201: ϵUD(max) | AJ201: Max allow design strain Sparcap | AK201: [-] | AL201: =Global_Var!$E$5 -> 0.0029
Y202: M | Z202: Moment | AA202: [n-m] | AB202: =N20 -> 0 | AC202: =AB202*Beam_Thickness_Calculator!AL210 -> 0 | AD202: hc | AE202: height of core | AF202: [m] | AG202: =Beam_Thickness_Calculator!AG201-2*Beam_Thickness_Calculator!AB203 -> -0.08 | AH202: =Beam_Thickness_Calculator!AH201-2*Beam_Thickness_Calculator!AC203 -> -0.5441145729 | AI202: σs(allow) | AJ202: Allowable stress in Sparcap | AK202: [Pa] | AL202: =Global_Var!$E$6 -> 115420000
Y203: t | Z203: Spar Cap Thickness | AA203: [m] | AB203: =Q20 -> 0.04 | AC203: =U20 -> 0.2720572865 | AD203: c | AE203: distance from neutral axis | AF203: [m] | AG203: =Beam_Thickness_Calculator!AG201/2 -> 0 | AH203: =Beam_Thickness_Calculator!AH201/2 -> 0 | AI203: EC | AJ203: Modulus of Core | AK203: [Pa] | AL203: =Global_Var!$E$7 -> 3790000
Y204: σs(max) | Z204: Max Stress in Sparcap | AA204: [Pa] | AB204: =(AB202*(Beam_Thickness_Calculator!AG201/2)*Beam_Thickness_Calculator!AL199)/(Beam_Thickness_Calculator!AL199*Beam_Thickness_Calculator!AG204+Beam_Thickness_Calculator!AL203*Beam_Thickness_Calculator!AG205) ->  | AC204: =(AC202*(Beam_Thickness_Calculator!AH201/2)*Beam_Thickness_Calculator!AL199)/(Beam_Thickness_Calculator!AL199*Beam_Thickness_Calculator!AH204+Beam_Thickness_Calculator!AL203*Beam_Thickness_Calculator!AH205) ->  | AD204: Is | AE204: Moment of inertia Spar | AF204: [m4] | AG204: =(Beam_Thickness_Calculator!AG199/12)*(Beam_Thickness_Calculator!AG201^3-Beam_Thickness_Calculator!AG202^3) -> 0 | AH204: =(Beam_Thickness_Calculator!AH199/12)*(Beam_Thickness_Calculator!AH201^3-Beam_Thickness_Calculator!AH202^3) -> 0 | AI204: ρc | AJ204: Density of core | AK204: [kg/m3] | AL204: =Global_Var!$E$8 -> 673
Y205: Ww | Z205: Wet Weight | AA205: [kg] | AB205: =Beam_Thickness_Calculator!AG209+Beam_Thickness_Calculator!AG208-Beam_Thickness_Calculator!AG211 -> 0 | AC205: =Beam_Thickness_Calculator!AH209+Beam_Thickness_Calculator!AH208-Beam_Thickness_Calculator!AH211 -> 0 | AD205: Ic | AE205: Moment of inertia Core | AF205: [m4] | AG205: =(Beam_Thickness_Calculator!AG199/12)*Beam_Thickness_Calculator!AG202^3 -> 0 | AH205: =(Beam_Thickness_Calculator!AH199/12)*Beam_Thickness_Calculator!AH202^3 -> 0 | AI205: ρw | AJ205: Density of Seawater | AK205: [kg/m3] | AL205: =Global_Var!$E$9 -> 1029
Y206: Ww(rotor) | Z206: Wet Weight segment of rotor (+ floats) | AA206: [kg] | AB206: =AB205*2 -> 0 | AC206: =AC205*3 -> 0 | AD206: Vs | AE206: Volume of Spar | AF206: [m3] | AG206: =Beam_Thickness_Calculator!AG199*Beam_Thickness_Calculator!AB203*Beam_Thickness_Calculator!AL206*2 -> 0 | AH206: =Beam_Thickness_Calculator!AH199*Beam_Thickness_Calculator!AC203*Beam_Thickness_Calculator!AL206*2 -> 0 | AI206: L | AJ206: Section Length | AK206: [m] | AL206: =Global_Var!$E$10 -> 0.7416666667
AD207: Vc | AE207: Volume of Core | AF207: [m3] | AG207: =Beam_Thickness_Calculator!AG202*Beam_Thickness_Calculator!AG199*Beam_Thickness_Calculator!AL206 -> 0 | AH207: =Beam_Thickness_Calculator!AH202*Beam_Thickness_Calculator!AH199*Beam_Thickness_Calculator!AL206 -> 0 | AJ207: Beam width in terms of chord | AK207: [-] | AL207: =Global_Var!$E$11 -> 0.6
Z208: Spar Strain Limit (Goal Seek to 1) | AB208: =(AB204/$AL$7) ->  | AC208: =(AC204/$AL$7) ->  | AD208: Ms | AE208: Mass of Spar | AF208: [kg] | AG208: =Beam_Thickness_Calculator!AL200*AG206 -> 0 | AH208: =Beam_Thickness_Calculator!AL200*AH206 -> 0 | AJ208: Beam height in terms of thickness | AK208: [-] | AL208: 0.85
AD209: Mc | AE209: Mass of Core | AF209: [kg] | AG209: =AG207*Beam_Thickness_Calculator!AL204 -> 0 | AH209: =AH207*Beam_Thickness_Calculator!AL204 -> 0 | AJ209: Chord Ratio Blade A/Blade B | AK209: [-] | AL209: =Global_Var!$E$13 -> 0.6666666667
AD210: Vd | AE210: Displaced Volume | AF210: [m3] | AG210: =Beam_Thickness_Calculator!AG201*Beam_Thickness_Calculator!AG199*Beam_Thickness_Calculator!AL206 -> 0 | AH210: =Beam_Thickness_Calculator!AH201*Beam_Thickness_Calculator!AH199*Beam_Thickness_Calculator!AL206 -> 0 | AJ210: Moment Ratio Blade A/Blade B | AK210: [-] | AL210: =Global_Var!$E$14 -> 0.6666666667
AD211: Mw | AE211: Mass of disp. Seawater | AF211: [kg] | AG211: =Beam_Thickness_Calculator!AL205*Beam_Thickness_Calculator!AG210 -> 0 | AH211: =Beam_Thickness_Calculator!AL205*Beam_Thickness_Calculator!AH210 -> 0
Y213: Input/Output | AD213: Intermediate Calculations | AI213: Constants
Y214: 15 | AB214: Blade A | AC214: Blade B | AD214: b | AE214: Spar Cap Width | AF214: [m] | AG214: =Beam_Thickness_Calculator!AB215*Beam_Thickness_Calculator!AL222 -> 0 | AH214: =Beam_Thickness_Calculator!AC215*Beam_Thickness_Calculator!AL222 -> 0 | AI214: EUD | AJ214: Modulus of Sparcap | AK214: [Pa] | AL214: =Global_Var!$E$3 -> 39800000000
... 236 more rows
